Workbook

Sheet readme&changelog
A1: EPA Residential Wood Combustion (RWC) Emissions Calculator
A3: Tab | B3: Description
A4: Fireplace Calculator | B4: Contains Instructions and computations for emission reductions for PM and other pollutants by retrofitting fireplace to a gas or electric appliance
A6: Woodstove PM Calculator | B6: Contains Instructions and computations for PM emission reductions from changeouts or retrofits of wood burning room heater appliances. Summarizes data provided in the Woodstove worksheet.
A8: Woodstove worksheet | B8: Users provide input parameters for each changeout or retrofit in this worksheet. Contains emissions calculations for PM2.5 for each change out (pre- and post-change out)
A10: References | B10: Provides defaults for input parameters and references and/or methodology. Includes emission factor (EF) and efficiency defaults, where available
A12: cordwood_density | B12: County-specific default data for cordwood densities based on the 2017 NEI approaches (see References TAB for more details)
A14: cordwood_burnrate | B14: County-specific default data for amount of wood burned per year per appliance type, based on the 2017 NEI approaches (see References TAB for more details). Result of Pivot Table of "NEI-activity_data" TAB
A16: Example Woodstove worksheet | B16: Provides example of populated Woodstove worksheet
A18: dropdown | B18: Used by the Woodstove worksheet. Allowable values of "Old Device Type" and "New Device Type"
A20: pellet-burnrate | B20: Not used
A22: NEI-activity_data | B22: NEI Wagon Wheel Tool Activity data used to compute the values in the burnrate TABs. Developed as follows: 1) Used WagonWheel tool from the 2017 NEI. 2) Ran WagonWheel Tool for all states for RWC sector. 3) Created TAB "NEI ACTIVITY DATA" by running Query 8 Distribution to SCCs (in the module "RWC").
A25: CHANGELOG
A26: Date | B26: Change
A27: 2021-05-03 | B27: First Version
A28: 2021-07-28 | B28: Pre-2015 certified stove is changed to "Certified-20 years or older" and the "Example Woodstove worksheet" is changed to include only "Uncertified" as the the "Old Device Type". Added more values after decimal place in Woodstove PM Calculator and Fireplace Calculator TABs

Sheet Fireplace Calculator
A1: Fireplace Calculator ---- Directions for use:
A2: 1) Review and/or revise the wood density and cords of wood burned per year values (cells B8 and E8; cells B10 and E10).
A3: 2) Enter number of fireplaces changed to gas or electric (cell B9)
A4: 3) Optional: Review / revise fireplace emission factor default values provided in column G if you have more specific data
A5: 4) Scroll below for calculated emission reductions
A7: Parameters for Calculation of Open Fireplace Retrofit Benefit | B7: Inputs | C7: Input Description | D7: Basis of Default value | E7: Basis of User value (User Please fill in)
A8: Wood density to convert cords to tons (tons oven dried wood/cord) = | B8: 1.03 | C8: use appropriate wood density (tons/cord) or choose county-level default from the tab labelled "density tons-per-cord" | D8: 2017 NEI Wagon-Wheel - RWC module; 1.03 is the value for Autuaga County, AL (FIPS 01001) | E8: used default for Autuaga County, AL
A9: # of Fireplaces changed to gas or electric appliances = | B9: 8 | C9: input # of FP's being retrofitted (assume all go to gas or electric heaters)
A10: Burnrate for heating (cords/unit/yr) = | B10: 0.19 | C10: use appropriate burnrate or choose county-level, fireplace default from the tab labeled "cordwood-burnrate" (Fireplace burnrate is column D in that worksheet) | D10: 2017 NEI Wagon-Wheel - RWC module; 0.19 is the value for Autuaga County, AL (FIPS 01001) | E10: used default for Autuaga County, AL
F12: Criteria Pollutant/Precursor (CAP) | G12: Emission factors for Fireplaces(lb/ton) | H12: Reference
F13: CO | G13: 149 | H13: Houck, J.E. and B.N. Eagle. 2006. Task 6 Technical Memorandum 4 (Final Report): Control Analysis and Documentation for Residential Wood Combustion in the MANE-VU Region. Prepared for MARAMA. Table 3.03: 74.6 g/kg (https://s3.amazonaws.com/marama.org/wp-content/uploads/2019/09/13093812/RWC_FinalReport_121906.pdf)
F14: SO2 | G14: 0.4 | H14: U.S. Environmental Protection Agency. 1996. AP-42, Fifth Edition, Chapter 1 External Combustion Sources, Sections 1.9 Residential Fireplaces and 1.10 Residential Wood Stove. (https://www.epa.gov/sites/production/files/2020-09/documents/1.9_residential_fireplaces.pdf)
F15: NOX | G15: 2.6 | H15: U.S. Environmental Protection Agency. 1996. AP-42, Fifth Edition, Chapter 1 External Combustion Sources, Sections 1.9 Residential Fireplaces and 1.10 Residential Wood Stove. (https://www.epa.gov/sites/production/files/2020-09/documents/1.9_residential_fireplaces.pdf)
F16: VOC | G16: 18.9 | H16: Houck, J.E. and B.N. Eagle. 2006. Task 6 Technical Memorandum 4 (Final Report): Control Analysis and Documentation for Residential Wood Combustion in the MANE-VU Region. Prepared for MARAMA. Table 3.03 9.43 g/kg (https://s3.amazonaws.com/marama.org/wp-content/uploads/2019/09/13093812/RWC_FinalReport_121906.pdf)
F17: PM2.5-PRI | G17: 23.6 | H17: Houck, 2001: Houck, 2001: Houck, J.E., J. Crouch, and R.H. Huntley. 2001. Review of Wood Heater and Fireplace Emission Factors. Technical presentation at the International Emission Inventory Conference. Denver, CO. Table 3, use mean value of 11.8 g/ dry kg Available at: http://www.bioenergylists.org/stovesdoc/Environment/houck.pdf or ftp://newftp.epa.gov/air/nei/ei_conference/EI10/pm/houck.pdf
B18: Emission Reduction (tons) | F18: PM10-PRI | G18: 23.6 | H18: Houck, 2001: Houck, 2001: Houck, J.E., J. Crouch, and R.H. Huntley. 2001. Review of Wood Heater and Fireplace Emission Factors. Technical presentation at the International Emission Inventory Conference. Denver, CO. Table 3, use mean value of 11.8 g/ dry kg Available at: http://www.bioenergylists.org/stovesdoc/Environment/houck.pdf or ftp://newftp.epa.gov/air/nei/ei_conference/EI10/pm/houck.pdf
B19: Pollutant | C19: Total Emissions Avoided | F19: NH3 | G19: 23.6 | H19: Houck, J.E. and B.N. Eagle. 2006. Task 6 Technical Memorandum 4 (Final Report): Control Analysis and Documentation for Residential Wood Combustion in the MANE-VU Region. Prepared for MARAMA. Table 3.03: 74.6 g/kg (https://s3.amazonaws.com/marama.org/wp-content/uploads/2019/09/13093812/RWC_FinalReport_121906.pdf)
B20: CO | C20: =(Numb_FP*EF_CO*cords_tons*Burnrate)/2000 -> 0.1166
B21: SO2 | C21: =(Numb_FP*EF_SO2*cords_tons*Burnrate)/2000 -> 0.0003 | E21: HAP Pollutant Code | F21: HAP Name | G21: HAP to CAP ratio | H21: CAP used | I21: Reference
B22: NOX | C22: =(Numb_FP*EF_NOX*cords_tons*Burnrate)/2000 -> 0.0020 | E22: 120127 | F22: Anthracene | G22: 0.0002502107 | H22: VOC | I22: Emissions Inventory System, HAP augmentation, computed from SPECIATE database profile 4642 as weight %/100 * TOG-to-VOC ratio . Schauer, J.J., M.J. Kleeman, G.R. Cass, and B.R.T. Simoneit. 2001. 'Measurement of Emissions from Air Pollution Sources. 3. C1-C29 Organic Compounds from Fireplace Combustion of Wood', Environmental Science and Technology, vol. 35, no. 9:1716-1728. http://doi.org/10.1021/es001331e
B23: VOC | C23: =(Numb_FP*EF_VOC*cords_tons*Burnrate)/2000 -> 0.0148 | E23: 2531842 | F23: 2-Methylphenanthrene | G23: 0.0001352883 | H23: VOC | I23: Emissions Inventory System, HAP augmentation, computed from SPECIATE database profile 4642 as weight %/100 * TOG-to-VOC ratio . Schauer, J.J., M.J. Kleeman, G.R. Cass, and B.R.T. Simoneit. 2001. 'Measurement of Emissions from Air Pollution Sources. 3. C1-C29 Organic Compounds from Fireplace Combustion of Wood', Environmental Science and Technology, vol. 35, no. 9:1716-1728. http://doi.org/10.1021/es001331e
B24: PM2.5-PRI | C24: =(Numb_FP*EF_PM25*cords_tons*Burnrate)/2000 -> 0.0185 | E24: 100414 | F24: Ethyl Benzene | G24: 0.0016656466 | H24: VOC | I24: Emissions Inventory System, HAP augmentation, computed from SPECIATE database profile 4642 as weight %/100 * TOG-to-VOC ratio . Schauer, J.J., M.J. Kleeman, G.R. Cass, and B.R.T. Simoneit. 2001. 'Measurement of Emissions from Air Pollution Sources. 3. C1-C29 Organic Compounds from Fireplace Combustion of Wood', Environmental Science and Technology, vol. 35, no. 9:1716-1728. http://doi.org/10.1021/es001331e
B25: PM10-PRI | C25: =(Numb_FP*G18*cords_tons*Burnrate)/2000 -> 0.0185 | E25: 106990 | F25: 1,3-Butadiene | G25: 0.0085100719 | H25: VOC | I25: Emissions Inventory System, HAP augmentation, computed from SPECIATE database profile 4642 as weight %/100 * TOG-to-VOC ratio . Schauer, J.J., M.J. Kleeman, G.R. Cass, and B.R.T. Simoneit. 2001. 'Measurement of Emissions from Air Pollution Sources. 3. C1-C29 Organic Compounds from Fireplace Combustion of Wood', Environmental Science and Technology, vol. 35, no. 9:1716-1728. http://doi.org/10.1021/es001331e
B26: HAP Reductions (tons) | E26: 107028 | F26: Acrolein | G26: 0.0045823464 | H26: VOC | I26: Emissions Inventory System, HAP augmentation, computed from SPECIATE database profile 4642 as weight %/100 * TOG-to-VOC ratio . Schauer, J.J., M.J. Kleeman, G.R. Cass, and B.R.T. Simoneit. 2001. 'Measurement of Emissions from Air Pollution Sources. 3. C1-C29 Organic Compounds from Fireplace Combustion of Wood', Environmental Science and Technology, vol. 35, no. 9:1716-1728. http://doi.org/10.1021/es001331e
B27: =F22 -> Anthracene | C27: =VOCemis*VLOOKUP(B27,F:G,2,FALSE) -> 3.702E-06 | E27: 108383 | F27: m-Xylene | G27: 0.004364139 | H27: VOC | I27: Emissions Inventory System, HAP augmentation, computed from SPECIATE database profile 4642 as weight %/100 * TOG-to-VOC ratio . Schauer, J.J., M.J. Kleeman, G.R. Cass, and B.R.T. Simoneit. 2001. 'Measurement of Emissions from Air Pollution Sources. 3. C1-C29 Organic Compounds from Fireplace Combustion of Wood', Environmental Science and Technology, vol. 35, no. 9:1716-1728. http://doi.org/10.1021/es001331e
B28: 2-Methylphenanthrene | C28: 2.002E-06 | E28: 108883 | F28: Toluene | G28: 0.0114922339 | H28: VOC | I28: Emissions Inventory System, HAP augmentation, computed from SPECIATE database profile 4642 as weight %/100 * TOG-to-VOC ratio . Schauer, J.J., M.J. Kleeman, G.R. Cass, and B.R.T. Simoneit. 2001. 'Measurement of Emissions from Air Pollution Sources. 3. C1-C29 Organic Compounds from Fireplace Combustion of Wood', Environmental Science and Technology, vol. 35, no. 9:1716-1728. http://doi.org/10.1021/es001331e
B29: Ethyl Benzene | C29: 2.464E-05 | E29: 108952 | F29: Phenol | G29: 0.0381862202 | H29: VOC | I29: Emissions Inventory System, HAP augmentation, computed from SPECIATE database profile 4642 as weight %/100 * TOG-to-VOC ratio . Schauer, J.J., M.J. Kleeman, G.R. Cass, and B.R.T. Simoneit. 2001. 'Measurement of Emissions from Air Pollution Sources. 3. C1-C29 Organic Compounds from Fireplace Combustion of Wood', Environmental Science and Technology, vol. 35, no. 9:1716-1728. http://doi.org/10.1021/es001331e
B30: 1,3-Butadiene | C30: 1.259E-04 | E30: 50000 | F30: Formaldehyde | G30: 0.084737041 | H30: VOC | I30: Emissions Inventory System, HAP augmentation, computed from SPECIATE database profile 4642 as weight %/100 * TOG-to-VOC ratio . Schauer, J.J., M.J. Kleeman, G.R. Cass, and B.R.T. Simoneit. 2001. 'Measurement of Emissions from Air Pollution Sources. 3. C1-C29 Organic Compounds from Fireplace Combustion of Wood', Environmental Science and Technology, vol. 35, no. 9:1716-1728. http://doi.org/10.1021/es001331e
B31: Acrolein | C31: 6.780E-05 | E31: 123386 | F31: Propionaldehyde | G31: 0.0185475927 | H31: VOC | I31: Emissions Inventory System, HAP augmentation, computed from SPECIATE database profile 4642 as weight %/100 * TOG-to-VOC ratio . Schauer, J.J., M.J. Kleeman, G.R. Cass, and B.R.T. Simoneit. 2001. 'Measurement of Emissions from Air Pollution Sources. 3. C1-C29 Organic Compounds from Fireplace Combustion of Wood', Environmental Science and Technology, vol. 35, no. 9:1716-1728. http://doi.org/10.1021/es001331e
B32: m-Xylene | C32: 6.457E-05 | E32: 1319773 | F32: Cresol/Cresylic Acid (Mixed Isomers) | G32: 0.0341566647 | H32: VOC | I32: Emissions Inventory System, HAP augmentation, computed from SPECIATE database profile 4642 as weight %/100 * TOG-to-VOC ratio . Schauer, J.J., M.J. Kleeman, G.R. Cass, and B.R.T. Simoneit. 2001. 'Measurement of Emissions from Air Pollution Sources. 3. C1-C29 Organic Compounds from Fireplace Combustion of Wood', Environmental Science and Technology, vol. 35, no. 9:1716-1728. http://doi.org/10.1021/es001331e
B33: Toluene | C33: 1.700E-04 | E33: 123319 | F33: Hydroquinone | G33: 0.0012510533 | H33: VOC | I33: Emissions Inventory System, HAP augmentation, computed from SPECIATE database profile 4642 as weight %/100 * TOG-to-VOC ratio . Schauer, J.J., M.J. Kleeman, G.R. Cass, and B.R.T. Simoneit. 2001. 'Measurement of Emissions from Air Pollution Sources. 3. C1-C29 Organic Compounds from Fireplace Combustion of Wood', Environmental Science and Technology, vol. 35, no. 9:1716-1728. http://doi.org/10.1021/es001331e
B34: Phenol | C34: 5.650E-04 | E34: 832699 | F34: 1-Methylphenanthrene | G34: 0.0001614732 | H34: VOC | I34: Emissions Inventory System, HAP augmentation, computed from SPECIATE database profile 4642 as weight %/100 * TOG-to-VOC ratio . Schauer, J.J., M.J. Kleeman, G.R. Cass, and B.R.T. Simoneit. 2001. 'Measurement of Emissions from Air Pollution Sources. 3. C1-C29 Organic Compounds from Fireplace Combustion of Wood', Environmental Science and Technology, vol. 35, no. 9:1716-1728. http://doi.org/10.1021/es001331e
B35: Formaldehyde | C35: 1.254E-03 | E35: 85018 | F35: Phenanthrene | G35: 0.0011419498 | H35: VOC | I35: Emissions Inventory System, HAP augmentation, computed from SPECIATE database profile 4642 as weight %/100 * TOG-to-VOC ratio . Schauer, J.J., M.J. Kleeman, G.R. Cass, and B.R.T. Simoneit. 2001. 'Measurement of Emissions from Air Pollution Sources. 3. C1-C29 Organic Compounds from Fireplace Combustion of Wood', Environmental Science and Technology, vol. 35, no. 9:1716-1728. http://doi.org/10.1021/es001331e
B36: Propionaldehyde | C36: 2.744E-04 | E36: 86737 | F36: Fluorene | G36: 0.0003229463 | H36: VOC | I36: Emissions Inventory System, HAP augmentation, computed from SPECIATE database profile 4642 as weight %/100 * TOG-to-VOC ratio . Schauer, J.J., M.J. Kleeman, G.R. Cass, and B.R.T. Simoneit. 2001. 'Measurement of Emissions from Air Pollution Sources. 3. C1-C29 Organic Compounds from Fireplace Combustion of Wood', Environmental Science and Technology, vol. 35, no. 9:1716-1728. http://doi.org/10.1021/es001331e
B37: Cresol/Cresylic Acid (Mixed Isomers) | C37: 5.053E-04 | E37: 90120 | F37: 1-Methylnaphthalene | G37: 0.000770998 | H37: VOC | I37: Emissions Inventory System, HAP augmentation, computed from SPECIATE database profile 4642 as weight %/100 * TOG-to-VOC ratio . Schauer, J.J., M.J. Kleeman, G.R. Cass, and B.R.T. Simoneit. 2001. 'Measurement of Emissions from Air Pollution Sources. 3. C1-C29 Organic Compounds from Fireplace Combustion of Wood', Environmental Science and Technology, vol. 35, no. 9:1716-1728. http://doi.org/10.1021/es001331e
B38: Hydroquinone | C38: 1.851E-05 | E38: 91203 | F38: Naphthalene | G38: 0.0165109942 | H38: VOC | I38: Emissions Inventory System, HAP augmentation, computed from SPECIATE database profile 4642 as weight %/100 * TOG-to-VOC ratio . Schauer, J.J., M.J. Kleeman, G.R. Cass, and B.R.T. Simoneit. 2001. 'Measurement of Emissions from Air Pollution Sources. 3. C1-C29 Organic Compounds from Fireplace Combustion of Wood', Environmental Science and Technology, vol. 35, no. 9:1716-1728. http://doi.org/10.1021/es001331e
B39: 1-Methylphenanthrene | C39: 2.389E-06 | E39: 91576 | F39: 2-Methylnaphthalene | G39: 0.0010910349 | H39: VOC | I39: Emissions Inventory System, HAP augmentation, computed from SPECIATE database profile 4642 as weight %/100 * TOG-to-VOC ratio . Schauer, J.J., M.J. Kleeman, G.R. Cass, and B.R.T. Simoneit. 2001. 'Measurement of Emissions from Air Pollution Sources. 3. C1-C29 Organic Compounds from Fireplace Combustion of Wood', Environmental Science and Technology, vol. 35, no. 9:1716-1728. http://doi.org/10.1021/es001331e
B40: Phenanthrene | C40: 1.690E-05 | E40: 95476 | F40: o-Xylene | G40: 0.001316515 | H40: VOC | I40: Emissions Inventory System, HAP augmentation, computed from SPECIATE database profile 4642 as weight %/100 * TOG-to-VOC ratio . Schauer, J.J., M.J. Kleeman, G.R. Cass, and B.R.T. Simoneit. 2001. 'Measurement of Emissions from Air Pollution Sources. 3. C1-C29 Organic Compounds from Fireplace Combustion of Wood', Environmental Science and Technology, vol. 35, no. 9:1716-1728. http://doi.org/10.1021/es001331e
B41: Fluorene | C41: 4.778E-06 | E41: 98862 | F41: Acetophenone | G41: 0.0002836691 | H41: VOC | I41: Emissions Inventory System, HAP augmentation, computed from SPECIATE database profile 4642 as weight %/100 * TOG-to-VOC ratio . Schauer, J.J., M.J. Kleeman, G.R. Cass, and B.R.T. Simoneit. 2001. 'Measurement of Emissions from Air Pollution Sources. 3. C1-C29 Organic Compounds from Fireplace Combustion of Wood', Environmental Science and Technology, vol. 35, no. 9:1716-1728. http://doi.org/10.1021/es001331e
B42: 1-Methylnaphthalene | C42: 1.141E-05 | E42: 206440 | F42: Fluoranthene | G42: 0.0002218438 | H42: VOC | I42: Emissions Inventory System, HAP augmentation, computed from SPECIATE database profile 4642 as weight %/100 * TOG-to-VOC ratio . Schauer, J.J., M.J. Kleeman, G.R. Cass, and B.R.T. Simoneit. 2001. 'Measurement of Emissions from Air Pollution Sources. 3. C1-C29 Organic Compounds from Fireplace Combustion of Wood', Environmental Science and Technology, vol. 35, no. 9:1716-1728. http://doi.org/10.1021/es001331e
B43: Naphthalene | C43: 2.443E-04 | E43: 208968 | F43: Acenaphthylene | G43: 0.0013528832 | H43: VOC | I43: Emissions Inventory System, HAP augmentation, computed from SPECIATE database profile 4642 as weight %/100 * TOG-to-VOC ratio . Schauer, J.J., M.J. Kleeman, G.R. Cass, and B.R.T. Simoneit. 2001. 'Measurement of Emissions from Air Pollution Sources. 3. C1-C29 Organic Compounds from Fireplace Combustion of Wood', Environmental Science and Technology, vol. 35, no. 9:1716-1728. http://doi.org/10.1021/es001331e
B44: 2-Methylnaphthalene | C44: 1.614E-05 | E44: 120809 | F44: Catechol | G44: 0.0226935251 | H44: VOC | I44: Emissions Inventory System, HAP augmentation, computed from SPECIATE database profile 4642 as weight %/100 * TOG-to-VOC ratio . Schauer, J.J., M.J. Kleeman, G.R. Cass, and B.R.T. Simoneit. 2001. 'Measurement of Emissions from Air Pollution Sources. 3. C1-C29 Organic Compounds from Fireplace Combustion of Wood', Environmental Science and Technology, vol. 35, no. 9:1716-1728. http://doi.org/10.1021/es001331e
B45: o-Xylene | C45: 1.948E-05 | E45: 129000 | F45: Pyrene | G45: 0.0001360157 | H45: VOC | I45: Emissions Inventory System, HAP augmentation, computed from SPECIATE database profile 4642 as weight %/100 * TOG-to-VOC ratio . Schauer, J.J., M.J. Kleeman, G.R. Cass, and B.R.T. Simoneit. 2001. 'Measurement of Emissions from Air Pollution Sources. 3. C1-C29 Organic Compounds from Fireplace Combustion of Wood', Environmental Science and Technology, vol. 35, no. 9:1716-1728. http://doi.org/10.1021/es001331e
B46: Acetophenone | C46: 4.197E-06 | E46: 75070 | F46: Acetaldehyde | G46: 0.1239415603 | H46: VOC | I46: Emissions Inventory System, HAP augmentation, computed from SPECIATE database profile 4642 as weight %/100 * TOG-to-VOC ratio . Schauer, J.J., M.J. Kleeman, G.R. Cass, and B.R.T. Simoneit. 2001. 'Measurement of Emissions from Air Pollution Sources. 3. C1-C29 Organic Compounds from Fireplace Combustion of Wood', Environmental Science and Technology, vol. 35, no. 9:1716-1728. http://doi.org/10.1021/es001331e
B47: Fluoranthene | C47: 3.282E-06 | E47: 203123 | F47: Benzo(g,h,i)Fluoranthene | G47: 5.9643239e-06 | H47: VOC | I47: Emissions Inventory System, HAP augmentation, computed from SPECIATE database profile 4642 as weight %/100 * TOG-to-VOC ratio . Schauer, J.J., M.J. Kleeman, G.R. Cass, and B.R.T. Simoneit. 2001. 'Measurement of Emissions from Air Pollution Sources. 3. C1-C29 Organic Compounds from Fireplace Combustion of Wood', Environmental Science and Technology, vol. 35, no. 9:1716-1728. http://doi.org/10.1021/es001331e
B48: Acenaphthylene | C48: 2.002E-05 | E48: 83329 | F48: Acenaphthene | G48: 0.000146926 | H48: VOC | I48: Emissions Inventory System, HAP augmentation, computed from SPECIATE database profile 4642 as weight %/100 * TOG-to-VOC ratio . Schauer, J.J., M.J. Kleeman, G.R. Cass, and B.R.T. Simoneit. 2001. 'Measurement of Emissions from Air Pollution Sources. 3. C1-C29 Organic Compounds from Fireplace Combustion of Wood', Environmental Science and Technology, vol. 35, no. 9:1716-1728. http://doi.org/10.1021/es001331e
B49: Catechol | C49: 3.357E-04 | E49: 71432 | F49: Benzene | G49: 0.0278577568 | H49: VOC | I49: Emissions Inventory System, HAP augmentation, computed from SPECIATE database profile 4642 as weight %/100 * TOG-to-VOC ratio . Schauer, J.J., M.J. Kleeman, G.R. Cass, and B.R.T. Simoneit. 2001. 'Measurement of Emissions from Air Pollution Sources. 3. C1-C29 Organic Compounds from Fireplace Combustion of Wood', Environmental Science and Technology, vol. 35, no. 9:1716-1728. http://doi.org/10.1021/es001331e
B50: Pyrene | C50: 2.012E-06 | E50: 50328 | F50: Benzo[a]Pyrene | G50: =0.00074/EF_VOC -> 3.92E-05 | H50: VOC | I50: Houck, J.E. and B.N. Eagle. 2006. Task 6 Technical Memorandum 4 (Final Report): Control Analysis and Documentation for Residential Wood Combustion in the MANE-VU Region. Prepared for MARAMA. (https://s3.amazonaws.com/marama.org/wp-content/uploads/2019/09/13093812/RWC_FinalReport_121906.pdf) Use Table 3.03 value of 0.37 mg/kg (.00074 lb/ton) and divide by VOC EF of 18.9 lb/ton to get
B51: Acetaldehyde | C51: 1.834E-03 | E51: 7439976 | F51: Mercury | G51: =0.0000154/EF_PM25 -> 6.53E-07 | H51: PM2.5 | I51: See cell C54 (Mercury Notes)
B52: Benzo(g,h,i)Fluoranthene | C52: 8.824E-08
B53: Acenaphthene | C53: 2.174E-06
B54: Benzene | C54: 4.122E-04
B55: Benzo[a]Pyrene | C55: 5.793E-07
B56: Mercury | C56: =PM25emis*VLOOKUP(B56,F:G,2,FALSE) -> 1.206E-08
A58: * NOTES ON MERCURY MULTIPLICATION FACTOR
A59: Use Hg concentration in wood, assume it is all emitted. That assumption is backed up by: Jiaoyan Huang, Philip K. Hopke, Hyun-Deok Choi, James R. Laing, Huailue Cui, Tiffany J. Zananski, Sriraam Ramanathan Chandrasekaran, Oliver V. Rattigan, Thomas M. Holsen, “Mercury (Hg) emissions from domestic biomass combustion for space heating”, Chemosphere,Volume 84, Issue 11,2011,Pages 1694-1699,ISSN 0045-6535,https://doi.org/10.1016/j.chemosphere.2011.04.078.(http://www.sciencedirect.com/science/article/pii/S0045653511005091) For the value, use this paper: Concentrations and content of mercury in bark, wood, and leaves in hardwoods and conifers in four forested sites in the northeastern USA Yang Y, Yanai RD, Driscoll CT, Montesdeoca M, Smith KT (2018) Concentrations and content of mercury in bark, wood, and leaves in hardwoods and conifers in four forested sites in the northeastern USA. PLOS ONE 13(4): e0196293. https://doi.org/10.1371/journal.pone.0196293. The resultant factor is 15.4 E-6 lb/ton. The ratio to PM2.5 is computed by dividing that by the PM2.5 EF.

Sheet Woodstove PM Calculator
A1: Woodstove PM Calculator ---- Directions for use:
A2: 1) Review and revise the wood density and cords of wood burned per year values (cells C13 and C14; cells E13 and E14).
A3: If you have home-specific wood burned per year values, you can enter them in the Woodstove Worksheet, column B). See "Example Woodstove worksheet for an example"
A4: 2) Enter the information noted in the heading for each highlighted column (columns A-F and H-M) for each change-out/retrofit in the Woodstove Worksheet. You can enter up to 999 rows.
A5: See the "Example Woodstove worksheet" for an example.
A6: 3) We provide defaults for Efficiency, Uncertified Stove Emission Factor (EF), Non-wood option EF and the Pellet (EF)- -- see References
A7: 4) This calculator does not provide a default EF for the different types of certified stoves: certified-20 years or older, hybrid, catalytic, non-catalytic due to a lack of data at this time. If you are an agency trying to determine emission factors and have questions feel free to contact Larry Brockman, brockman.larry@epa.gov.
A10: A Summary and Emissions Reductions for PM are provided below
A12: Default Stove Usage (Burn rate and Cordwood Density) Parameters for Calculation of WS Changeout Benefit | B12: Input Instruction | C12: Inputs | D12: Basis of Default value (see References TAB) for detail | E12: Basis of User value (User Please fill in)
A13: Wood density to convert cords to tons (tons oven dried wood/cord) = | B13: Use local data or choose county-level default from "cordwood_density" TAB | C13: 1.03 | D13: 1.03 cords/ton is the value for Autuaga County, AL (FIPS 01001) | E13: used default for Autuaga County, AL
A14: Cords of Wood Burned per Woodstove per year = | B14: Use local data or choose county-leve default from "cordwood-burnrate" TAB | C14: 0.54 | D14: 0.54 cords/year is the value for Autuaga County, AL (FIPS 01001) | E14: used default for Autuaga County, AL
A16: Summary of Change-outs based on the Information in the Woodstove worksheet
A17: OLD STOVE TYPE to CHANGEOUT TYPE | B17: NON-WOOD OPTION (include removal with no replacement) | C17: PELLET | D17: CERTIFIED HYBRID | E17: CERTIFED CATALYTIC | F17: CERTIFIED NONCAT
A18: UNCERTIFIED | B18: =COUNTIFS('Woodstove worksheet'!D2:D999,"Uncertified",'Woodstove worksheet'!I2:I999,dropdown!C5) -> 0 | C18: =COUNTIFS('Woodstove worksheet'!D2:D999,"Uncertified",'Woodstove worksheet'!I2:I999,"Pellet") -> 0 | D18: =COUNTIFS('Woodstove worksheet'!D2:D999,"Uncertified",'Woodstove worksheet'!I2:I999,"Hybrid") -> 0 | E18: =COUNTIFS('Woodstove worksheet'!$D$2:$D$999,"Uncertified",'Woodstove worksheet'!$I$2:$I$999,"Catalytic") -> 0 | F18: =COUNTIFS('Woodstove worksheet'!$D$2:$D$999,"Uncertified",'Woodstove worksheet'!$I$2:$I$999,"Non-catalytic") -> 0
A19: CERTIFIED-20 YEARS OR OLDER | B19: =COUNTIFS('Woodstove worksheet'!D2:D999,"Certified-20 years or older",'Woodstove worksheet'!I2:I999,dropdown!C5) -> 0 | C19: =COUNTIFS('Woodstove worksheet'!D2:D999,"Certified-20 years or older",'Woodstove worksheet'!I2:I999,"Pellet") -> 0 | D19: =COUNTIFS('Woodstove worksheet'!D2:D999,"Certified-20 years or older",'Woodstove worksheet'!I2:I999,"Hybrid") -> 0 | E19: =COUNTIFS('Woodstove worksheet'!$D$2:$D$999,"Certified-20 years or older",'Woodstove worksheet'!$I$2:$I$999,"Catalytic") -> 0 | F19: =COUNTIFS('Woodstove worksheet'!$D$2:$D$999,"Certified-20 years or older",'Woodstove worksheet'!$I$2:$I$999,"Non-catalytic") -> 0
A21: Calculations (Before Changeout, by appliance; After Changeout, by type and Total Emisssions Avoided)
A22: BEFORE CHANGE-OUT APPLIANCES | B22: PM Emissions (tons) Before Changeout | D22: AFTER CHANGE OUT APPLIANCES | E22: PM Emissions (tons) [assume it is all PM2.5] After Changeout
A23: uncertified | B23: =SUMIF('Woodstove worksheet'!$D$2:$D$999,"Uncertified",'Woodstove worksheet'!$G$2:$G$999) -> 0.0000 | D23: Non-Wood | E23: =SUMIF('Woodstove worksheet'!$I$2:$I$999,"Non-wood",'Woodstove worksheet'!$N$2:$N$999) -> 0.0000
A24: Certified-20 years or older | B24: =SUMIF('Woodstove worksheet'!$D$2:$D$999,"Certified-20 years or older",'Woodstove worksheet'!$G$2:$G$999) -> 0.0000 | D24: PELLET | E24: =SUMIF('Woodstove worksheet'!$I$2:$I$999,"Pellet",'Woodstove worksheet'!$N$2:$N$999) -> 0.0000
D25: CERTIFIED HYBRID | E25: =SUMIF('Woodstove worksheet'!$I$2:$I$999,"Hybrid",'Woodstove worksheet'!$N$2:$N$999) -> 0.0000
D26: CERTIFED CATALYTIC | E26: =SUMIF('Woodstove worksheet'!$I$2:$I$999,"Catalytic",'Woodstove worksheet'!$N$2:$N$999) -> 0.0000
D27: CERTIFIED NONCAT | E27: =SUMIF('Woodstove worksheet'!$I$2:$I$999,"Non-catalytic",'Woodstove worksheet'!$N$2:$N$999) -> 0.0000
A28: TOTAL BEFORE CHANGEOUT | B28: =SUM(B23:B25) -> 0.0000 | D28: TOTAL AFTER CHANGEOUT | E28: =SUM(E23:E27) -> 0.0000
D30: TONS PM EMISSIONS AVOIDED | E30: =(B28-E28) -> 0.00000

Sheet Woodstove worksheet
A1: Date Of Change-out | B1: Cords of Wood Burned in Old Device Per Year (Change this value if you have more specific information for your area) | C1: Old device detail --include manufacturer and model specifics and year of old stove, if known) | D1: Old device type Enter or Choose from Dropdown Menu (Uncertified Or Certified-20 years or older) | E1: Old Device Emissions Factor for PM (lb/ton) -See References TAB for Default | F1: Old device Efficiency (%) - see References TAB for Default | G1: Calculated Emissions - BEFORE (tons) DO NOT ENTER VALUE | H1: New device detail --include manufacturer and model specifics) | I1: New Device Choose from Dropdown Menu | J1: New Device Emissions Factor for PM (lb/ton)- see References TAB for Default | K1: New Device Efficiency - (%) -see References for Default | L1: Explain basis for EF | M1: Expain basis for Efficiency | N1: Calculated Emissions - AFTER (tons) DO NOT ENTER VALUE
B2: =Cords_of_Wood_Burned_per_UncertWoodstove -> 0.54 | G2: =IF(F2="","",E2*Conversion*B2/2000) ->  | N2: =IF(K2="","",J2*F2/K2*B2/2000*Conversion) -> 
B3: 0.54 | G3: =IF(F3="","",E3*Conversion*B3/2000) -> 
B4: 0.54 | G4: =IF(D4="","",E4*Conversion*B4/2000) -> 
B5: 0.54
B6: 0.54
B7: 0.54
B8: 0.54
B9: 0.54
B10: 0.54
B11: 0.54
B12: 0.54
B13: 0.54
B14: 0.54
B15: 0.54
B16: 0.54
B17: 0.54
B18: 0.54
B19: 0.54
B20: 0.54
B21: 0.54
B22: 0.54
B23: 0.54
B24: 0.54
B25: 0.54
B26: 0.54
B27: 0.54
B28: 0.54
B29: 0.54
B30: 0.54
B31: 0.54
B32: 0.54
B33: 0.54
B34: 0.54
B35: 0.54
B36: 0.54
B37: 0.54
B38: 0.54
B39: 0.54
B40: 0.54
B41: 0.54
B42: 0.54
B43: 0.54
B44: 0.54
B45: 0.54
B46: 0.54
B47: 0.54
B48: 0.54
B49: 0.54
B50: 0.54
B51: 0.54
B52: 0.54
B53: 0.54
B54: 0.54
B55: 0.54
B56: 0.54
B57: 0.54
B58: 0.54
B59: 0.54
B60: 0.54
B61: 0.54
B62: 0.54
B63: 0.54
B64: 0.54
B65: 0.54
B66: =Cords_of_Wood_Burned_per_UncertWoodstove -> 0.54 | G66: =IF(D66="","",E66*Conversion*B66/2000) ->  | N66: =IF(K66="","",J66*F66/K66*B66/2000*Conversion) -> 
B67: 0.54
B68: 0.54
B69: 0.54
B70: 0.54
B71: 0.54
B72: 0.54
B73: 0.54
B74: 0.54
B75: 0.54
B76: 0.54
B77: 0.54
B78: 0.54
B79: 0.54
B80: 0.54
B81: 0.54
B82: 0.54
B83: 0.54
B84: 0.54
B85: 0.54
B86: 0.54
B87: 0.54
B88: 0.54
B89: 0.54
B90: 0.54
B91: 0.54
B92: 0.54
B93: 0.54
B94: 0.54
B95: 0.54
B96: 0.54
B97: 0.54
B98: 0.54
B99: 0.54
B100: 0.54
B101: 0.54
B102: 0.54
B103: 0.54
B104: 0.54
B105: 0.54
B106: 0.54
B107: 0.54
B108: 0.54
B109: 0.54
B110: 0.54
B111: 0.54
B112: 0.54
B113: 0.54
B114: 0.54
B115: 0.54
B116: 0.54
B117: 0.54
B118: 0.54
B119: 0.54
B120: 0.54
B121: 0.54
B122: 0.54
B123: 0.54
B124: 0.54
B125: 0.54
B126: 0.54
B127: 0.54
B128: 0.54
B129: 0.54
B130: =Cords_of_Wood_Burned_per_UncertWoodstove -> 0.54 | G130: =IF(D130="","",E130*Conversion*B130/2000) ->  | N130: =IF(K130="","",J130*F130/K130*B130/2000*Conversion) -> 
B131: 0.54
B132: 0.54
B133: 0.54
B134: 0.54
B135: 0.54
B136: 0.54
B137: 0.54
B138: 0.54
B139: 0.54
B140: 0.54
B141: 0.54
B142: 0.54
B143: 0.54
B144: 0.54
B145: 0.54
B146: 0.54
B147: 0.54
B148: 0.54
B149: 0.54
B150: 0.54
B151: 0.54
B152: 0.54
B153: 0.54
B154: 0.54
B155: 0.54
B156: 0.54
B157: 0.54
B158: 0.54
B159: 0.54
B160: 0.54
B161: 0.54
B162: 0.54
B163: 0.54
B164: 0.54
B165: 0.54
B166: 0.54
B167: 0.54
B168: 0.54
B169: 0.54
B170: 0.54
B171: 0.54
B172: 0.54
B173: 0.54
B174: 0.54
B175: 0.54
B176: 0.54
B177: 0.54
B178: 0.54
B179: 0.54
B180: 0.54
B181: 0.54
B182: 0.54
B183: 0.54
B184: 0.54
B185: 0.54
B186: 0.54
B187: 0.54
B188: 0.54
B189: 0.54
B190: 0.54
B191: 0.54
B192: 0.54
B193: 0.54
B194: =Cords_of_Wood_Burned_per_UncertWoodstove -> 0.54 | G194: =IF(D194="","",E194*Conversion*B194/2000) ->  | N194: =IF(K194="","",J194*F194/K194*B194/2000*Conversion) -> 
B195: 0.54
B196: 0.54
B197: 0.54
B198: 0.54
B199: 0.54
B200: 0.54
... 799 more rows

Sheet Example Woodstove worksheet
A1: Date Of Change-out | B1: Cords of Wood Burned in Old Device Per Year (if you have more specific information for your area, replace value) | C1: Old device detail --include manufacturer and model specifics and year of old stove, if known) | D1: Old device type Enter or Choose from Dropdown Menu (Uncertified Or Certified Stove, 20 years or older) | E1: Old Device Emissions Factor for PM (lb/ton) -See References TAB for Default | F1: Old device Efficiency (%) - see References TAB for Default | G1: Calculated Emissions - BEFORE (tons) DO NOT ENTER VALUE | H1: New device detail --include manufacturer and model specifics) | I1: New Device Choose from Dropdown Menu | J1: New Device Emissions Factor for PM (lb/ton)- see References TAB for Default | K1: New Device Efficiency - (%) -see References for Default | L1: Explain basis for EF | M1: Expain basis for Efficiency | N1: Calculated Emissions - AFTER (tons) DO NOT ENTER VALUE
B2: 0.74 | D2: Uncertified | E2: 30.6 | F2: 54 | G2: =IF(F2="","",E2*Conversion*B2/2000) -> 0.01166166 | I2: Pellet | J2: 4.2 | K2: 68 | L2: default | M2: default | N2: =IF(K2="","",J2*F2/K2*B2/2000*Conversion) -> 0.001271080588
B3: 0.34 | D3: Uncertified | E3: 30.6 | F3: 54 | G3: =IF(F3="","",E3*Conversion*B3/2000) -> 0.00535806 | I3: Pellet | J3: 4.2 | K3: 68 | L3: default | M3: default | N3: 0.00058401
B4: =Cords_of_Wood_Burned_per_UncertWoodstove -> 0.54 | D4: Uncertified | E4: 30.6 | F4: 54 | G4: =IF(D4="","",E4*Conversion*B4/2000) -> 0.00850986 | I4: Pellet | J4: 4.2 | K4: 68 | L4: default | M4: default | N4: 0.0009275452941
B5: 0.54 | D5: Uncertified | E5: 30.6 | F5: 54 | G5: 0.00850986 | I5: Pellet | J5: 4.2 | K5: 68 | L5: default | M5: default | N5: 0.0009275452941
B6: 0.54 | D6: Uncertified | E6: 30.6 | F6: 54 | G6: 0.00850986 | I6: Pellet | J6: 4.2 | K6: 68 | L6: default | M6: default | N6: 0.0009275452941
B7: 0.54 | D7: Uncertified | E7: 30.6 | F7: 54 | G7: 0.00850986 | I7: Pellet | J7: 4.2 | K7: 68 | L7: default | M7: default | N7: 0.0009275452941
B8: 0.54 | D8: Uncertified | E8: 30.6 | F8: 54 | G8: 0.00850986 | I8: Pellet | J8: 4.2 | K8: 68 | L8: default | M8: default | N8: 0.0009275452941
B9: 0.54 | D9: Uncertified | E9: 30.6 | F9: 54 | G9: 0.00850986 | I9: Pellet | J9: 4.2 | K9: 68 | L9: default | M9: default | N9: 0.0009275452941
B10: 0.54 | D10: Uncertified | E10: 30.6 | F10: 54 | G10: 0.00850986 | I10: Pellet | J10: 4.2 | K10: 68 | L10: default | M10: default | N10: 0.0009275452941
B11: 0.54 | D11: Uncertified | E11: 30.6 | F11: 54 | G11: 0.00850986 | I11: Pellet | J11: 4.2 | K11: 68 | L11: default | M11: default | N11: 0.0009275452941
B12: 0.54 | D12: Uncertified | E12: 30.6 | F12: 54 | G12: 0.00850986 | I12: Pellet | J12: 4.2 | K12: 68 | L12: default | M12: default | N12: 0.0009275452941
B13: 0.54 | D13: Uncertified | E13: 30.6 | F13: 54 | G13: 0.00850986 | I13: Pellet | J13: 4.2 | K13: 68 | L13: default | M13: default | N13: 0.0009275452941
B14: 0.54 | D14: Uncertified | E14: 30.6 | F14: 54 | G14: 0.00850986 | I14: Pellet | J14: 4.2 | K14: 68 | L14: default | M14: default | N14: 0.0009275452941
B15: 0.54 | D15: Uncertified | E15: 30.6 | F15: 54 | G15: 0.00850986 | I15: Pellet | J15: 4.2 | K15: 68 | L15: default | M15: default | N15: 0.0009275452941
B16: 0.54 | D16: Uncertified | E16: 30.6 | F16: 54 | G16: 0.00850986 | I16: Pellet | J16: 4.2 | K16: 68 | L16: default | M16: default | N16: 0.0009275452941
B17: 0.54 | D17: Uncertified | E17: 30.6 | F17: 54 | G17: 0.00850986 | I17: Pellet | J17: 4.2 | K17: 68 | L17: default | M17: default | N17: 0.0009275452941
B18: 0.54 | D18: Uncertified | E18: 30.6 | F18: 54 | G18: 0.00850986 | I18: Pellet | J18: 4.2 | K18: 68 | L18: default | M18: default | N18: 0.0009275452941
B19: 0.54 | D19: Uncertified | E19: 30.6 | F19: 54 | G19: 0.00850986 | I19: Pellet | J19: 4.2 | K19: 68 | L19: default | M19: default | N19: 0.0009275452941
B20: 0.54 | D20: Uncertified | E20: 30.6 | F20: 54 | G20: 0.00850986 | I20: Pellet | J20: 4.2 | K20: 68 | L20: default | M20: default | N20: 0.0009275452941
B21: 0.54 | D21: Uncertified | E21: 30.6 | F21: 54 | G21: 0.00850986 | I21: Pellet | J21: 4.2 | K21: 68 | L21: default | M21: default | N21: 0.0009275452941
B22: 0.54 | D22: Uncertified | E22: 30.6 | F22: 54 | G22: 0.00850986 | I22: Pellet | J22: 4.2 | K22: 68 | L22: default | M22: default | N22: 0.0009275452941
B23: 0.54 | D23: Uncertified | E23: 30.6 | F23: 54 | G23: 0.00850986 | I23: Pellet | J23: 4.2 | K23: 68 | L23: default | M23: default | N23: 0.0009275452941
B24: 0.54 | D24: Uncertified | E24: 30.6 | F24: 54 | G24: 0.00850986 | I24: Pellet | J24: 4.2 | K24: 68 | L24: default | M24: default | N24: 0.0009275452941
B25: 0.54 | D25: Uncertified | E25: 30.6 | F25: 54 | G25: 0.00850986 | I25: Pellet | J25: 4.2 | K25: 68 | L25: default | M25: default | N25: 0.0009275452941
B26: 0.54 | D26: Uncertified | E26: 30.6 | F26: 54 | G26: 0.00850986 | I26: Pellet | J26: 4.2 | K26: 68 | L26: default | M26: default | N26: 0.0009275452941
B27: 0.54 | D27: Uncertified | E27: 30.6 | F27: 54 | G27: 0.00850986 | I27: Pellet | J27: 4.2 | K27: 68 | L27: default | M27: default | N27: 0.0009275452941
B28: 0.54 | D28: Uncertified | E28: 30.6 | F28: 54 | G28: 0.00850986 | I28: Pellet | J28: 4.2 | K28: 68 | L28: default | M28: default | N28: 0.0009275452941
B29: 0.54 | D29: Uncertified | E29: 30.6 | F29: 54 | G29: 0.00850986 | I29: Pellet | J29: 4.2 | K29: 68 | L29: default | M29: default | N29: 0.0009275452941
B30: 0.54 | D30: Uncertified | E30: 30.6 | F30: 54 | G30: 0.00850986 | I30: Pellet | J30: 4.2 | K30: 68 | L30: default | M30: default | N30: 0.0009275452941
B31: 0.54 | D31: Uncertified | E31: 30.6 | F31: 54 | G31: 0.00850986 | I31: Pellet | J31: 4.2 | K31: 68 | L31: default | M31: default | N31: 0.0009275452941
B32: 0.54 | D32: Uncertified | E32: 30.6 | F32: 54 | G32: 0.00850986 | I32: Pellet | J32: 4.2 | K32: 68 | L32: default | M32: default | N32: 0.0009275452941
B33: 0.54 | D33: Uncertified | E33: 30.6 | F33: 54 | G33: 0.00850986 | I33: Pellet | J33: 4.2 | K33: 68 | L33: default | M33: default | N33: 0.0009275452941
B34: 0.54 | D34: Uncertified | E34: 30.6 | F34: 54 | G34: 0.00850986 | I34: Pellet | J34: 4.2 | K34: 68 | L34: default | M34: default | N34: 0.0009275452941
B35: 0.54 | D35: Uncertified | E35: 30.6 | F35: 54 | G35: 0.00850986 | I35: Pellet | J35: 4.2 | K35: 68 | L35: default | M35: default | N35: 0.0009275452941
B36: 0.54 | D36: Uncertified | E36: 30.6 | F36: 54 | G36: 0.00850986 | I36: Pellet | J36: 4.2 | K36: 68 | L36: default | M36: default | N36: 0.0009275452941
B37: 0.54 | D37: Uncertified | E37: 30.6 | F37: 54 | G37: 0.00850986 | I37: Pellet | J37: 4.2 | K37: 68 | L37: default | M37: default | N37: 0.0009275452941
B38: 0.54 | D38: Uncertified | E38: 30.6 | F38: 54 | G38: 0.00850986 | I38: Pellet | J38: 4.2 | K38: 68 | L38: default | M38: default | N38: 0.0009275452941
B39: 0.54 | D39: Uncertified | E39: 30.6 | F39: 54 | G39: 0.00850986 | I39: Pellet | J39: 4.2 | K39: 68 | L39: default | M39: default | N39: 0.0009275452941
B40: 0.54 | D40: Uncertified | E40: 30.6 | F40: 54 | G40: 0.00850986 | I40: Pellet | J40: 4.2 | K40: 68 | L40: default | M40: default | N40: 0.0009275452941
B41: 0.54 | D41: Uncertified | E41: 30.6 | F41: 54 | G41: 0.00850986 | I41: Pellet | J41: 4.2 | K41: 68 | L41: default | M41: default | N41: 0.0009275452941
B42: 0.54 | D42: Uncertified | E42: 30.6 | F42: 54 | G42: 0.00850986 | I42: Pellet | J42: 4.2 | K42: 68 | L42: default | M42: default | N42: 0.0009275452941
B43: 0.54 | D43: Uncertified | E43: 30.6 | F43: 54 | G43: 0.00850986 | I43: Pellet | J43: 4.2 | K43: 68 | L43: default | M43: default | N43: 0.0009275452941
B44: 0.54 | D44: Uncertified | E44: 30.6 | F44: 54 | G44: 0.00850986 | I44: Pellet | J44: 4.2 | K44: 68 | L44: default | M44: default | N44: 0.0009275452941
B45: 0.54 | D45: Uncertified | E45: 30.6 | F45: 54 | G45: 0.00850986 | I45: Pellet | J45: 4.2 | K45: 68 | L45: default | M45: default | N45: 0.0009275452941
B46: 0.54 | D46: Uncertified | E46: 30.6 | F46: 54 | G46: 0.00850986 | I46: Pellet | J46: 4.2 | K46: 68 | L46: default | M46: default | N46: 0.0009275452941
B47: 0.54 | D47: Uncertified | E47: 30.6 | F47: 54 | G47: 0.00850986 | I47: Pellet | J47: 4.2 | K47: 68 | L47: default | M47: default | N47: 0.0009275452941
B48: 0.54 | D48: Uncertified | E48: 30.6 | F48: 54 | G48: 0.00850986 | I48: Pellet | J48: 4.2 | K48: 68 | L48: default | M48: default | N48: 0.0009275452941
B49: 0.54 | D49: Uncertified | E49: 30.6 | F49: 54 | G49: 0.00850986 | I49: Pellet | J49: 4.2 | K49: 68 | L49: default | M49: default | N49: 0.0009275452941
B50: 0.54 | D50: Uncertified | E50: 30.6 | F50: 54 | G50: 0.00850986 | I50: Pellet | J50: 4.2 | K50: 68 | L50: default | M50: default | N50: 0.0009275452941
B51: 0.54 | D51: Uncertified | E51: 30.6 | F51: 54 | G51: 0.00850986 | I51: Pellet | J51: 4.2 | K51: 68 | L51: default | M51: default | N51: 0.0009275452941
B52: 0.54 | D52: Uncertified | E52: 30.6 | F52: 54 | G52: 0.00850986 | I52: Non-wood (gas or electric) | J52: 0 | K52: 100 | L52: default | M52: default | N52: 0
B53: 0.54 | D53: Uncertified | E53: 30.6 | F53: 54 | G53: 0.00850986 | I53: Non-wood (gas or electric) | J53: 0 | K53: 100 | L53: default | M53: default | N53: 0
B54: 0.54 | D54: Uncertified | E54: 30.6 | F54: 54 | G54: 0.00850986 | I54: Non-wood (gas or electric) | J54: 0 | K54: 100 | L54: default | M54: default | N54: 0
B55: 0.54 | D55: Uncertified | E55: 30.6 | F55: 54 | G55: 0.00850986 | I55: Non-wood (gas or electric) | J55: 0 | K55: 100 | L55: default | M55: default | N55: 0
B56: 0.54 | D56: Uncertified | E56: 30.6 | F56: 54 | G56: 0.00850986 | I56: Non-wood (gas or electric) | J56: 0 | K56: 100 | L56: default | M56: default | N56: 0
B57: 0.54 | D57: Uncertified | E57: 30.6 | F57: 54 | G57: 0.00850986 | I57: Non-wood (gas or electric) | J57: 0 | K57: 100 | L57: default | M57: default | N57: 0
B58: 0.54 | D58: Uncertified | E58: 30.6 | F58: 54 | G58: 0.00850986 | I58: Non-wood (gas or electric) | J58: 0 | K58: 100 | L58: default | M58: default | N58: 0
B59: 0.54 | D59: Uncertified | E59: 30.6 | F59: 54 | G59: 0.00850986 | I59: Non-wood (gas or electric) | J59: 0 | K59: 100 | L59: default | M59: default | N59: 0
B60: 0.54 | D60: Uncertified | E60: 30.6 | F60: 54 | G60: 0.00850986 | I60: Non-wood (gas or electric) | J60: 0 | K60: 100 | L60: default | M60: default | N60: 0
B61: 0.54 | D61: Uncertified | E61: 30.6 | F61: 54 | G61: 0.00850986 | I61: Non-wood (gas or electric) | J61: 0 | K61: 100 | L61: default | M61: default | N61: 0
B62: 0.54 | D62: Uncertified | E62: 30.6 | F62: 54 | G62: 0.00850986 | I62: Non-wood (gas or electric) | J62: 0 | K62: 100 | L62: default | M62: default | N62: 0
B63: 0.54 | D63: Uncertified | E63: 30.6 | F63: 54 | G63: 0.00850986 | I63: Non-wood (gas or electric) | J63: 0 | K63: 100 | L63: default | M63: default | N63: 0
B64: 0.54 | D64: Uncertified | E64: 30.6 | F64: 54 | G64: 0.00850986 | I64: Non-wood (gas or electric) | J64: 0 | K64: 100 | L64: default | M64: default | N64: 0
B65: 0.54 | D65: Uncertified | E65: 30.6 | F65: 54 | G65: 0.00850986 | I65: Non-wood (gas or electric) | J65: 0 | K65: 100 | L65: default | M65: default | N65: 0
B66: =Cords_of_Wood_Burned_per_UncertWoodstove -> 0.54 | D66: Uncertified | E66: 30.6 | F66: 54 | G66: 0.00850986 | I66: Non-wood (gas or electric) | J66: 0 | K66: 100 | L66: default | M66: default | N66: =IF(K66="","",J66*F66/K66*B66/2000*Conversion) -> 0
B67: 0.54 | D67: Uncertified | E67: 30.6 | F67: 54 | G67: 0.00850986 | I67: Non-wood (gas or electric) | J67: 0 | K67: 100 | L67: default | M67: default | N67: 0
B68: 0.54 | D68: Uncertified | E68: 30.6 | F68: 54 | G68: =IF(D68="","",E68*Conversion*B68/2000) -> 0.00850986 | I68: Non-wood (gas or electric) | J68: 0 | K68: 100 | L68: default | M68: default | N68: 0
B69: 0.54 | D69: Uncertified | E69: 30.6 | F69: 54 | G69: 0.00850986 | I69: Non-wood (gas or electric) | J69: 0 | K69: 100 | L69: default | M69: default | N69: 0
B70: 0.54 | D70: Uncertified | E70: 30.6 | F70: 54 | G70: 0.00850986 | I70: Non-wood (gas or electric) | J70: 0 | K70: 100 | L70: default | M70: default | N70: 0
B71: 0.54 | D71: Uncertified | E71: 30.6 | F71: 54 | G71: 0.00850986 | I71: Non-wood (gas or electric) | J71: 0 | K71: 100 | L71: default | M71: default | N71: 0
B72: 0.54 | D72: Uncertified | E72: 30.6 | F72: 54 | G72: 0.00850986 | I72: Non-wood (gas or electric) | J72: 0 | K72: 100 | L72: default | M72: default | N72: 0
B73: 0.54 | D73: Uncertified | E73: 30.6 | F73: 54 | G73: 0.00850986 | I73: Non-wood (gas or electric) | J73: 0 | K73: 100 | L73: default | M73: default | N73: 0
B74: 0.54 | D74: Uncertified | E74: 30.6 | F74: 54 | G74: 0.00850986 | I74: Non-wood (gas or electric) | J74: 0 | K74: 100 | L74: default | M74: default | N74: 0
B75: 0.54 | D75: Uncertified | E75: 30.6 | F75: 54 | G75: 0.00850986 | I75: Non-wood (gas or electric) | J75: 0 | K75: 100 | L75: default | M75: default | N75: 0
B76: 0.54 | D76: Uncertified | E76: 30.6 | F76: 54 | G76: 0.00850986 | I76: Non-wood (gas or electric) | J76: 0 | K76: 100 | L76: default | M76: default | N76: 0
B77: 0.54 | D77: Uncertified | E77: 30.6 | F77: 54 | G77: 0.00850986 | I77: Non-wood (gas or electric) | J77: 0 | K77: 100 | L77: default | M77: default | N77: 0
B78: 0.54 | D78: Uncertified | E78: 30.6 | F78: 54 | G78: 0.00850986 | I78: Non-wood (gas or electric) | J78: 0 | K78: 100 | L78: default | M78: default | N78: 0
B79: 0.54 | D79: Uncertified | E79: 30.6 | F79: 54 | G79: 0.00850986 | I79: Non-wood (gas or electric) | J79: 0 | K79: 100 | L79: default | M79: default | N79: 0
B80: 0.54 | D80: Uncertified | E80: 30.6 | F80: 54 | G80: 0.00850986 | I80: Non-wood (gas or electric) | J80: 0 | K80: 100 | L80: default | M80: default | N80: 0
B81: 0.54 | D81: Uncertified | E81: 30.6 | F81: 54 | G81: 0.00850986 | I81: Non-wood (gas or electric) | J81: 0 | K81: 100 | L81: default | M81: default | N81: 0
B82: 0.54 | D82: Uncertified | E82: 30.6 | F82: 54 | G82: 0.00850986 | I82: Non-wood (gas or electric) | J82: 0 | K82: 100 | L82: default | M82: default | N82: 0
B83: 0.54 | D83: Uncertified | E83: 30.6 | F83: 54 | G83: 0.00850986 | I83: Non-wood (gas or electric) | J83: 0 | K83: 100 | L83: default | M83: default | N83: 0
B84: 0.54 | D84: Uncertified | E84: 30.6 | F84: 54 | G84: 0.00850986 | I84: Non-wood (gas or electric) | J84: 0 | K84: 100 | L84: default | M84: default | N84: 0
B85: 0.54 | D85: Uncertified | E85: 30.6 | F85: 54 | G85: 0.00850986 | I85: Non-wood (gas or electric) | J85: 0 | K85: 100 | L85: default | M85: default | N85: 0
B86: 0.54 | D86: Uncertified | E86: 30.6 | F86: 54 | G86: 0.00850986 | I86: Non-wood (gas or electric) | J86: 0 | K86: 100 | L86: default | M86: default | N86: 0
B87: 0.54 | D87: Uncertified | E87: 30.6 | F87: 54 | G87: 0.00850986 | I87: Non-wood (gas or electric) | J87: 0 | K87: 100 | L87: default | M87: default | N87: 0
B88: 0.54 | D88: Uncertified | E88: 30.6 | F88: 54 | G88: 0.00850986 | I88: Non-wood (gas or electric) | J88: 0 | K88: 100 | L88: default | M88: default | N88: 0
B89: 0.54 | D89: Uncertified | E89: 30.6 | F89: 54 | G89: 0.00850986 | I89: Non-wood (gas or electric) | J89: 0 | K89: 100 | L89: default | M89: default | N89: 0
B90: 0.54 | D90: Uncertified | E90: 30.6 | F90: 54 | G90: 0.00850986 | I90: Non-wood (gas or electric) | J90: 0 | K90: 100 | L90: default | M90: default | N90: 0
B91: 0.54 | D91: Uncertified | E91: 30.6 | F91: 54 | G91: 0.00850986 | I91: Non-wood (gas or electric) | J91: 0 | K91: 100 | L91: default | M91: default | N91: 0
B92: 0.54 | D92: Uncertified | E92: 30.6 | F92: 54 | G92: 0.00850986 | I92: Non-wood (gas or electric) | J92: 0 | K92: 100 | L92: default | M92: default | N92: 0
B93: 0.54 | D93: Uncertified | E93: 30.6 | F93: 54 | G93: 0.00850986 | I93: Non-wood (gas or electric) | J93: 0 | K93: 100 | L93: default | M93: default | N93: 0
B94: 0.54 | D94: Uncertified | E94: 30.6 | F94: 54 | G94: 0.00850986 | I94: Non-wood (gas or electric) | J94: 0 | K94: 100 | L94: default | M94: default | N94: 0
B95: 0.54 | D95: Uncertified | E95: 30.6 | F95: 54 | G95: 0.00850986 | I95: Non-wood (gas or electric) | J95: 0 | K95: 100 | L95: default | M95: default | N95: 0
B96: 0.54 | D96: Uncertified | E96: 30.6 | F96: 54 | G96: 0.00850986 | I96: Non-wood (gas or electric) | J96: 0 | K96: 100 | L96: default | M96: default | N96: 0
B97: 0.54 | D97: Uncertified | E97: 30.6 | F97: 54 | G97: 0.00850986 | I97: Non-wood (gas or electric) | J97: 0 | K97: 100 | L97: default | M97: default | N97: 0
B98: 0.54 | D98: Uncertified | E98: 30.6 | F98: 54 | G98: 0.00850986 | I98: Non-wood (gas or electric) | J98: 0 | K98: 100 | L98: default | M98: default | N98: 0
B99: 0.54 | D99: Uncertified | E99: 30.6 | F99: 54 | G99: 0.00850986 | I99: Non-wood (gas or electric) | J99: 0 | K99: 100 | L99: default | M99: default | N99: 0
B100: 0.54 | D100: Uncertified | E100: 30.6 | F100: 54 | G100: 0.00850986 | I100: Non-wood (gas or electric) | J100: 0 | K100: 100 | L100: default | M100: default | N100: 0
B101: 0.54 | D101: Uncertified | E101: 30.6 | F101: 54 | G101: 0.00850986 | I101: Non-wood (gas or electric) | J101: 0 | K101: 100 | L101: default | M101: default | N101: 0
B102: 0.54 | D102: Uncertified | E102: 30.6 | F102: 54 | G102: 0.00850986 | I102: Pellet | J102: 4.2 | K102: 68 | L102: default | M102: default | N102: 0.0009275452941
B103: 0.54 | D103: Uncertified | E103: 30.6 | F103: 54 | G103: 0.00850986 | I103: Pellet | J103: 4.2 | K103: 68 | L103: default | M103: default | N103: 0.0009275452941
B104: 0.54 | D104: Uncertified | E104: 30.6 | F104: 54 | G104: 0.00850986 | I104: Pellet | J104: 4.2 | K104: 68 | L104: default | M104: default | N104: 0.0009275452941
B105: 0.54 | D105: Uncertified | E105: 30.6 | F105: 54 | G105: 0.00850986 | I105: Pellet | J105: 4.2 | K105: 68 | L105: default | M105: default | N105: 0.0009275452941
B106: 0.54 | D106: Uncertified | E106: 30.6 | F106: 54 | G106: 0.00850986 | I106: Pellet | J106: 4.2 | K106: 68 | L106: default | M106: default | N106: 0.0009275452941
B107: 0.54 | D107: Uncertified | E107: 30.6 | F107: 54 | G107: 0.00850986 | I107: Pellet | J107: 4.2 | K107: 68 | L107: default | M107: default | N107: 0.0009275452941
B108: 0.54 | D108: Uncertified | E108: 30.6 | F108: 54 | G108: 0.00850986 | I108: Pellet | J108: 4.2 | K108: 68 | L108: default | M108: default | N108: 0.0009275452941
B109: 0.54 | D109: Uncertified | E109: 30.6 | F109: 54 | G109: 0.00850986 | I109: Pellet | J109: 4.2 | K109: 68 | L109: default | M109: default | N109: 0.0009275452941
B110: 0.54 | D110: Uncertified | E110: 30.6 | F110: 54 | G110: 0.00850986 | I110: Pellet | J110: 4.2 | K110: 68 | L110: default | M110: default | N110: 0.0009275452941
B111: 0.54 | D111: Uncertified | E111: 30.6 | F111: 54 | G111: 0.00850986 | I111: Pellet | J111: 4.2 | K111: 68 | L111: default | M111: default | N111: 0.0009275452941
B112: 0.54 | D112: Uncertified | E112: 30.6 | F112: 54 | G112: 0.00850986 | I112: Pellet | J112: 4.2 | K112: 68 | L112: default | M112: default | N112: 0.0009275452941
B113: 0.54 | D113: Uncertified | E113: 30.6 | F113: 54 | G113: 0.00850986 | I113: Pellet | J113: 4.2 | K113: 68 | L113: default | M113: default | N113: 0.0009275452941
B114: 0.54 | D114: Uncertified | E114: 30.6 | F114: 54 | G114: 0.00850986 | I114: Pellet | J114: 4.2 | K114: 68 | L114: default | M114: default | N114: 0.0009275452941
B115: 0.54 | D115: Uncertified | E115: 30.6 | F115: 54 | G115: 0.00850986 | I115: Pellet | J115: 4.2 | K115: 68 | L115: default | M115: default | N115: 0.0009275452941
B116: 0.54 | D116: Uncertified | E116: 30.6 | F116: 54 | G116: 0.00850986 | I116: Pellet | J116: 4.2 | K116: 68 | L116: default | M116: default | N116: 0.0009275452941
B117: 0.54 | D117: Uncertified | E117: 30.6 | F117: 54 | G117: 0.00850986 | I117: Pellet | J117: 4.2 | K117: 68 | L117: default | M117: default | N117: 0.0009275452941
B118: 0.54 | D118: Uncertified | E118: 30.6 | F118: 54 | G118: 0.00850986 | I118: Pellet | J118: 4.2 | K118: 68 | L118: default | M118: default | N118: 0.0009275452941
B119: 0.54 | D119: Uncertified | E119: 30.6 | F119: 54 | G119: 0.00850986 | I119: Pellet | J119: 4.2 | K119: 68 | L119: default | M119: default | N119: 0.0009275452941
B120: 0.54 | D120: Uncertified | E120: 30.6 | F120: 54 | G120: 0.00850986 | I120: Pellet | J120: 4.2 | K120: 68 | L120: default | M120: default | N120: 0.0009275452941
B121: 0.54 | D121: Uncertified | E121: 30.6 | F121: 54 | G121: 0.00850986 | I121: Pellet | J121: 4.2 | K121: 68 | L121: default | M121: default | N121: 0.0009275452941
B122: 0.54 | D122: Uncertified | E122: 30.6 | F122: 54 | G122: 0.00850986 | I122: Pellet | J122: 4.2 | K122: 68 | L122: default | M122: default | N122: 0.0009275452941
B123: 0.54 | D123: Uncertified | E123: 30.6 | F123: 54 | G123: 0.00850986 | I123: Pellet | J123: 4.2 | K123: 68 | L123: default | M123: default | N123: 0.0009275452941
B124: 0.54 | D124: Uncertified | E124: 30.6 | F124: 54 | G124: 0.00850986 | I124: Pellet | J124: 4.2 | K124: 68 | L124: default | M124: default | N124: 0.0009275452941
B125: 0.54 | D125: Uncertified | E125: 30.6 | F125: 54 | G125: 0.00850986 | I125: Pellet | J125: 4.2 | K125: 68 | L125: default | M125: default | N125: 0.0009275452941
B126: 0.54 | D126: Uncertified | E126: 30.6 | F126: 54 | G126: 0.00850986 | I126: Pellet | J126: 4.2 | K126: 68 | L126: default | M126: default | N126: 0.0009275452941
B127: 0.54 | D127: Uncertified | E127: 30.6 | F127: 54 | G127: 0.00850986 | I127: Pellet | J127: 4.2 | K127: 68 | L127: default | M127: default | N127: 0.0009275452941
B128: 0.54 | D128: Uncertified | E128: 30.6 | F128: 54 | G128: 0.00850986 | I128: Pellet | J128: 4.2 | K128: 68 | L128: default | M128: default | N128: 0.0009275452941
B129: 0.54 | D129: Uncertified | E129: 30.6 | F129: 54 | G129: 0.00850986 | I129: Pellet | J129: 4.2 | K129: 68 | L129: default | M129: default | N129: 0.0009275452941
B130: =Cords_of_Wood_Burned_per_UncertWoodstove -> 0.54 | D130: Uncertified | E130: 30.6 | F130: 54 | G130: 0.00850986 | I130: Pellet | J130: 4.2 | K130: 68 | L130: default | M130: default | N130: =IF(K130="","",J130*F130/K130*B130/2000*Conversion) -> 0.0009275452941
B131: 0.54 | D131: Uncertified | E131: 30.6 | F131: 54 | G131: 0.00850986 | I131: Pellet | J131: 4.2 | K131: 68 | L131: default | M131: default | N131: 0.0009275452941
B132: 0.54 | D132: Uncertified | E132: 30.6 | F132: 54 | G132: =IF(D132="","",E132*Conversion*B132/2000) -> 0.00850986 | I132: Pellet | J132: 4.2 | K132: 68 | L132: default | M132: default | N132: 0.0009275452941
B133: 0.54 | D133: Uncertified | E133: 30.6 | F133: 54 | G133: 0.00850986 | I133: Pellet | J133: 4.2 | K133: 68 | L133: default | M133: default | N133: 0.0009275452941
B134: 0.54 | D134: Uncertified | E134: 30.6 | F134: 54 | G134: 0.00850986 | I134: Pellet | J134: 4.2 | K134: 68 | L134: default | M134: default | N134: 0.0009275452941
B135: 0.54 | D135: Uncertified | E135: 30.6 | F135: 54 | G135: 0.00850986 | I135: Pellet | J135: 4.2 | K135: 68 | L135: default | M135: default | N135: 0.0009275452941
B136: 0.54 | D136: Uncertified | E136: 30.6 | F136: 54 | G136: 0.00850986 | I136: Pellet | J136: 4.2 | K136: 68 | L136: default | M136: default | N136: 0.0009275452941
B137: 0.54 | D137: Uncertified | E137: 30.6 | F137: 54 | G137: 0.00850986 | I137: Pellet | J137: 4.2 | K137: 68 | L137: default | M137: default | N137: 0.0009275452941
B138: 0.54 | D138: Uncertified | E138: 30.6 | F138: 54 | G138: 0.00850986 | I138: Pellet | J138: 4.2 | K138: 68 | L138: default | M138: default | N138: 0.0009275452941
B139: 0.54 | D139: Uncertified | E139: 30.6 | F139: 54 | G139: 0.00850986 | I139: Pellet | J139: 4.2 | K139: 68 | L139: default | M139: default | N139: 0.0009275452941
B140: 0.54 | D140: Uncertified | E140: 30.6 | F140: 54 | G140: 0.00850986 | I140: Pellet | J140: 4.2 | K140: 68 | L140: default | M140: default | N140: 0.0009275452941
B141: 0.54 | D141: Uncertified | E141: 30.6 | F141: 54 | G141: 0.00850986 | I141: Pellet | J141: 4.2 | K141: 68 | L141: default | M141: default | N141: 0.0009275452941
B142: 0.54 | D142: Uncertified | E142: 30.6 | F142: 54 | G142: 0.00850986 | I142: Pellet | J142: 4.2 | K142: 68 | L142: default | M142: default | N142: 0.0009275452941
B143: 0.54 | D143: Uncertified | E143: 30.6 | F143: 54 | G143: 0.00850986 | I143: Pellet | J143: 4.2 | K143: 68 | L143: default | M143: default | N143: 0.0009275452941
B144: 0.54 | D144: Uncertified | E144: 30.6 | F144: 54 | G144: 0.00850986 | I144: Pellet | J144: 4.2 | K144: 68 | L144: default | M144: default | N144: 0.0009275452941
B145: 0.54 | D145: Uncertified | E145: 30.6 | F145: 54 | G145: 0.00850986 | I145: Pellet | J145: 4.2 | K145: 68 | L145: default | M145: default | N145: 0.0009275452941
B146: 0.54 | D146: Uncertified | E146: 30.6 | F146: 54 | G146: 0.00850986 | I146: Pellet | J146: 4.2 | K146: 68 | L146: default | M146: default | N146: 0.0009275452941
B147: 0.54 | D147: Uncertified | E147: 30.6 | F147: 54 | G147: 0.00850986 | I147: Pellet | J147: 4.2 | K147: 68 | L147: default | M147: default | N147: 0.0009275452941
B148: 0.54 | D148: Uncertified | E148: 30.6 | F148: 54 | G148: 0.00850986 | I148: Pellet | J148: 4.2 | K148: 68 | L148: default | M148: default | N148: 0.0009275452941
B149: 0.54 | D149: Uncertified | E149: 30.6 | F149: 54 | G149: 0.00850986 | I149: Pellet | J149: 4.2 | K149: 68 | L149: default | M149: default | N149: 0.0009275452941
B150: 0.54 | D150: Uncertified | E150: 30.6 | F150: 54 | G150: 0.00850986 | I150: Pellet | J150: 4.2 | K150: 68 | L150: default | M150: default | N150: 0.0009275452941
B151: 0.54 | D151: Uncertified | E151: 30.6 | F151: 54 | G151: 0.00850986 | I151: Pellet | J151: 4.2 | K151: 68 | L151: default | M151: default | N151: 0.0009275452941
B152: 0.54 | D152: Uncertified | E152: 30.6 | F152: 54 | G152: 0.00850986 | I152: Non-wood (gas or electric) | J152: 0 | K152: 100 | L152: default | M152: default | N152: 0
B153: 0.54 | D153: Uncertified | E153: 30.6 | F153: 54 | G153: 0.00850986 | I153: Non-wood (gas or electric) | J153: 0 | K153: 100 | L153: default | M153: default | N153: 0
B154: 0.54 | D154: Uncertified | E154: 30.6 | F154: 54 | G154: 0.00850986 | I154: Non-wood (gas or electric) | J154: 0 | K154: 100 | L154: default | M154: default | N154: 0
B155: 0.54 | D155: Uncertified | E155: 30.6 | F155: 54 | G155: 0.00850986 | I155: Non-wood (gas or electric) | J155: 0 | K155: 100 | L155: default | M155: default | N155: 0
B156: 0.54 | D156: Uncertified | E156: 30.6 | F156: 54 | G156: 0.00850986 | I156: Non-wood (gas or electric) | J156: 0 | K156: 100 | L156: default | M156: default | N156: 0
B157: 0.54 | D157: Uncertified | E157: 30.6 | F157: 54 | G157: 0.00850986 | I157: Non-wood (gas or electric) | J157: 0 | K157: 100 | L157: default | M157: default | N157: 0
B158: 0.54 | D158: Uncertified | E158: 30.6 | F158: 54 | G158: 0.00850986 | I158: Non-wood (gas or electric) | J158: 0 | K158: 100 | L158: default | M158: default | N158: 0
B159: 0.54 | D159: Uncertified | E159: 30.6 | F159: 54 | G159: 0.00850986 | I159: Non-wood (gas or electric) | J159: 0 | K159: 100 | L159: default | M159: default | N159: 0
B160: 0.54 | D160: Uncertified | E160: 30.6 | F160: 54 | G160: 0.00850986 | I160: Non-wood (gas or electric) | J160: 0 | K160: 100 | L160: default | M160: default | N160: 0
B161: 0.54 | D161: Uncertified | E161: 30.6 | F161: 54 | G161: 0.00850986 | I161: Non-wood (gas or electric) | J161: 0 | K161: 100 | L161: default | M161: default | N161: 0
B162: 0.54 | D162: Uncertified | E162: 30.6 | F162: 54 | G162: 0.00850986 | I162: Non-wood (gas or electric) | J162: 0 | K162: 100 | L162: default | M162: default | N162: 0
B163: 0.54 | D163: Uncertified | E163: 30.6 | F163: 54 | G163: 0.00850986 | I163: Non-wood (gas or electric) | J163: 0 | K163: 100 | L163: default | M163: default | N163: 0
B164: 0.54 | D164: Uncertified | E164: 30.6 | F164: 54 | G164: 0.00850986 | I164: Non-wood (gas or electric) | J164: 0 | K164: 100 | L164: default | M164: default | N164: 0
B165: 0.54 | D165: Uncertified | E165: 30.6 | F165: 54 | G165: 0.00850986 | I165: Non-wood (gas or electric) | J165: 0 | K165: 100 | L165: default | M165: default | N165: 0
B166: 0.54 | D166: Uncertified | E166: 30.6 | F166: 54 | G166: 0.00850986 | I166: Non-wood (gas or electric) | J166: 0 | K166: 100 | L166: default | M166: default | N166: 0
B167: 0.54 | D167: Uncertified | E167: 30.6 | F167: 54 | G167: 0.00850986 | I167: Non-wood (gas or electric) | J167: 0 | K167: 100 | L167: default | M167: default | N167: 0
B168: 0.54 | D168: Uncertified | E168: 30.6 | F168: 54 | G168: 0.00850986 | I168: Non-wood (gas or electric) | J168: 0 | K168: 100 | L168: default | M168: default | N168: 0
B169: 0.54 | D169: Uncertified | E169: 30.6 | F169: 54 | G169: 0.00850986 | I169: Non-wood (gas or electric) | J169: 0 | K169: 100 | L169: default | M169: default | N169: 0
B170: 0.54 | D170: Uncertified | E170: 30.6 | F170: 54 | G170: 0.00850986 | I170: Non-wood (gas or electric) | J170: 0 | K170: 100 | L170: default | M170: default | N170: 0
B171: 0.54 | D171: Uncertified | E171: 30.6 | F171: 54 | G171: 0.00850986 | I171: Non-wood (gas or electric) | J171: 0 | K171: 100 | L171: default | M171: default | N171: 0
B172: 0.54 | D172: Uncertified | E172: 30.6 | F172: 54 | G172: 0.00850986 | I172: Non-wood (gas or electric) | J172: 0 | K172: 100 | L172: default | M172: default | N172: 0
B173: 0.54 | D173: Uncertified | E173: 30.6 | F173: 54 | G173: 0.00850986 | I173: Non-wood (gas or electric) | J173: 0 | K173: 100 | L173: default | M173: default | N173: 0
B174: 0.54 | D174: Uncertified | E174: 30.6 | F174: 54 | G174: 0.00850986 | I174: Non-wood (gas or electric) | J174: 0 | K174: 100 | L174: default | M174: default | N174: 0
B175: 0.54 | D175: Uncertified | E175: 30.6 | F175: 54 | G175: 0.00850986 | I175: Non-wood (gas or electric) | J175: 0 | K175: 100 | L175: default | M175: default | N175: 0
B176: 0.54 | D176: Uncertified | E176: 30.6 | F176: 54 | G176: 0.00850986 | I176: Non-wood (gas or electric) | J176: 0 | K176: 100 | L176: default | M176: default | N176: 0
B177: 0.54 | D177: Uncertified | E177: 30.6 | F177: 54 | G177: 0.00850986 | I177: Non-wood (gas or electric) | J177: 0 | K177: 100 | L177: default | M177: default | N177: 0
B178: 0.54 | D178: Uncertified | E178: 30.6 | F178: 54 | G178: 0.00850986 | I178: Non-wood (gas or electric) | J178: 0 | K178: 100 | L178: default | M178: default | N178: 0
B179: 0.54 | D179: Uncertified | E179: 30.6 | F179: 54 | G179: 0.00850986 | I179: Non-wood (gas or electric) | J179: 0 | K179: 100 | L179: default | M179: default | N179: 0
B180: 0.54 | D180: Uncertified | E180: 30.6 | F180: 54 | G180: 0.00850986 | I180: Non-wood (gas or electric) | J180: 0 | K180: 100 | L180: default | M180: default | N180: 0
B181: 0.54 | D181: Uncertified | E181: 30.6 | F181: 54 | G181: 0.00850986 | I181: Non-wood (gas or electric) | J181: 0 | K181: 100 | L181: default | M181: default | N181: 0
B182: 0.54 | D182: Uncertified | E182: 30.6 | F182: 54 | G182: 0.00850986 | I182: Non-wood (gas or electric) | J182: 0 | K182: 100 | L182: default | M182: default | N182: 0
B183: 0.54 | D183: Uncertified | E183: 30.6 | F183: 54 | G183: 0.00850986 | I183: Non-wood (gas or electric) | J183: 0 | K183: 100 | L183: default | M183: default | N183: 0
B184: 0.54 | D184: Uncertified | E184: 30.6 | F184: 54 | G184: 0.00850986 | I184: Non-wood (gas or electric) | J184: 0 | K184: 100 | L184: default | M184: default | N184: 0
B185: 0.54 | D185: Uncertified | E185: 30.6 | F185: 54 | G185: 0.00850986 | I185: Non-wood (gas or electric) | J185: 0 | K185: 100 | L185: default | M185: default | N185: 0
B186: 0.54 | D186: Uncertified | E186: 30.6 | F186: 54 | G186: 0.00850986 | I186: Non-wood (gas or electric) | J186: 0 | K186: 100 | L186: default | M186: default | N186: 0
B187: 0.54 | D187: Uncertified | E187: 30.6 | F187: 54 | G187: 0.00850986 | I187: Non-wood (gas or electric) | J187: 0 | K187: 100 | L187: default | M187: default | N187: 0
B188: 0.54 | D188: Uncertified | E188: 30.6 | F188: 54 | G188: 0.00850986 | I188: Non-wood (gas or electric) | J188: 0 | K188: 100 | L188: default | M188: default | N188: 0
B189: 0.54 | D189: Uncertified | E189: 30.6 | F189: 54 | G189: 0.00850986 | I189: Non-wood (gas or electric) | J189: 0 | K189: 100 | L189: default | M189: default | N189: 0
B190: 0.54 | D190: Uncertified | E190: 30.6 | F190: 54 | G190: 0.00850986 | I190: Non-wood (gas or electric) | J190: 0 | K190: 100 | L190: default | M190: default | N190: 0
B191: 0.54 | D191: Uncertified | E191: 30.6 | F191: 54 | G191: 0.00850986 | I191: Non-wood (gas or electric) | J191: 0 | K191: 100 | L191: default | M191: default | N191: 0
B192: 0.54 | D192: Uncertified | E192: 30.6 | F192: 54 | G192: 0.00850986 | I192: Non-wood (gas or electric) | J192: 0 | K192: 100 | L192: default | M192: default | N192: 0
B193: 0.54 | D193: Uncertified | E193: 30.6 | F193: 54 | G193: 0.00850986 | I193: Non-wood (gas or electric) | J193: 0 | K193: 100 | L193: default | M193: default | N193: 0
B194: =Cords_of_Wood_Burned_per_UncertWoodstove -> 0.54 | D194: Uncertified | E194: 30.6 | F194: 54 | G194: 0.00850986 | I194: Non-wood (gas or electric) | J194: 0 | K194: 100 | L194: default | M194: default | N194: =IF(K194="","",J194*F194/K194*B194/2000*Conversion) -> 0
B195: 0.54 | D195: Uncertified | E195: 30.6 | F195: 54 | G195: 0.00850986 | I195: Non-wood (gas or electric) | J195: 0 | K195: 100 | L195: default | M195: default | N195: 0
B196: 0.54 | D196: Uncertified | E196: 30.6 | F196: 54 | G196: =IF(D196="","",E196*Conversion*B196/2000) -> 0.00850986 | I196: Non-wood (gas or electric) | J196: 0 | K196: 100 | L196: default | M196: default | N196: 0
B197: 0.54 | D197: Uncertified | E197: 30.6 | F197: 54 | G197: 0.00850986 | I197: Non-wood (gas or electric) | J197: 0 | K197: 100 | L197: default | M197: default | N197: 0
B198: 0.54 | D198: Uncertified | E198: 30.6 | F198: 54 | G198: 0.00850986 | I198: Non-wood (gas or electric) | J198: 0 | K198: 100 | L198: default | M198: default | N198: 0
B199: 0.54 | D199: Uncertified | E199: 30.6 | F199: 54 | G199: 0.00850986 | I199: Non-wood (gas or electric) | J199: 0 | K199: 100 | L199: default | M199: default | N199: 0
B200: 0.54 | D200: Uncertified | E200: 30.6 | F200: 54 | G200: 0.00850986 | I200: Non-wood (gas or electric) | J200: 0 | K200: 100 | L200: default | M200: default | N200: 0
... 799 more rows

Sheet References
A1: This worksheet provides references/methodology for default values provided.
A3: 1. Burn Rates and Cordwood Densities
A4: Item | B4: Developed From | C4: TAB | D4: Full References
A5: cordwood density | B5: 2017 NEI Wagon-Wheel - RWC module | C5: cordwood_density
A6: cordwood burn rate | B6: 2017 NEI Wagon-Wheel - RWC module (see below for the Approach) | C6: cordwood-burnrate | D6: 2017 NEI Residential Wood Combustion Documentation and Wagon-Wheel can be found at: https://gaftp.epa.gov/air/nei/2017/doc/supporting_data/nonpoint/Residential%20Wood%20Combustion_DRAFT.DOCX and https://gaftp.epa.gov/air/nei/2017/doc/supporting_data/nonpoint/WagonWheel_4.27.20.zip
A9: Burnrate Approach
A10: Used WagonWheel tool from the 2017 NEI. Ran for all states for RWC sector.
A11: Created TAB "NEI-activity_data" by running Query 8 Distribution to SCCs (in the module "RWC")
A12: Made separate pivot tables for fireplace/stove versus central furnaces, took average across similar stove types (cordwood stove/insert,pellet stove, fireplace, forced air furnace, hydronic heater)
A14: 2017 NEI Wagon-Wheel and RWC References
A15: Documentation: 2017 NEI Technical Support Document, Section 4.15 and https://gaftp.epa.gov/air/nei/2017/doc/supporting_data/nonpoint/Residential%20Wood%20Combustion_DRAFT.DOCX
A16: Wagon Wheel and RWC Module (MS ACCESS): https://gaftp.epa.gov/air/nei/2017/doc/supporting_data/nonpoint/WagonWheel_4.27.20.zip
A18: 2. DEFAULTS: PM Emission Factor (EF) [Assume PM = PM10 = PM25] and Stove Efficiency Information
A19: Stove Type | B19: Default PM EF (lb/ton) | C19: Basis of Default EF (where provided)) | D19: Default Efficiency (%) | E19: Basis of Default Efficiency value (where provided)
A20: Uncertified | B20: 30.6 | C20: AP42_1996 | D20: 54 | E20: AP42_1996
A21: Certified-20 years or older | D21: 68 | E21: AP42_1996
A22: Non-wood | B22: 0 | C22: Assumption; while gas and electric will have emissions associated, assume they are negligible for estimation of change out reductions | D22: 100 | E22: Assumption - Value not used since using EF=0
A23: Pellet | B23: 4.2 | C23: AP42_1996 | D23: 68 | E23: AP42_1996
A24: Certified Hybrid
A25: Certified Catalytic
A26: Certified Non-catalytic
A28: EF and Efficiency References for Defaults
A29: AP42_1996 | B29: AP-42:Table 1.10-1 for Emission Factors, Table 1.10-5 for Efficiencies, Vol. 1. CH1.10, Final Section - Supplement B, October 1996. https://www.epa.gov/air-emissions-factors-and-quantification/ap-42-fifth-edition-volume-i-chapter-1-external-0

Sheet cordwood_density
A1: FIPS State and County Code | B1: County | C1: Postal Code | D1: Default Density (tons/cord) | E1: New Density (tons/cord) (same as Default unless S/L/T provided values to override default)
A2: 01001 | B2: Autauga | C2: AL | D2: 1.3062 | E2: 1.3062
A3: 01003 | B3: Baldwin | C3: AL | D3: 1.2411 | E3: 1.2411
A4: 01005 | B4: Barbour | C4: AL | D4: 1.2923 | E4: 1.2923
A5: 01007 | B5: Bibb | C5: AL | D5: 1.3513 | E5: 1.3513
A6: 01009 | B6: Blount | C6: AL | D6: 1.3483 | E6: 1.3483
A7: 01011 | B7: Bullock | C7: AL | D7: 1.2441 | E7: 1.2441
A8: 01013 | B8: Butler | C8: AL | D8: 1.2679 | E8: 1.2679
A9: 01015 | B9: Calhoun | C9: AL | D9: 1.338 | E9: 1.338
A10: 01017 | B10: Chambers | C10: AL | D10: 1.2087 | E10: 1.2087
A11: 01019 | B11: Cherokee | C11: AL | D11: 1.3571 | E11: 1.3571
A12: 01021 | B12: Chilton | C12: AL | D12: 1.2829 | E12: 1.2829
A13: 01023 | B13: Choctaw | C13: AL | D13: 1.2819 | E13: 1.2819
A14: 01025 | B14: Clarke | C14: AL | D14: 1.2798 | E14: 1.2798
A15: 01027 | B15: Clay | C15: AL | D15: 1.2878 | E15: 1.2878
A16: 01029 | B16: Cleburne | C16: AL | D16: 1.2247 | E16: 1.2247
A17: 01031 | B17: Coffee | C17: AL | D17: 1.2459 | E17: 1.2459
A18: 01033 | B18: Colbert | C18: AL | D18: 1.334 | E18: 1.334
A19: 01035 | B19: Conecuh | C19: AL | D19: 1.2796 | E19: 1.2796
A20: 01037 | B20: Coosa | C20: AL | D20: 1.3323 | E20: 1.3323
A21: 01039 | B21: Covington | C21: AL | D21: 1.3096 | E21: 1.3096
A22: 01041 | B22: Crenshaw | C22: AL | D22: 1.3039 | E22: 1.3039
A23: 01043 | B23: Cullman | C23: AL | D23: 1.2988 | E23: 1.2988
A24: 01045 | B24: Dale | C24: AL | D24: 1.2832 | E24: 1.2832
A25: 01047 | B25: Dallas | C25: AL | D25: 1.3305 | E25: 1.3305
A26: 01049 | B26: De Kalb | C26: AL | D26: 1.29 | E26: 1.29
A27: 01051 | B27: Elmore | C27: AL | D27: 1.2838 | E27: 1.2838
A28: 01053 | B28: Escambia | C28: AL | D28: 1.3182 | E28: 1.3182
A29: 01055 | B29: Etowah | C29: AL | D29: 1.2948 | E29: 1.2948
A30: 01057 | B30: Fayette | C30: AL | D30: 1.3005 | E30: 1.3005
A31: 01059 | B31: Franklin | C31: AL | D31: 1.3305 | E31: 1.3305
A32: 01061 | B32: Geneva | C32: AL | D32: 1.2303 | E32: 1.2303
A33: 01063 | B33: Greene | C33: AL | D33: 1.303 | E33: 1.303
A34: 01065 | B34: Hale | C34: AL | D34: 1.3693 | E34: 1.3693
A35: 01067 | B35: Henry | C35: AL | D35: 1.3643 | E35: 1.3643
A36: 01069 | B36: Houston | C36: AL | D36: 1.2134 | E36: 1.2134
A37: 01071 | B37: Jackson | C37: AL | D37: 1.4005 | E37: 1.4005
A38: 01073 | B38: Jefferson | C38: AL | D38: 1.3487 | E38: 1.3487
A39: 01075 | B39: Lamar | C39: AL | D39: 1.3055 | E39: 1.3055
A40: 01077 | B40: Lauderdale | C40: AL | D40: 1.4004 | E40: 1.4004
A41: 01079 | B41: Lawrence | C41: AL | D41: 1.2704 | E41: 1.2704
A42: 01081 | B42: Lee | C42: AL | D42: 1.1974 | E42: 1.1974
A43: 01083 | B43: Limestone | C43: AL | D43: 1.3527 | E43: 1.3527
A44: 01085 | B44: Lowndes | C44: AL | D44: 1.2814 | E44: 1.2814
A45: 01087 | B45: Macon | C45: AL | D45: 1.3544 | E45: 1.3544
A46: 01089 | B46: Madison | C46: AL | D46: 1.1841 | E46: 1.1841
A47: 01091 | B47: Marengo | C47: AL | D47: 1.2396 | E47: 1.2396
A48: 01093 | B48: Marion | C48: AL | D48: 1.309 | E48: 1.309
A49: 01095 | B49: Marshall | C49: AL | D49: 1.4183 | E49: 1.4183
A50: 01097 | B50: Mobile | C50: AL | D50: 1.2262 | E50: 1.2262
A51: 01099 | B51: Monroe | C51: AL | D51: 1.3081 | E51: 1.3081
A52: 01101 | B52: Montgomery | C52: AL | D52: 1.2799 | E52: 1.2799
A53: 01103 | B53: Morgan | C53: AL | D53: 1.4024 | E53: 1.4024
A54: 01105 | B54: Perry | C54: AL | D54: 1.2635 | E54: 1.2635
A55: 01107 | B55: Pickens | C55: AL | D55: 1.2734 | E55: 1.2734
A56: 01109 | B56: Pike | C56: AL | D56: 1.3257 | E56: 1.3257
A57: 01111 | B57: Randolph | C57: AL | D57: 1.2743 | E57: 1.2743
A58: 01113 | B58: Russell | C58: AL | D58: 1.2276 | E58: 1.2276
A59: 01115 | B59: St Clair | C59: AL | D59: 1.3657 | E59: 1.3657
A60: 01117 | B60: Shelby | C60: AL | D60: 1.3069 | E60: 1.3069
A61: 01119 | B61: Sumter | C61: AL | D61: 1.2983 | E61: 1.2983
A62: 01121 | B62: Talladega | C62: AL | D62: 1.3033 | E62: 1.3033
A63: 01123 | B63: Tallapoosa | C63: AL | D63: 1.2843 | E63: 1.2843
A64: 01125 | B64: Tuscaloosa | C64: AL | D64: 1.2955 | E64: 1.2955
A65: 01127 | B65: Walker | C65: AL | D65: 1.3648 | E65: 1.3648
A66: 01129 | B66: Washington | C66: AL | D66: 1.2876 | E66: 1.2876
A67: 01131 | B67: Wilcox | C67: AL | D67: 1.2989 | E67: 1.2989
A68: 01133 | B68: Winston | C68: AL | D68: 1.3079 | E68: 1.3079
A69: 02013 | B69: Aleutians East | C69: AK | D69: 1.0276 | E69: 1.683
A70: 02016 | B70: Aleutians West | C70: AK | D70: 1.0276 | E70: 1.683
A71: 02020 | B71: Anchorage | C71: AK | D71: 1.0276 | E71: 1.683
A72: 02050 | B72: Bethel | C72: AK | D72: 1.0276 | E72: 1.683
A73: 02060 | B73: Bristol Bay | C73: AK | D73: 1.0276 | E73: 1.683
A74: 02068 | B74: Denali | C74: AK | D74: 1.0276 | E74: 1.683
A75: 02070 | B75: Dillingham | C75: AK | D75: 1.0276 | E75: 1.683
A76: 02090 | B76: Fairbanks North Star | C76: AK | D76: 1.1272 | E76: 1.683
A77: 02100 | B77: Haines | C77: AK | D77: 1.0276 | E77: 1.683
A78: 02105 | B78: Hoonah Angoon | C78: AK | D78: 1.0276 | E78: 1.683
A79: 02110 | B79: Juneau | C79: AK | D79: 1.0276 | E79: 1.683
A80: 02122 | B80: Kenai Peninsula | C80: AK | D80: 1.0276 | E80: 1.683
A81: 02130 | B81: Ketchikan Gateway | C81: AK | D81: 1.0276 | E81: 1.683
A82: 02150 | B82: Kodiak Island | C82: AK | D82: 1.0276 | E82: 1.683
A83: 02158 | B83: Kusilvak | C83: AK | D83: 1.0276 | E83: 1.683
A84: 02164 | B84: Lake and Peninsula | C84: AK | D84: 1.0276 | E84: 1.683
A85: 02170 | B85: Matanuska Susitna | C85: AK | D85: 1.0276 | E85: 1.683
A86: 02180 | B86: Nome | C86: AK | D86: 1.0276 | E86: 1.683
A87: 02185 | B87: North Slope | C87: AK | D87: 1.0276 | E87: 1.683
A88: 02188 | B88: Northwest Arctic | C88: AK | D88: 1.0276 | E88: 1.683
A89: 02195 | B89: Petersburg | C89: AK | D89: 1.0276 | E89: 1.683
A90: 02198 | B90: Prince of Wales-Hyder | C90: AK | D90: 1.0351 | E90: 1.683
A91: 02220 | B91: Sitka | C91: AK | D91: 1.0276 | E91: 1.683
A92: 02230 | B92: Skagway | C92: AK | D92: 1.0276 | E92: 1.683
A93: 02240 | B93: Southeast Fairbanks | C93: AK | D93: 1.0276 | E93: 1.683
A94: 02261 | B94: Valdez Cordova | C94: AK | D94: 1.0276 | E94: 1.683
A95: 02275 | B95: Wrangell | C95: AK | D95: 1.0351 | E95: 1.683
A96: 02282 | B96: Yakutat | C96: AK | D96: 1.0276 | E96: 1.683
A97: 02290 | B97: Yukon Koyukuk | C97: AK | D97: 1.0276 | E97: 1.683
A98: 04001 | B98: Apache | C98: AZ | D98: 1.0055 | E98: 1.0055
A99: 04003 | B99: Cochise | C99: AZ | D99: 1.017 | E99: 1.017
A100: 04005 | B100: Coconino | C100: AZ | D100: 1.0185 | E100: 1.0185
A101: 04007 | B101: Gila | C101: AZ | D101: 1.0276 | E101: 1.0276
A102: 04009 | B102: Graham | C102: AZ | D102: 1.0276 | E102: 1.0276
A103: 04011 | B103: Greenlee | C103: AZ | D103: 1.0219 | E103: 1.0219
A104: 04012 | B104: La Paz | C104: AZ | D104: 1.0276 | E104: 1.0276
A105: 04013 | B105: Maricopa | C105: AZ | D105: 1.0176 | E105: 1.0176
A106: 04015 | B106: Mohave | C106: AZ | D106: 1.0171 | E106: 1.0171
A107: 04017 | B107: Navajo | C107: AZ | D107: 1.0276 | E107: 1.0276
A108: 04019 | B108: Pima | C108: AZ | D108: 1.017 | E108: 1.017
A109: 04021 | B109: Pinal | C109: AZ | D109: 1.0176 | E109: 1.0176
A110: 04023 | B110: Santa Cruz | C110: AZ | D110: 1.017 | E110: 1.017
A111: 04025 | B111: Yavapai | C111: AZ | D111: 1.0171 | E111: 1.0171
A112: 04027 | B112: Yuma | C112: AZ | D112: 1.0276 | E112: 1.0276
A113: 05001 | B113: Arkansas | C113: AR | D113: 1.2767 | E113: 1.2767
A114: 05003 | B114: Ashley | C114: AR | D114: 1.3307 | E114: 1.3307
A115: 05005 | B115: Baxter | C115: AR | D115: 1.4112 | E115: 1.4112
A116: 05007 | B116: Benton | C116: AR | D116: 1.4399 | E116: 1.4399
A117: 05009 | B117: Boone | C117: AR | D117: 1.4603 | E117: 1.4603
A118: 05011 | B118: Bradley | C118: AR | D118: 1.3251 | E118: 1.3251
A119: 05013 | B119: Calhoun | C119: AR | D119: 1.3008 | E119: 1.3008
A120: 05015 | B120: Carroll | C120: AR | D120: 1.4423 | E120: 1.4423
A121: 05017 | B121: Chicot | C121: AR | D121: 1.2768 | E121: 1.2768
A122: 05019 | B122: Clark | C122: AR | D122: 1.3193 | E122: 1.3193
A123: 05021 | B123: Clay | C123: AR | D123: 1.3881 | E123: 1.3881
A124: 05023 | B124: Cleburne | C124: AR | D124: 1.3349 | E124: 1.3349
A125: 05025 | B125: Cleveland | C125: AR | D125: 1.3249 | E125: 1.3249
A126: 05027 | B126: Columbia | C126: AR | D126: 1.3018 | E126: 1.3018
A127: 05029 | B127: Conway | C127: AR | D127: 1.2265 | E127: 1.2265
A128: 05031 | B128: Craighead | C128: AR | D128: 1.3477 | E128: 1.3477
A129: 05033 | B129: Crawford | C129: AR | D129: 1.3715 | E129: 1.3715
A130: 05035 | B130: Crittenden | C130: AR | D130: 1.2183 | E130: 1.2183
A131: 05037 | B131: Cross | C131: AR | D131: 1.4759 | E131: 1.4759
A132: 05039 | B132: Dallas | C132: AR | D132: 1.2942 | E132: 1.2942
A133: 05041 | B133: Desha | C133: AR | D133: 1.2335 | E133: 1.2335
A134: 05043 | B134: Drew | C134: AR | D134: 1.3309 | E134: 1.3309
A135: 05045 | B135: Faulkner | C135: AR | D135: 1.3911 | E135: 1.3911
A136: 05047 | B136: Franklin | C136: AR | D136: 1.4207 | E136: 1.4207
A137: 05049 | B137: Fulton | C137: AR | D137: 1.4436 | E137: 1.4436
A138: 05051 | B138: Garland | C138: AR | D138: 1.3365 | E138: 1.3365
A139: 05053 | B139: Grant | C139: AR | D139: 1.2821 | E139: 1.2821
A140: 05055 | B140: Greene | C140: AR | D140: 1.3477 | E140: 1.3477
A141: 05057 | B141: Hempstead | C141: AR | D141: 1.2742 | E141: 1.2742
A142: 05059 | B142: Hot Spring | C142: AR | D142: 1.3161 | E142: 1.3161
A143: 05061 | B143: Howard | C143: AR | D143: 1.3121 | E143: 1.3121
A144: 05063 | B144: Independence | C144: AR | D144: 1.4162 | E144: 1.4162
A145: 05065 | B145: Izard | C145: AR | D145: 1.4092 | E145: 1.4092
A146: 05067 | B146: Jackson | C146: AR | D146: 1.2022 | E146: 1.2022
A147: 05069 | B147: Jefferson | C147: AR | D147: 1.3976 | E147: 1.3976
A148: 05071 | B148: Johnson | C148: AR | D148: 1.4051 | E148: 1.4051
A149: 05073 | B149: Lafayette | C149: AR | D149: 1.2787 | E149: 1.2787
A150: 05075 | B150: Lawrence | C150: AR | D150: 1.4203 | E150: 1.4203
A151: 05077 | B151: Lee | C151: AR | D151: 1.5085 | E151: 1.5085
A152: 05079 | B152: Lincoln | C152: AR | D152: 1.4279 | E152: 1.4279
A153: 05081 | B153: Little River | C153: AR | D153: 1.4013 | E153: 1.4013
A154: 05083 | B154: Logan | C154: AR | D154: 1.3673 | E154: 1.3673
A155: 05085 | B155: Lonoke | C155: AR | D155: 1.2925 | E155: 1.2925
A156: 05087 | B156: Madison | C156: AR | D156: 1.4098 | E156: 1.4098
A157: 05089 | B157: Marion | C157: AR | D157: 1.4472 | E157: 1.4472
A158: 05091 | B158: Miller | C158: AR | D158: 1.3234 | E158: 1.3234
A159: 05093 | B159: Mississippi | C159: AR | D159: 0.924 | E159: 0.924
A160: 05095 | B160: Monroe | C160: AR | D160: 1.3521 | E160: 1.3521
A161: 05097 | B161: Montgomery | C161: AR | D161: 1.375 | E161: 1.375
A162: 05099 | B162: Nevada | C162: AR | D162: 1.3256 | E162: 1.3256
A163: 05101 | B163: Newton | C163: AR | D163: 1.4299 | E163: 1.4299
A164: 05103 | B164: Ouachita | C164: AR | D164: 1.3314 | E164: 1.3314
A165: 05105 | B165: Perry | C165: AR | D165: 1.3112 | E165: 1.3112
A166: 05107 | B166: Phillips | C166: AR | D166: 1.3217 | E166: 1.3217
A167: 05109 | B167: Pike | C167: AR | D167: 1.306 | E167: 1.306
A168: 05111 | B168: Poinsett | C168: AR | D168: 1.3714 | E168: 1.3714
A169: 05113 | B169: Polk | C169: AR | D169: 1.372 | E169: 1.372
A170: 05115 | B170: Pope | C170: AR | D170: 1.3583 | E170: 1.3583
A171: 05117 | B171: Prairie | C171: AR | D171: 1.2398 | E171: 1.2398
A172: 05119 | B172: Pulaski | C172: AR | D172: 1.3259 | E172: 1.3259
A173: 05121 | B173: Randolph | C173: AR | D173: 1.3929 | E173: 1.3929
A174: 05123 | B174: St Francis | C174: AR | D174: 1.4136 | E174: 1.4136
A175: 05125 | B175: Saline | C175: AR | D175: 1.269 | E175: 1.269
A176: 05127 | B176: Scott | C176: AR | D176: 1.4263 | E176: 1.4263
A177: 05129 | B177: Searcy | C177: AR | D177: 1.4439 | E177: 1.4439
A178: 05131 | B178: Sebastian | C178: AR | D178: 1.0948 | E178: 1.0948
A179: 05133 | B179: Sevier | C179: AR | D179: 1.3578 | E179: 1.3578
A180: 05135 | B180: Sharp | C180: AR | D180: 1.4496 | E180: 1.4496
A181: 05137 | B181: Stone | C181: AR | D181: 1.3793 | E181: 1.3793
A182: 05139 | B182: Union | C182: AR | D182: 1.3049 | E182: 1.3049
A183: 05141 | B183: Van Buren | C183: AR | D183: 1.4035 | E183: 1.4035
A184: 05143 | B184: Washington | C184: AR | D184: 1.4121 | E184: 1.4121
A185: 05145 | B185: White | C185: AR | D185: 1.361 | E185: 1.361
A186: 05147 | B186: Woodruff | C186: AR | D186: 1.4447 | E186: 1.4447
A187: 05149 | B187: Yell | C187: AR | D187: 1.3595 | E187: 1.3595
A188: 06001 | B188: Alameda | C188: CA | D188: 1.0276 | E188: 1.0276
A189: 06003 | B189: Alpine | C189: CA | D189: 1.0367 | E189: 1.0367
A190: 06005 | B190: Amador | C190: CA | D190: 1.0394 | E190: 1.0394
A191: 06007 | B191: Butte | C191: CA | D191: 1.0987 | E191: 1.0987
A192: 06009 | B192: Calaveras | C192: CA | D192: 1.0425 | E192: 1.0425
A193: 06011 | B193: Colusa | C193: CA | D193: 1.0276 | E193: 1.0276
A194: 06013 | B194: Contra Costa | C194: CA | D194: 1.0276 | E194: 1.0276
A195: 06015 | B195: Del Norte | C195: CA | D195: 1.2022 | E195: 1.2022
A196: 06017 | B196: El Dorado | C196: CA | D196: 1.0485 | E196: 1.0485
A197: 06019 | B197: Fresno | C197: CA | D197: 1.0276 | E197: 1.0276
A198: 06021 | B198: Glenn | C198: CA | D198: 1.017 | E198: 1.017
A199: 06023 | B199: Humboldt | C199: CA | D199: 1.0837 | E199: 1.0837
A200: 06025 | B200: Imperial | C200: CA | D200: 1.0276 | E200: 1.0276
... 2943 more rows

Sheet cordwood-burnrate
A3: Average of Burn Rate - CORDS WOOD PER APPLIANCE PER COUNTY | D3: Appliance Type
A4: StateAndCountyFIPSCode | B4: CountyName | C4: PostalStateCode | D4: Fireplace: general | E4: Furnace | F4: Hydronic heater | G4: Woodstove or Fireplace Insert
A5: 01001 | B5: Autauga | C5: AL | D5: 0.19 | E5: 1.19 | F5: 1.19 | G5: 0.54
A6: 01003 | B6: Baldwin | C6: AL | D6: 0.19 | E6: 1.15 | F6: 1.15 | G6: 0.48
A7: 01005 | B7: Barbour | C7: AL | D7: 0.20 | E7: 1.20 | F7: 1.20 | G7: 0.58
A8: 01007 | B8: Bibb | C8: AL | D8: 0.20 | E8: 1.25 | F8: 1.25 | G8: 0.63
A9: 01009 | B9: Blount | C9: AL | D9: 0.22 | E9: 1.28 | F9: 1.28 | G9: 0.57
A10: 01011 | B10: Bullock | C10: AL | D10: 0.20 | E10: 1.22 | F10: 1.22 | G10: 0.58
A11: 01013 | B11: Butler | C11: AL | D11: 0.20 | E11: 1.18 | F11: 1.18 | G11: 0.62
A12: 01015 | B12: Calhoun | C12: AL | D12: 0.18 | E12: 1.18 | F12: 1.18 | G12: 0.55
A13: 01017 | B13: Chambers | C13: AL | D13: 0.19 | E13: 1.21 | F13: 1.21 | G13: 0.58
A14: 01019 | B14: Cherokee | C14: AL | D14: 0.22 | E14: 1.26 | F14: 1.26 | G14: 0.55
A15: 01021 | B15: Chilton | C15: AL | D15: 0.21 | E15: 1.27 | F15: 1.27 | G15: 0.59
A16: 01023 | B16: Choctaw | C16: AL | D16: 0.22 | E16: 1.24 | F16: 1.24 | G16: 0.65
A17: 01025 | B17: Clarke | C17: AL | D17: 0.20 | E17: 1.18 | F17: 1.18 | G17: 0.63
A18: 01027 | B18: Clay | C18: AL | D18: 0.22 | E18: 1.21 | F18: 1.21 | G18: 0.66
A19: 01029 | B19: Cleburne | C19: AL | D19: 0.21 | E19: 1.27 | F19: 1.27 | G19: 0.65
A20: 01031 | B20: Coffee | C20: AL | D20: 0.20 | E20: 1.19 | F20: 1.19 | G20: 0.53
A21: 01033 | B21: Colbert | C21: AL | D21: 0.19 | E21: 1.21 | F21: 1.21 | G21: 0.52
A22: 01035 | B22: Conecuh | C22: AL | D22: 0.22 | E22: 1.20 | F22: 1.20 | G22: 0.60
A23: 01037 | B23: Coosa | C23: AL | D23: 0.22 | E23: 1.27 | F23: 1.27 | G23: 0.65
A24: 01039 | B24: Covington | C24: AL | D24: 0.21 | E24: 1.17 | F24: 1.17 | G24: 0.57
A25: 01041 | B25: Crenshaw | C25: AL | D25: 0.22 | E25: 1.17 | F25: 1.17 | G25: 0.62
A26: 01043 | B26: Cullman | C26: AL | D26: 0.21 | E26: 1.27 | F26: 1.27 | G26: 0.53
A27: 01045 | B27: Dale | C27: AL | D27: 0.20 | E27: 1.19 | F27: 1.19 | G27: 0.54
A28: 01047 | B28: Dallas | C28: AL | D28: 0.20 | E28: 1.11 | F28: 1.11 | G28: 0.55
A29: 01049 | B29: De Kalb | C29: AL | D29: 0.22 | E29: 1.27 | F29: 1.27 | G29: 0.55
A30: 01051 | B30: Elmore | C30: AL | D30: 0.20 | E30: 1.22 | F30: 1.22 | G30: 0.55
A31: 01053 | B31: Escambia | C31: AL | D31: 0.21 | E31: 1.18 | F31: 1.18 | G31: 0.56
A32: 01055 | B32: Etowah | C32: AL | D32: 0.18 | E32: 1.15 | F32: 1.15 | G32: 0.52
A33: 01057 | B33: Fayette | C33: AL | D33: 0.21 | E33: 1.23 | F33: 1.23 | G33: 0.64
A34: 01059 | B34: Franklin | C34: AL | D34: 0.20 | E34: 1.22 | F34: 1.22 | G34: 0.58
A35: 01061 | B35: Geneva | C35: AL | D35: 0.23 | E35: 1.21 | F35: 1.21 | G35: 0.53
A36: 01063 | B36: Greene | C36: AL | D36: 0.22 | E36: 1.27 | F36: 1.27 | G36: 0.60
A37: 01065 | B37: Hale | C37: AL | D37: 0.22 | E37: 1.23 | F37: 1.23 | G37: 0.58
A38: 01067 | B38: Henry | C38: AL | D38: 0.23 | E38: 1.19 | F38: 1.19 | G38: 0.55
A39: 01069 | B39: Houston | C39: AL | D39: 0.19 | E39: 1.17 | F39: 1.17 | G39: 0.46
A40: 01071 | B40: Jackson | C40: AL | D40: 0.21 | E40: 1.26 | F40: 1.26 | G40: 0.58
A41: 01073 | B41: Jefferson | C41: AL | D41: 0.14 | E41: 1.08 | F41: 1.08 | G41: 0.50
A42: 01075 | B42: Lamar | C42: AL | D42: 0.21 | E42: 1.18 | F42: 1.18 | G42: 0.65
A43: 01077 | B43: Lauderdale | C43: AL | D43: 0.20 | E43: 1.22 | F43: 1.22 | G43: 0.49
A44: 01079 | B44: Lawrence | C44: AL | D44: 0.22 | E44: 1.27 | F44: 1.27 | G44: 0.54
A45: 01081 | B45: Lee | C45: AL | D45: 0.16 | E45: 1.18 | F45: 1.18 | G45: 0.53
A46: 01083 | B46: Limestone | C46: AL | D46: 0.21 | E46: 1.25 | F46: 1.25 | G46: 0.47
A47: 01085 | B47: Lowndes | C47: AL | D47: 0.23 | E47: 1.24 | F47: 1.24 | G47: 0.59
A48: 01087 | B48: Macon | C48: AL | D48: 0.20 | E48: 1.16 | F48: 1.16 | G48: 0.58
A49: 01089 | B49: Madison | C49: AL | D49: 0.16 | E49: 1.18 | F49: 1.18 | G49: 0.44
A50: 01091 | B50: Marengo | C50: AL | D50: 0.20 | E50: 1.21 | F50: 1.21 | G50: 0.59
A51: 01093 | B51: Marion | C51: AL | D51: 0.21 | E51: 1.17 | F51: 1.17 | G51: 0.62
A52: 01095 | B52: Marshall | C52: AL | D52: 0.20 | E52: 1.21 | F52: 1.21 | G52: 0.50
A53: 01097 | B53: Mobile | C53: AL | D53: 0.17 | E53: 1.06 | F53: 1.06 | G53: 0.45
A54: 01099 | B54: Monroe | C54: AL | D54: 0.21 | E54: 1.20 | F54: 1.20 | G54: 0.61
A55: 01101 | B55: Montgomery | C55: AL | D55: 0.17 | E55: 1.09 | F55: 1.09 | G55: 0.47
A56: 01103 | B56: Morgan | C56: AL | D56: 0.19 | E56: 1.24 | F56: 1.24 | G56: 0.49
A57: 01105 | B57: Perry | C57: AL | D57: 0.22 | E57: 1.20 | F57: 1.20 | G57: 0.61
A58: 01107 | B58: Pickens | C58: AL | D58: 0.22 | E58: 1.21 | F58: 1.21 | G58: 0.64
A59: 01109 | B59: Pike | C59: AL | D59: 0.20 | E59: 1.17 | F59: 1.17 | G59: 0.56
A60: 01111 | B60: Randolph | C60: AL | D60: 0.21 | E60: 1.25 | F60: 1.25 | G60: 0.60
A61: 01113 | B61: Russell | C61: AL | D61: 0.19 | E61: 1.16 | F61: 1.16 | G61: 0.55
A62: 01115 | B62: St Clair | C62: AL | D62: 0.20 | E62: 1.23 | F62: 1.23 | G62: 0.58
A63: 01117 | B63: Shelby | C63: AL | D63: 0.17 | E63: 1.17 | F63: 1.17 | G63: 0.53
A64: 01119 | B64: Sumter | C64: AL | D64: 0.22 | E64: 1.23 | F64: 1.23 | G64: 0.61
A65: 01121 | B65: Talladega | C65: AL | D65: 0.19 | E65: 1.22 | F65: 1.22 | G65: 0.56
A66: 01123 | B66: Tallapoosa | C66: AL | D66: 0.20 | E66: 1.22 | F66: 1.22 | G66: 0.60
A67: 01125 | B67: Tuscaloosa | C67: AL | D67: 0.17 | E67: 1.18 | F67: 1.18 | G67: 0.56
A68: 01127 | B68: Walker | C68: AL | D68: 0.20 | E68: 1.26 | F68: 1.26 | G68: 0.60
A69: 01129 | B69: Washington | C69: AL | D69: 0.22 | E69: 1.22 | F69: 1.22 | G69: 0.64
A70: 01131 | B70: Wilcox | C70: AL | D70: 0.22 | E70: 1.24 | F70: 1.24 | G70: 0.62
A71: 01133 | B71: Winston | C71: AL | D71: 0.21 | E71: 1.25 | F71: 1.25 | G71: 0.61
A72: 02013 | B72: Aleutians East | C72: AK | D72: 0.02 | G72: 0.41
A73: 02016 | B73: Aleutians West | C73: AK | D73: 1.31 | G73: 2.05
A74: 02020 | B74: Anchorage | C74: AK | D74: 1.23 | G74: 4.91
A75: 02050 | B75: Bethel | C75: AK | D75: 1.64 | G75: 4.09
A76: 02060 | B76: Bristol Bay | C76: AK | D76: 1.64 | G76: 4.09
A77: 02068 | B77: Denali | C77: AK | D77: 4.91 | E77: 6.55 | F77: 6.55 | G77: 5.32
A78: 02070 | B78: Dillingham | C78: AK | D78: 1.64 | G78: 4.09
A79: 02090 | B79: Fairbanks North Star | C79: AK | D79: 4.48 | E79: 5.97 | F79: 5.97 | G79: 4.85
A80: 02100 | B80: Haines | C80: AK | D80: 0.82 | E80: 3.28 | F80: 3.28
A81: 02105 | B81: Hoonah Angoon | C81: AK | D81: 0.82 | E81: 3.28 | F81: 3.28 | G81: 2.46
A82: 02110 | B82: Juneau | C82: AK | D82: 0.82 | E82: 3.28 | F82: 3.28 | G82: 2.46
A83: 02122 | B83: Kenai Peninsula | C83: AK | D83: 0.82 | E83: 4.91 | F83: 4.91 | G83: 3.23
A84: 02130 | B84: Ketchikan Gateway | C84: AK | D84: 0.82 | E84: 3.28 | F84: 3.28 | G84: 3.69
A85: 02150 | B85: Kodiak Island | C85: AK | D85: 0.82 | E85: 4.91 | F85: 4.91 | G85: 3.23
A86: 02158 | B86: Kusilvak | C86: AK | D86: 1.64 | G86: 4.09
A87: 02164 | B87: Lake and Peninsula | C87: AK | D87: 1.64 | G87: 4.09
A88: 02170 | B88: Matanuska Susitna | C88: AK | D88: 1.23 | E88: 4.91 | F88: 4.91 | G88: 4.91
A89: 02180 | B89: Nome | C89: AK | D89: 0.82 | G89: 4.09
A90: 02185 | B90: North Slope | C90: AK | D90: 0.00
A91: 02188 | B91: Northwest Arctic | C91: AK | D91: 0.82
A92: 02195 | B92: Petersburg | C92: AK | D92: 0.82 | E92: 3.28 | F92: 3.28 | G92: 2.46
A93: 02198 | B93: Prince of Wales-Hyder | C93: AK | D93: 0.81 | E93: 3.25 | F93: 3.25 | G93: 2.44
A94: 02220 | B94: Sitka | C94: AK | D94: 0.82 | G94: 2.46
A95: 02230 | B95: Skagway | C95: AK | D95: 0.82 | E95: 3.28 | F95: 3.28 | G95: 2.46
A96: 02240 | B96: Southeast Fairbanks | C96: AK | D96: 4.91 | E96: 6.55 | F96: 6.55 | G96: 5.32
A97: 02261 | B97: Valdez Cordova | C97: AK | D97: 0.82 | G97: 2.46
A98: 02275 | B98: Wrangell | C98: AK | D98: 0.81 | E98: 3.25 | F98: 3.25 | G98: 2.44
A99: 02282 | B99: Yakutat | C99: AK | D99: 0.82 | E99: 3.28 | F99: 3.28 | G99: 2.46
A100: 02290 | B100: Yukon Koyukuk | C100: AK | D100: 1.64 | E100: 6.55 | F100: 6.55 | G100: 4.09
A101: 04001 | B101: Apache | C101: AZ | D101: 0.19 | E101: 1.16 | F101: 1.16 | G101: 0.40
A102: 04003 | B102: Cochise | C102: AZ | D102: 0.19 | E102: 0.95 | F102: 0.95 | G102: 0.32
A103: 04005 | B103: Coconino | C103: AZ | D103: 0.17 | E103: 1.10 | F103: 1.10 | G103: 0.36
A104: 04007 | B104: Gila | C104: AZ | D104: 0.19 | E104: 1.01 | F104: 1.01 | G104: 0.36
A105: 04009 | B105: Graham | C105: AZ | D105: 0.19 | E105: 0.96 | F105: 0.96 | G105: 0.33
A106: 04011 | B106: Greenlee | C106: AZ | D106: 0.19 | E106: 0.93 | F106: 0.93 | G106: 0.36
A107: 04012 | B107: La Paz | C107: AZ | D107: 0.21 | E107: 1.01 | F107: 1.01 | G107: 0.33
A108: 04013 | B108: Maricopa | C108: AZ | D108: 0.16 | E108: 0.90 | F108: 0.90 | G108: 0.27
A109: 04015 | B109: Mohave | C109: AZ | D109: 0.18 | E109: 1.00 | F109: 1.00 | G109: 0.32
A110: 04017 | B110: Navajo | C110: AZ | D110: 0.19 | E110: 1.13 | F110: 1.13 | G110: 0.37
A111: 04019 | B111: Pima | C111: AZ | D111: 0.17 | E111: 0.94 | F111: 0.94 | G111: 0.29
A112: 04021 | B112: Pinal | C112: AZ | D112: 0.18 | E112: 0.93 | F112: 0.93 | G112: 0.30
A113: 04023 | B113: Santa Cruz | C113: AZ | D113: 0.19 | E113: 0.95 | F113: 0.95 | G113: 0.32
A114: 04025 | B114: Yavapai | C114: AZ | D114: 0.19 | E114: 0.98 | F114: 0.98 | G114: 0.33
A115: 04027 | B115: Yuma | C115: AZ | D115: 0.18 | E115: 0.96 | F115: 0.96 | G115: 0.29
A116: 05001 | B116: Arkansas | C116: AR | D116: 0.46 | E116: 2.73 | F116: 2.73 | G116: 1.06
A117: 05003 | B117: Ashley | C117: AR | D117: 0.45 | E117: 2.71 | F117: 2.71 | G117: 1.25
A118: 05005 | B118: Baxter | C118: AR | D118: 0.45 | E118: 2.94 | F118: 2.94 | G118: 1.31
A119: 05007 | B119: Benton | C119: AR | D119: 0.40 | E119: 2.81 | F119: 2.81 | G119: 1.08
A120: 05009 | B120: Boone | C120: AR | D120: 0.46 | E120: 2.93 | F120: 2.93 | G120: 1.19
A121: 05011 | B121: Bradley | C121: AR | D121: 0.44 | E121: 2.75 | F121: 2.75 | G121: 1.39
A122: 05013 | B122: Calhoun | C122: AR | D122: 0.49 | E122: 2.78 | F122: 2.78 | G122: 1.50
A123: 05015 | B123: Carroll | C123: AR | D123: 0.48 | E123: 2.98 | F123: 2.98 | G123: 1.27
A124: 05017 | B124: Chicot | C124: AR | D124: 0.51 | E124: 2.70 | F124: 2.70 | G124: 1.02
A125: 05019 | B125: Clark | C125: AR | D125: 0.44 | E125: 2.68 | F125: 2.68 | G125: 1.39
A126: 05021 | B126: Clay | C126: AR | D126: 0.50 | E126: 2.73 | F126: 2.73 | G126: 1.05
A127: 05023 | B127: Cleburne | C127: AR | D127: 0.47 | E127: 3.02 | F127: 3.02 | G127: 1.33
A128: 05025 | B128: Cleveland | C128: AR | D128: 0.49 | E128: 2.89 | F128: 2.89 | G128: 1.52
A129: 05027 | B129: Columbia | C129: AR | D129: 0.43 | E129: 2.70 | F129: 2.70 | G129: 1.44
A130: 05029 | B130: Conway | C130: AR | D130: 0.47 | E130: 2.79 | F130: 2.79 | G130: 1.26
A131: 05031 | B131: Craighead | C131: AR | D131: 0.45 | E131: 2.73 | F131: 2.73 | G131: 0.96
A132: 05033 | B132: Crawford | C132: AR | D132: 0.44 | E132: 2.78 | F132: 2.78 | G132: 1.28
A133: 05035 | B133: Crittenden | C133: AR | D133: 0.45 | E133: 2.63 | F133: 2.63 | G133: 0.91
A134: 05037 | B134: Cross | C134: AR | D134: 0.51 | E134: 2.76 | F134: 2.76 | G134: 1.02
A135: 05039 | B135: Dallas | C135: AR | D135: 0.44 | E135: 2.74 | F135: 2.74 | G135: 1.43
A136: 05041 | B136: Desha | C136: AR | D136: 0.47 | E136: 2.63 | F136: 2.63 | G136: 1.02
A137: 05043 | B137: Drew | C137: AR | D137: 0.43 | E137: 2.80 | F137: 2.80 | G137: 1.27
A138: 05045 | B138: Faulkner | C138: AR | D138: 0.41 | E138: 2.71 | F138: 2.71 | G138: 1.12
A139: 05047 | B139: Franklin | C139: AR | D139: 0.49 | E139: 2.84 | F139: 2.84 | G139: 1.29
A140: 05049 | B140: Fulton | C140: AR | D140: 0.51 | E140: 3.08 | F140: 3.08 | G140: 1.28
A141: 05051 | B141: Garland | C141: AR | D141: 0.40 | E141: 2.79 | F141: 2.79 | G141: 1.31
A142: 05053 | B142: Grant | C142: AR | D142: 0.45 | E142: 2.80 | F142: 2.80 | G142: 1.44
A143: 05055 | B143: Greene | C143: AR | D143: 0.47 | E143: 2.87 | F143: 2.87 | G143: 1.03
A144: 05057 | B144: Hempstead | C144: AR | D144: 0.46 | E144: 2.67 | F144: 2.67 | G144: 1.25
A145: 05059 | B145: Hot Spring | C145: AR | D145: 0.45 | E145: 2.85 | F145: 2.85 | G145: 1.39
A146: 05061 | B146: Howard | C146: AR | D146: 0.47 | E146: 2.68 | F146: 2.68 | G146: 1.30
A147: 05063 | B147: Independence | C147: AR | D147: 0.47 | E147: 2.87 | F147: 2.87 | G147: 1.23
A148: 05065 | B148: Izard | C148: AR | D148: 0.50 | E148: 3.06 | F148: 3.06 | G148: 1.38
A149: 05067 | B149: Jackson | C149: AR | D149: 0.50 | E149: 2.69 | F149: 2.69 | G149: 1.04
A150: 05069 | B150: Jefferson | C150: AR | D150: 0.44 | E150: 2.62 | F150: 2.62 | G150: 1.06
A151: 05071 | B151: Johnson | C151: AR | D151: 0.46 | E151: 2.86 | F151: 2.86 | G151: 1.40
A152: 05073 | B152: Lafayette | C152: AR | D152: 0.52 | E152: 2.77 | F152: 2.77 | G152: 1.34
A153: 05075 | B153: Lawrence | C153: AR | D153: 0.50 | E153: 2.76 | F153: 2.76 | G153: 1.10
A154: 05077 | B154: Lee | C154: AR | D154: 0.50 | E154: 2.66 | F154: 2.66 | G154: 1.04
A155: 05079 | B155: Lincoln | C155: AR | D155: 0.53 | E155: 2.83 | F155: 2.83 | G155: 1.20
A156: 05081 | B156: Little River | C156: AR | D156: 0.48 | E156: 2.74 | F156: 2.74 | G156: 1.25
A157: 05083 | B157: Logan | C157: AR | D157: 0.47 | E157: 2.82 | F157: 2.82 | G157: 1.30
A158: 05085 | B158: Lonoke | C158: AR | D158: 0.48 | E158: 2.75 | F158: 2.75 | G158: 1.01
A159: 05087 | B159: Madison | C159: AR | D159: 0.49 | E159: 3.07 | F159: 3.07 | G159: 1.41
A160: 05089 | B160: Marion | C160: AR | D160: 0.51 | E160: 3.06 | F160: 3.06 | G160: 1.34
A161: 05091 | B161: Miller | C161: AR | D161: 0.43 | E161: 2.66 | F161: 2.66 | G161: 1.13
A162: 05093 | B162: Mississippi | C162: AR | D162: 0.48 | E162: 2.59 | F162: 2.59 | G162: 0.95
A163: 05095 | B163: Monroe | C163: AR | D163: 0.50 | E163: 2.62 | F163: 2.62 | G163: 1.15
A164: 05097 | B164: Montgomery | C164: AR | D164: 0.49 | E164: 2.93 | F164: 2.93 | G164: 1.50
A165: 05099 | B165: Nevada | C165: AR | D165: 0.46 | E165: 2.75 | F165: 2.75 | G165: 1.41
A166: 05101 | B166: Newton | C166: AR | D166: 0.47 | E166: 3.16 | F166: 3.16 | G166: 1.58
A167: 05103 | B167: Ouachita | C167: AR | D167: 0.44 | E167: 2.60 | F167: 2.60 | G167: 1.46
A168: 05105 | B168: Perry | C168: AR | D168: 0.49 | E168: 2.95 | F168: 2.95 | G168: 1.46
A169: 05107 | B169: Phillips | C169: AR | D169: 0.48 | E169: 2.47 | F169: 2.47 | G169: 1.05
A170: 05109 | B170: Pike | C170: AR | D170: 0.50 | E170: 2.78 | F170: 2.78 | G170: 1.42
A171: 05111 | B171: Poinsett | C171: AR | D171: 0.52 | E171: 2.70 | F171: 2.70 | G171: 1.05
A172: 05113 | B172: Polk | C172: AR | D172: 0.46 | E172: 2.95 | F172: 2.95 | G172: 1.42
A173: 05115 | B173: Pope | C173: AR | D173: 0.44 | E173: 2.84 | F173: 2.84 | G173: 1.34
A174: 05117 | B174: Prairie | C174: AR | D174: 0.55 | E174: 2.84 | F174: 2.84 | G174: 1.16
A175: 05119 | B175: Pulaski | C175: AR | D175: 0.34 | E175: 2.51 | F175: 2.51 | G175: 1.04
A176: 05121 | B176: Randolph | C176: AR | D176: 0.48 | E176: 2.80 | F176: 2.80 | G176: 1.21
A177: 05123 | B177: St Francis | C177: AR | D177: 0.50 | E177: 2.70 | F177: 2.70 | G177: 1.05
A178: 05125 | B178: Saline | C178: AR | D178: 0.40 | E178: 2.74 | F178: 2.74 | G178: 1.32
A179: 05127 | B179: Scott | C179: AR | D179: 0.45 | E179: 2.92 | F179: 2.92 | G179: 1.48
A180: 05129 | B180: Searcy | C180: AR | D180: 0.50 | E180: 3.13 | F180: 3.13 | G180: 1.41
A181: 05131 | B181: Sebastian | C181: AR | D181: 0.40 | E181: 2.63 | F181: 2.63 | G181: 1.06
A182: 05133 | B182: Sevier | C182: AR | D182: 0.47 | E182: 2.83 | F182: 2.83 | G182: 1.31
A183: 05135 | B183: Sharp | C183: AR | D183: 0.47 | E183: 3.07 | F183: 3.07 | G183: 1.38
A184: 05137 | B184: Stone | C184: AR | D184: 0.48 | E184: 3.14 | F184: 3.14 | G184: 1.47
A185: 05139 | B185: Union | C185: AR | D185: 0.43 | E185: 2.66 | F185: 2.66 | G185: 1.43
A186: 05141 | B186: Van Buren | C186: AR | D186: 0.48 | E186: 3.12 | F186: 3.12 | G186: 1.46
A187: 05143 | B187: Washington | C187: AR | D187: 0.38 | E187: 2.75 | F187: 2.75 | G187: 1.15
A188: 05145 | B188: White | C188: AR | D188: 0.45 | E188: 2.87 | F188: 2.87 | G188: 1.16
A189: 05147 | B189: Woodruff | C189: AR | D189: 0.56 | E189: 2.68 | F189: 2.68 | G189: 1.12
A190: 05149 | B190: Yell | C190: AR | D190: 0.47 | E190: 2.89 | F190: 2.89 | G190: 1.43
A191: 06001 | B191: Alameda | C191: CA | D191: 0.24 | E191: 0.16 | F191: 0.16 | G191: 0.73
A192: 06003 | B192: Alpine | C192: CA | D192: 0.53 | E192: 3.70 | F192: 3.70 | G192: 1.34
A193: 06005 | B193: Amador | C193: CA | D193: 0.54 | E193: 3.00 | F193: 3.00 | G193: 1.21
A194: 06007 | B194: Butte | C194: CA | D194: 0.45 | E194: 3.02 | F194: 3.02 | G194: 1.14
A195: 06009 | B195: Calaveras | C195: CA | D195: 0.56 | E195: 3.05 | F195: 3.05 | G195: 1.23
A196: 06011 | B196: Colusa | C196: CA | D196: 0.52 | E196: 3.01 | F196: 3.01 | G196: 1.05
A197: 06013 | B197: Contra Costa | C197: CA | D197: 0.30 | E197: 1.04 | F197: 1.04 | G197: 0.78
A198: 06015 | B198: Del Norte | C198: CA | D198: 0.47 | E198: 3.35 | F198: 3.35 | G198: 1.37
A199: 06017 | B199: El Dorado | C199: CA | D199: 0.47 | E199: 3.10 | F199: 3.10 | G199: 1.23
A200: 06019 | B200: Fresno | C200: CA | D200: 0.46 | E200: 2.79 | F200: 2.79 | G200: 0.99
A201: 06021 | B201: Glenn | C201: CA | D201: 0.51 | E201: 3.05 | F201: 3.05 | G201: 1.12
A202: 06023 | B202: Humboldt | C202: CA | D202: 0.46 | E202: 3.04 | F202: 3.04 | G202: 1.36
... 2945 more rows

Sheet dropdown
A1: old stove options | C1: new stove options
A2: Uncertified | C2: Non-catalytic
A3: Certified-20 years or older | C3: Catalytic
C4: Hybrid
C5: Non-wood (gas or electric)
C6: Pellet

Sheet pellet-burnrate
A3: Average of Burn rate - TONS WOOD PER APPLIANCE PER COUNTY | D3: Appliance Type
A4: StateAndCountyFIPSCode | B4: CountyName | C4: PostalStateCode | D4: Furnace-Pellet | E4: Pellet Hydronic Heater | F4: Pellet Woodstove
A5: 01001 | B5: Autauga | C5: AL | D5: 1.55 | E5: 1.55 | F5: 0.20
A6: 01003 | B6: Baldwin | C6: AL | D6: 1.42 | E6: 1.42 | F6: 0.15
A7: 01005 | B7: Barbour | C7: AL | D7: 1.55 | E7: 1.55 | F7: 0.23
A8: 01007 | B8: Bibb | C8: AL | D8: 1.69 | E8: 1.69 | F8: 0.31
A9: 01009 | B9: Blount | C9: AL | D9: 1.72 | E9: 1.72 | F9: 0.30
A10: 01011 | B10: Bullock | C10: AL | D10: 1.52 | E10: 1.52 | F10: 0.24
A11: 01013 | B11: Butler | C11: AL | D11: 1.50 | E11: 1.50 | F11: 0.24
A12: 01015 | B12: Calhoun | C12: AL | D12: 1.58 | E12: 1.58 | F12: 0.22
A13: 01017 | B13: Chambers | C13: AL | D13: 1.46 | E13: 1.46 | F13: 0.25
A14: 01019 | B14: Cherokee | C14: AL | D14: 1.71 | E14: 1.71 | F14: 0.25
A15: 01021 | B15: Chilton | C15: AL | D15: 1.63 | E15: 1.63 | F15: 0.29
A16: 01023 | B16: Choctaw | C16: AL | D16: 1.59 | E16: 1.59 | F16: 0.30
A17: 01025 | B17: Clarke | C17: AL | D17: 1.52 | E17: 1.52 | F17: 0.24
A18: 01027 | B18: Clay | C18: AL | D18: 1.55 | E18: 1.55 | F18: 0.31
A19: 01029 | B19: Cleburne | C19: AL | D19: 1.55 | E19: 1.55 | F19: 0.35
A20: 01031 | B20: Coffee | C20: AL | D20: 1.48 | E20: 1.48 | F20: 0.19
A21: 01033 | B21: Colbert | C21: AL | D21: 1.61 | E21: 1.61 | F21: 0.21
A22: 01035 | B22: Conecuh | C22: AL | D22: 1.53 | E22: 1.53 | F22: 0.24
A23: 01037 | B23: Coosa | C23: AL | D23: 1.69 | E23: 1.69 | F23: 0.34
A24: 01039 | B24: Covington | C24: AL | D24: 1.53 | E24: 1.53 | F24: 0.20
A25: 01041 | B25: Crenshaw | C25: AL | D25: 1.53 | E25: 1.53 | F25: 0.25
A26: 01043 | B26: Cullman | C26: AL | D26: 1.64 | E26: 1.64 | F26: 0.26
A27: 01045 | B27: Dale | C27: AL | D27: 1.52 | E27: 1.52 | F27: 0.20
A28: 01047 | B28: Dallas | C28: AL | D28: 1.47 | E28: 1.47 | F28: 0.17
A29: 01049 | B29: De Kalb | C29: AL | D29: 1.64 | E29: 1.64 | F29: 0.27
A30: 01051 | B30: Elmore | C30: AL | D30: 1.57 | E30: 1.57 | F30: 0.24
A31: 01053 | B31: Escambia | C31: AL | D31: 1.55 | E31: 1.55 | F31: 0.20
A32: 01055 | B32: Etowah | C32: AL | D32: 1.49 | E32: 1.49 | F32: 0.19
A33: 01057 | B33: Fayette | C33: AL | D33: 1.60 | E33: 1.60 | F33: 0.31
A34: 01059 | B34: Franklin | C34: AL | D34: 1.62 | E34: 1.62 | F34: 0.26
A35: 01061 | B35: Geneva | C35: AL | D35: 1.48 | E35: 1.48 | F35: 0.19
A36: 01063 | B36: Greene | C36: AL | D36: 1.65 | E36: 1.65 | F36: 0.27
A37: 01065 | B37: Hale | C37: AL | D37: 1.68 | E37: 1.68 | F37: 0.23
A38: 01067 | B38: Henry | C38: AL | D38: 1.63 | E38: 1.63 | F38: 0.21
A39: 01069 | B39: Houston | C39: AL | D39: 1.42 | E39: 1.42 | F39: 0.15
A40: 01071 | B40: Jackson | C40: AL | D40: 1.76 | E40: 1.76 | F40: 0.29
A41: 01073 | B41: Jefferson | C41: AL | D41: 1.46 | E41: 1.46 | F41: 0.22
A42: 01075 | B42: Lamar | C42: AL | D42: 1.54 | E42: 1.54 | F42: 0.30
A43: 01077 | B43: Lauderdale | C43: AL | D43: 1.70 | E43: 1.70 | F43: 0.20
A44: 01079 | B44: Lawrence | C44: AL | D44: 1.62 | E44: 1.62 | F44: 0.26
A45: 01081 | B45: Lee | C45: AL | D45: 1.42 | E45: 1.42 | F45: 0.24
A46: 01083 | B46: Limestone | C46: AL | D46: 1.69 | E46: 1.69 | F46: 0.21
A47: 01085 | B47: Lowndes | C47: AL | D47: 1.59 | E47: 1.59 | F47: 0.26
A48: 01087 | B48: Macon | C48: AL | D48: 1.57 | E48: 1.57 | F48: 0.21
A49: 01089 | B49: Madison | C49: AL | D49: 1.40 | E49: 1.40 | F49: 0.20
A50: 01091 | B50: Marengo | C50: AL | D50: 1.50 | E50: 1.50 | F50: 0.24
A51: 01093 | B51: Marion | C51: AL | D51: 1.53 | E51: 1.53 | F51: 0.25
A52: 01095 | B52: Marshall | C52: AL | D52: 1.72 | E52: 1.72 | F52: 0.21
A53: 01097 | B53: Mobile | C53: AL | D53: 1.30 | E53: 1.30 | F53: 0.12
A54: 01099 | B54: Monroe | C54: AL | D54: 1.57 | E54: 1.57 | F54: 0.25
A55: 01101 | B55: Montgomery | C55: AL | D55: 1.40 | E55: 1.40 | F55: 0.13
A56: 01103 | B56: Morgan | C56: AL | D56: 1.73 | E56: 1.73 | F56: 0.22
A57: 01105 | B57: Perry | C57: AL | D57: 1.52 | E57: 1.52 | F57: 0.24
A58: 01107 | B58: Pickens | C58: AL | D58: 1.54 | E58: 1.54 | F58: 0.31
A59: 01109 | B59: Pike | C59: AL | D59: 1.56 | E59: 1.56 | F59: 0.21
A60: 01111 | B60: Randolph | C60: AL | D60: 1.59 | E60: 1.59 | F60: 0.28
A61: 01113 | B61: Russell | C61: AL | D61: 1.42 | E61: 1.42 | F61: 0.19
A62: 01115 | B62: St Clair | C62: AL | D62: 1.68 | E62: 1.68 | F62: 0.27
A63: 01117 | B63: Shelby | C63: AL | D63: 1.53 | E63: 1.53 | F63: 0.20
A64: 01119 | B64: Sumter | C64: AL | D64: 1.60 | E64: 1.60 | F64: 0.28
A65: 01121 | B65: Talladega | C65: AL | D65: 1.59 | E65: 1.59 | F65: 0.25
A66: 01123 | B66: Tallapoosa | C66: AL | D66: 1.57 | E66: 1.57 | F66: 0.28
A67: 01125 | B67: Tuscaloosa | C67: AL | D67: 1.53 | E67: 1.53 | F67: 0.22
A68: 01127 | B68: Walker | C68: AL | D68: 1.72 | E68: 1.72 | F68: 0.30
A69: 01129 | B69: Washington | C69: AL | D69: 1.57 | E69: 1.57 | F69: 0.28
A70: 01131 | B70: Wilcox | C70: AL | D70: 1.62 | E70: 1.62 | F70: 0.27
A71: 01133 | B71: Winston | C71: AL | D71: 1.63 | E71: 1.63 | F71: 0.29
A72: 02013 | B72: Aleutians East | C72: AK
A73: 02016 | B73: Aleutians West | C73: AK
A74: 02020 | B74: Anchorage | C74: AK | F74: 0.25
A75: 02050 | B75: Bethel | C75: AK
A76: 02060 | B76: Bristol Bay | C76: AK
A77: 02068 | B77: Denali | C77: AK | D77: 6.73 | E77: 6.73 | F77: 0.25
A78: 02070 | B78: Dillingham | C78: AK
A79: 02090 | B79: Fairbanks North Star | C79: AK | D79: 6.73 | E79: 6.73 | F79: 0.25
A80: 02100 | B80: Haines | C80: AK | D80: 3.37 | E80: 3.37 | F80: 0.25
A81: 02105 | B81: Hoonah Angoon | C81: AK | D81: 3.37 | E81: 3.37 | F81: 0.25
A82: 02110 | B82: Juneau | C82: AK | D82: 3.37 | E82: 3.37 | F82: 0.25
A83: 02122 | B83: Kenai Peninsula | C83: AK | D83: 5.05 | E83: 5.05 | F83: 0.00
A84: 02130 | B84: Ketchikan Gateway | C84: AK | D84: 3.37 | E84: 3.37 | F84: 0.25
A85: 02150 | B85: Kodiak Island | C85: AK | D85: 5.05 | E85: 5.05 | F85: 0.00
A86: 02158 | B86: Kusilvak | C86: AK
A87: 02164 | B87: Lake and Peninsula | C87: AK
A88: 02170 | B88: Matanuska Susitna | C88: AK | D88: 5.05 | E88: 5.05 | F88: 0.25
A89: 02180 | B89: Nome | C89: AK
A90: 02185 | B90: North Slope | C90: AK
A91: 02188 | B91: Northwest Arctic | C91: AK
A92: 02195 | B92: Petersburg | C92: AK | D92: 3.37 | E92: 3.37 | F92: 0.25
A93: 02198 | B93: Prince of Wales-Hyder | C93: AK | D93: 3.37 | E93: 3.37 | F93: 0.25
A94: 02220 | B94: Sitka | C94: AK
A95: 02230 | B95: Skagway | C95: AK | D95: 3.37 | E95: 3.37 | F95: 0.25
A96: 02240 | B96: Southeast Fairbanks | C96: AK | D96: 6.73 | E96: 6.73 | F96: 0.25
A97: 02261 | B97: Valdez Cordova | C97: AK | F97: 0.25
A98: 02275 | B98: Wrangell | C98: AK | D98: 3.37 | E98: 3.37 | F98: 0.25
A99: 02282 | B99: Yakutat | C99: AK | D99: 3.37 | E99: 3.37 | F99: 0.25
A100: 02290 | B100: Yukon Koyukuk | C100: AK | D100: 6.73 | E100: 6.73
A101: 04001 | B101: Apache | C101: AZ | D101: 1.16 | E101: 1.16 | F101: 0.22
A102: 04003 | B102: Cochise | C102: AZ | D102: 0.97 | E102: 0.97 | F102: 0.06
A103: 04005 | B103: Coconino | C103: AZ | D103: 1.12 | E103: 1.12 | F103: 0.13
A104: 04007 | B104: Gila | C104: AZ | D104: 1.04 | E104: 1.04 | F104: 0.09
A105: 04009 | B105: Graham | C105: AZ | D105: 0.98 | E105: 0.98 | F105: 0.06
A106: 04011 | B106: Greenlee | C106: AZ | D106: 0.95 | E106: 0.95 | F106: 0.07
A107: 04012 | B107: La Paz | C107: AZ | D107: 1.04 | E107: 1.04 | F107: 0.06
A108: 04013 | B108: Maricopa | C108: AZ | D108: 0.92 | E108: 0.92 | F108: 0.05
A109: 04015 | B109: Mohave | C109: AZ | D109: 1.02 | E109: 1.02 | F109: 0.07
A110: 04017 | B110: Navajo | C110: AZ | D110: 1.16 | E110: 1.16 | F110: 0.17
A111: 04019 | B111: Pima | C111: AZ | D111: 0.95 | E111: 0.95 | F111: 0.05
A112: 04021 | B112: Pinal | C112: AZ | D112: 0.94 | E112: 0.94 | F112: 0.05
A113: 04023 | B113: Santa Cruz | C113: AZ | D113: 0.97 | E113: 0.97 | F113: 0.07
A114: 04025 | B114: Yavapai | C114: AZ | D114: 1.00 | E114: 1.00 | F114: 0.07
A115: 04027 | B115: Yuma | C115: AZ | D115: 0.99 | E115: 0.99 | F115: 0.04
A116: 05001 | B116: Arkansas | C116: AR | D116: 3.49 | E116: 3.49 | F116: 0.34
A117: 05003 | B117: Ashley | C117: AR | D117: 3.61 | E117: 3.61 | F117: 0.46
A118: 05005 | B118: Baxter | C118: AR | D118: 4.15 | E118: 4.15 | F118: 0.73
A119: 05007 | B119: Benton | C119: AR | D119: 4.05 | E119: 4.05 | F119: 0.50
A120: 05009 | B120: Boone | C120: AR | D120: 4.28 | E120: 4.28 | F120: 0.61
A121: 05011 | B121: Bradley | C121: AR | D121: 3.64 | E121: 3.64 | F121: 0.60
A122: 05013 | B122: Calhoun | C122: AR | D122: 3.61 | E122: 3.61 | F122: 0.69
A123: 05015 | B123: Carroll | C123: AR | D123: 4.29 | E123: 4.29 | F123: 0.72
A124: 05017 | B124: Chicot | C124: AR | D124: 3.44 | E124: 3.44 | F124: 0.29
A125: 05019 | B125: Clark | C125: AR | D125: 3.54 | E125: 3.54 | F125: 0.57
A126: 05021 | B126: Clay | C126: AR | D126: 3.79 | E126: 3.79 | F126: 0.35
A127: 05023 | B127: Cleburne | C127: AR | D127: 4.03 | E127: 4.03 | F127: 0.81
A128: 05025 | B128: Cleveland | C128: AR | D128: 3.83 | E128: 3.83 | F128: 0.82
A129: 05027 | B129: Columbia | C129: AR | D129: 3.51 | E129: 3.51 | F129: 0.59
A130: 05029 | B130: Conway | C130: AR | D130: 3.43 | E130: 3.43 | F130: 0.56
A131: 05031 | B131: Craighead | C131: AR | D131: 3.67 | E131: 3.67 | F131: 0.33
A132: 05033 | B132: Crawford | C132: AR | D132: 3.81 | E132: 3.81 | F132: 0.59
A133: 05035 | B133: Crittenden | C133: AR | D133: 3.20 | E133: 3.20 | F133: 0.23
A134: 05037 | B134: Cross | C134: AR | D134: 4.07 | E134: 4.07 | F134: 0.34
A135: 05039 | B135: Dallas | C135: AR | D135: 3.55 | E135: 3.55 | F135: 0.60
A136: 05041 | B136: Desha | C136: AR | D136: 3.25 | E136: 3.25 | F136: 0.28
A137: 05043 | B137: Drew | C137: AR | D137: 3.73 | E137: 3.73 | F137: 0.51
A138: 05045 | B138: Faulkner | C138: AR | D138: 3.76 | E138: 3.76 | F138: 0.46
A139: 05047 | B139: Franklin | C139: AR | D139: 4.03 | E139: 4.03 | F139: 0.58
A140: 05049 | B140: Fulton | C140: AR | D140: 4.45 | E140: 4.45 | F140: 0.81
A141: 05051 | B141: Garland | C141: AR | D141: 3.73 | E141: 3.73 | F141: 0.62
A142: 05053 | B142: Grant | C142: AR | D142: 3.59 | E142: 3.59 | F142: 0.67
A143: 05055 | B143: Greene | C143: AR | D143: 3.87 | E143: 3.87 | F143: 0.43
A144: 05057 | B144: Hempstead | C144: AR | D144: 3.40 | E144: 3.40 | F144: 0.44
A145: 05059 | B145: Hot Spring | C145: AR | D145: 3.74 | E145: 3.74 | F145: 0.68
A146: 05061 | B146: Howard | C146: AR | D146: 3.52 | E146: 3.52 | F146: 0.52
A147: 05063 | B147: Independence | C147: AR | D147: 4.07 | E147: 4.07 | F147: 0.59
A148: 05065 | B148: Izard | C148: AR | D148: 4.32 | E148: 4.32 | F148: 0.90
A149: 05067 | B149: Jackson | C149: AR | D149: 3.23 | E149: 3.23 | F149: 0.33
A150: 05069 | B150: Jefferson | C150: AR | D150: 3.66 | E150: 3.66 | F150: 0.31
A151: 05071 | B151: Johnson | C151: AR | D151: 4.01 | E151: 4.01 | F151: 0.75
A152: 05073 | B152: Lafayette | C152: AR | D152: 3.54 | E152: 3.54 | F152: 0.56
A153: 05075 | B153: Lawrence | C153: AR | D153: 3.92 | E153: 3.92 | F153: 0.40
A154: 05077 | B154: Lee | C154: AR | D154: 4.01 | E154: 4.01 | F154: 0.32
A155: 05079 | B155: Lincoln | C155: AR | D155: 4.04 | E155: 4.04 | F155: 0.49
A156: 05081 | B156: Little River | C156: AR | D156: 3.84 | E156: 3.84 | F156: 0.49
A157: 05083 | B157: Logan | C157: AR | D157: 3.86 | E157: 3.86 | F157: 0.60
A158: 05085 | B158: Lonoke | C158: AR | D158: 3.55 | E158: 3.55 | F158: 0.34
A159: 05087 | B159: Madison | C159: AR | D159: 4.33 | E159: 4.33 | F159: 0.92
A160: 05089 | B160: Marion | C160: AR | D160: 4.43 | E160: 4.43 | F160: 0.84
A161: 05091 | B161: Miller | C161: AR | D161: 3.52 | E161: 3.52 | F161: 0.38
A162: 05093 | B162: Mississippi | C162: AR | D162: 2.39 | E162: 2.39 | F162: 0.27
A163: 05095 | B163: Monroe | C163: AR | D163: 3.55 | E163: 3.55 | F163: 0.40
A164: 05097 | B164: Montgomery | C164: AR | D164: 4.03 | E164: 4.03 | F164: 0.82
A165: 05099 | B165: Nevada | C165: AR | D165: 3.65 | E165: 3.65 | F165: 0.59
A166: 05101 | B166: Newton | C166: AR | D166: 4.52 | E166: 4.52 | F166: 1.30
A167: 05103 | B167: Ouachita | C167: AR | D167: 3.46 | E167: 3.46 | F167: 0.57
A168: 05105 | B168: Perry | C168: AR | D168: 3.87 | E168: 3.87 | F168: 0.86
A169: 05107 | B169: Phillips | C169: AR | D169: 3.27 | E169: 3.27 | F169: 0.29
A170: 05109 | B170: Pike | C170: AR | D170: 3.62 | E170: 3.62 | F170: 0.65
A171: 05111 | B171: Poinsett | C171: AR | D171: 3.70 | E171: 3.70 | F171: 0.35
A172: 05113 | B172: Polk | C172: AR | D172: 4.04 | E172: 4.04 | F172: 0.80
A173: 05115 | B173: Pope | C173: AR | D173: 3.85 | E173: 3.85 | F173: 0.67
A174: 05117 | B174: Prairie | C174: AR | D174: 3.52 | E174: 3.52 | F174: 0.45
A175: 05119 | B175: Pulaski | C175: AR | D175: 3.33 | E175: 3.33 | F175: 0.42
A176: 05121 | B176: Randolph | C176: AR | D176: 3.91 | E176: 3.91 | F176: 0.52
A177: 05123 | B177: St Francis | C177: AR | D177: 3.81 | E177: 3.81 | F177: 0.34
A178: 05125 | B178: Saline | C178: AR | D178: 3.48 | E178: 3.48 | F178: 0.59
A179: 05127 | B179: Scott | C179: AR | D179: 4.16 | E179: 4.16 | F179: 0.85
A180: 05129 | B180: Searcy | C180: AR | D180: 4.51 | E180: 4.51 | F180: 1.00
A181: 05131 | B181: Sebastian | C181: AR | D181: 2.88 | E181: 2.88 | F181: 0.39
A182: 05133 | B182: Sevier | C182: AR | D182: 3.84 | E182: 3.84 | F182: 0.59
A183: 05135 | B183: Sharp | C183: AR | D183: 4.46 | E183: 4.46 | F183: 0.93
A184: 05137 | B184: Stone | C184: AR | D184: 4.33 | E184: 4.33 | F184: 1.08
A185: 05139 | B185: Union | C185: AR | D185: 3.48 | E185: 3.48 | F185: 0.56
A186: 05141 | B186: Van Buren | C186: AR | D186: 4.37 | E186: 4.37 | F186: 1.04
A187: 05143 | B187: Washington | C187: AR | D187: 3.88 | E187: 3.88 | F187: 0.54
A188: 05145 | B188: White | C188: AR | D188: 3.91 | E188: 3.91 | F188: 0.53
A189: 05147 | B189: Woodruff | C189: AR | D189: 3.87 | E189: 3.87 | F189: 0.36
A190: 05149 | B190: Yell | C190: AR | D190: 3.93 | E190: 3.93 | F190: 0.80
A191: 06001 | B191: Alameda | C191: CA | D191: 0.17 | E191: 0.17 | F191: 0.48
A192: 06003 | B192: Alpine | C192: CA | D192: 3.84 | E192: 3.84 | F192: 1.39
A193: 06005 | B193: Amador | C193: CA | D193: 3.11 | E193: 3.11 | F193: 0.45
A194: 06007 | B194: Butte | C194: CA | D194: 3.32 | E194: 3.32 | F194: 0.43
A195: 06009 | B195: Calaveras | C195: CA | D195: 3.18 | E195: 3.18 | F195: 0.50
A196: 06011 | B196: Colusa | C196: CA | D196: 3.09 | E196: 3.09 | F196: 0.32
A197: 06013 | B197: Contra Costa | C197: CA | D197: 1.07 | E197: 1.07 | F197: 0.34
A198: 06015 | B198: Del Norte | C198: CA | D198: 4.03 | E198: 4.03 | F198: 0.89
A199: 06017 | B199: El Dorado | C199: CA | D199: 3.25 | E199: 3.25 | F199: 0.57
A200: 06019 | B200: Fresno | C200: CA | D200: 2.87 | E200: 2.87 | F200: 0.25
A201: 06021 | B201: Glenn | C201: CA | D201: 3.10 | E201: 3.10 | F201: 0.41
A202: 06023 | B202: Humboldt | C202: CA | D202: 3.29 | E202: 3.29 | F202: 0.61
... 2945 more rows

Sheet NEI-activity_data
A1: StateAndCountyFIPSCode | B1: StateFIPS | C1: PostalStateCode | D1: CountyFIPS | E1: CountyName | F1: CountyType | G1: SourceClassificationCode | H1: SourceClassificationCodeDescription | I1: Appliance Type | J1: TotalAppliances | K1: ReportingPeriodTypeCode | L1: CalculationDataSource | M1: CalculationDataYear | N1: CalculationMaterialCode | O1: CalculationParameterTypeCode | P1: CalculationParameterValue | Q1: CalculationParameterUnitofMeasure | R1: EmissionCalculationMethodCode | S1: Burn rate - TONS WOOD PER APPLIANCE PER COUNTY | T1: cords per ton | U1: Burn Rate - CORDS WOOD PER APPLIANCE PER COUNTY
A2: 01001 | B2: 01 | C2: AL | D2: 001 | E2: Autauga | G2: 2104008510 | H2: Furnace: Indoor, cordwood-fired, non-EPA certified | I2: Furnace | J2: 81.77913789 | K2: A | L2: CEC Survey | M2: 2017 | N2: 15 | O2: I | P2: 127.0581609 | Q2: TON | R2: 8 | S2: =P2/J2 -> 1.55 | T2: =VLOOKUP(A2,cordwood_density!A:D,4,FALSE) -> 1.3062 | U2: =S2/T2 -> 1.19
A3: 01001 | B3: 01 | C3: AL | D3: 001 | E3: Autauga | G3: 2104008530 | H3: Furnace: Indoor, pellet-fired, general | I3: Furnace-Pellet | J3: 6.63074091 | K3: A | L3: CEC Survey | M3: 2017 | N3: 15 | O3: I | P3: 10.30201305 | Q3: TON | R3: 8 | S3: =P3/J3 -> 1.55 | T3: =VLOOKUP(A3,cordwood_density!A:D,4,FALSE) -> 1.3062 | U3: =S3/T3 -> 1.19
A4: 01001 | B4: 01 | C4: AL | D4: 001 | E4: Autauga | G4: 2104008610 | H4: Hydronic heater: outdoor | I4: Hydronic heater | J4: 79.56889092 | K4: A | L4: CEC Survey | M4: 2017 | N4: 15 | O4: I | P4: 123.6241566 | Q4: TON | R4: 8 | S4: 1.55 | T4: =VLOOKUP(A4,cordwood_density!A:D,4,FALSE) -> 1.3062 | U4: 1.19
A5: 01001 | B5: 01 | C5: AL | D5: 001 | E5: Autauga | G5: 2104008620 | H5: Hydronic heater: indoor | I5: Hydronic heater | J5: 50.83568031 | K5: A | L5: CEC Survey | M5: 2017 | N5: 15 | O5: I | P5: 78.98210004 | Q5: TON | R5: 8 | S5: 1.55 | T5: =VLOOKUP(A5,cordwood_density!A:D,4,FALSE) -> 1.3062 | U5: 1.19
A6: 01001 | B6: 01 | C6: AL | D6: 001 | E6: Autauga | G6: 2104008630 | H6: Hydronic heater: pellet-fired | I6: Pellet Hydronic Heater | J6: 2.21024697 | K6: A | L6: CEC Survey | M6: 2017 | N6: 15 | O6: I | P6: 3.43400435 | Q6: TON | R6: 8 | S6: 1.55 | T6: =VLOOKUP(A6,cordwood_density!A:D,4,FALSE) -> 1.3062 | U6: 1.19
A7: 01001 | B7: 01 | C7: AL | D7: 001 | E7: Autauga | G7: 2104008100 | H7: Fireplace: general | I7: Fireplace: general | J7: 2711.833331 | K7: A | L7: CEC Survey | M7: 2017 | N7: 15 | O7: I | P7: 667.7041164 | Q7: TON | R7: 8 | S7: 0.25 | T7: =VLOOKUP(A7,cordwood_density!A:D,4,FALSE) -> 1.3062 | U7: 0.19
A8: 01001 | B8: 01 | C8: AL | D8: 001 | E8: Autauga | G8: 2104008210 | H8: Woodstove: fireplace inserts; non-EPA certified | I8: Woodstove or Fireplace Insert | J8: 508.964414 | K8: A | L8: CEC Survey | M8: 2017 | N8: 15 | O8: I | P8: 269.5523786 | Q8: TON | R8: 8 | S8: 0.53 | T8: =VLOOKUP(A8,cordwood_density!A:D,4,FALSE) -> 1.3062 | U8: 0.41
A9: 01001 | B9: 01 | C9: AL | D9: 001 | E9: Autauga | G9: 2104008220 | H9: Woodstove: fireplace inserts; EPA certified; non-catalytic | I9: Woodstove or Fireplace Insert | J9: 673.146483 | K9: A | L9: CEC Survey | M9: 2017 | N9: 15 | O9: I | P9: 356.5047588 | Q9: TON | R9: 8 | S9: 0.53 | T9: =VLOOKUP(A9,cordwood_density!A:D,4,FALSE) -> 1.3062 | U9: 0.41
A10: 01001 | B10: 01 | C10: AL | D10: 001 | E10: Autauga | G10: 2104008230 | H10: Woodstove: fireplace inserts; EPA certified; catalytic | I10: Woodstove or Fireplace Insert | J10: 459.7097933 | K10: A | L10: CEC Survey | M10: 2017 | N10: 15 | O10: I | P10: 243.4666646 | Q10: TON | R10: 8 | S10: 0.53 | T10: =VLOOKUP(A10,cordwood_density!A:D,4,FALSE) -> 1.3062 | U10: 0.41
A11: 01001 | B11: 01 | C11: AL | D11: 001 | E11: Autauga | G11: 2104008700 | H11: Outdoor wood burning device, NEC (fire-pits, chimeas, etc) | J11: 3105.404301 | K11: A | L11: CEC Survey | M11: 2017 | N11: 15 | O11: I | P11: 600.9339396 | Q11: TON | R11: 8 | S11: 0.19 | T11: =VLOOKUP(A11,cordwood_density!A:D,4,FALSE) -> 1.3062 | U11: 0.15
A12: 01001 | B12: 01 | C12: AL | D12: 001 | E12: Autauga | G12: 2104008400 | H12: Woodstove: pellet-fired, general | I12: Pellet Woodstove | J12: 672.7605266 | K12: A | L12: CEC Survey | M12: 2017 | N12: 15 | O12: I | P12: 133.0399112 | Q12: TON | R12: 8 | S12: 0.20 | T12: =VLOOKUP(A12,cordwood_density!A:D,4,FALSE) -> 1.3062 | U12: 0.15
A13: 01001 | B13: 01 | C13: AL | D13: 001 | E13: Autauga | G13: 2104009000 | H13: Wax Log; Total: All Combustor Types | J13: 302.3980162 | K13: A | L13: CEC Survey | M13: 2017 | N13: 15 | O13: I | P13: 103.8521727 | Q13: TON | R13: 8 | S13: 0.34 | T13: =VLOOKUP(A13,cordwood_density!A:D,4,FALSE) -> 1.3062 | U13: 0.26
A14: 01001 | B14: 01 | C14: AL | D14: 001 | E14: Autauga | G14: 2104008310 | H14: Woodstove: freestanding; non-EPA certified | I14: Woodstove or Fireplace Insert | J14: 620.4783226 | K14: A | L14: CEC Survey | M14: 2017 | N14: 15 | O14: I | P14: 542.1090573 | Q14: TON | R14: 8 | S14: 0.87 | T14: =VLOOKUP(A14,cordwood_density!A:D,4,FALSE) -> 1.3062 | U14: 0.67
A15: 01001 | B15: 01 | C15: AL | D15: 001 | E15: Autauga | G15: 2104008320 | H15: Woodstove: freestanding; EPA certified; non-catalytic | I15: Woodstove or Fireplace Insert | J15: 820.6326202 | K15: A | L15: CEC Survey | M15: 2017 | N15: 15 | O15: I | P15: 716.9829468 | Q15: TON | R15: 8 | S15: 0.87 | T15: =VLOOKUP(A15,cordwood_density!A:D,4,FALSE) -> 1.3062 | U15: 0.67
A16: 01001 | B16: 01 | C16: AL | D16: 001 | E16: Autauga | G16: 2104008330 | H16: Woodstove: freestanding; EPA certified; catalytic | I16: Woodstove or Fireplace Insert | J16: 560.4320333 | K16: A | L16: CEC Survey | M16: 2017 | N16: 15 | O16: I | P16: 489.6468905 | Q16: TON | R16: 8 | S16: 0.87 | T16: =VLOOKUP(A16,cordwood_density!A:D,4,FALSE) -> 1.3062 | U16: 0.67
A17: 01003 | B17: 01 | C17: AL | D17: 003 | E17: Baldwin | G17: 2104008510 | H17: Furnace: Indoor, cordwood-fired, non-EPA certified | I17: Furnace | J17: 181.163744 | K17: A | L17: CEC Survey | M17: 2017 | N17: 15 | O17: I | P17: 257.8849597 | Q17: TON | R17: 8 | S17: 1.42 | T17: =VLOOKUP(A17,cordwood_density!A:D,4,FALSE) -> 1.2411 | U17: 1.15
A18: 01003 | B18: 01 | C18: AL | D18: 003 | E18: Baldwin | G18: 2104008530 | H18: Furnace: Indoor, pellet-fired, general | I18: Furnace-Pellet | J18: 14.68895221 | K18: A | L18: CEC Survey | M18: 2017 | N18: 15 | O18: I | P18: 20.90959133 | Q18: TON | R18: 8 | S18: 1.42 | T18: =VLOOKUP(A18,cordwood_density!A:D,4,FALSE) -> 1.2411 | U18: 1.15
A19: 01003 | B19: 01 | C19: AL | D19: 003 | E19: Baldwin | G19: 2104008610 | H19: Hydronic heater: outdoor | I19: Hydronic heater | J19: 176.2674266 | K19: A | L19: CEC Survey | M19: 2017 | N19: 15 | O19: I | P19: 250.9150959 | Q19: TON | R19: 8 | S19: 1.42 | T19: =VLOOKUP(A19,cordwood_density!A:D,4,FALSE) -> 1.2411 | U19: 1.15
A20: 01003 | B20: 01 | C20: AL | D20: 003 | E20: Baldwin | G20: 2104008620 | H20: Hydronic heater: indoor | I20: Hydronic heater | J20: 112.6153003 | K20: A | L20: CEC Survey | M20: 2017 | N20: 15 | O20: I | P20: 160.3068668 | Q20: TON | R20: 8 | S20: 1.42 | T20: =VLOOKUP(A20,cordwood_density!A:D,4,FALSE) -> 1.2411 | U20: 1.15
A21: 01003 | B21: 01 | C21: AL | D21: 003 | E21: Baldwin | G21: 2104008630 | H21: Hydronic heater: pellet-fired | I21: Pellet Hydronic Heater | J21: 4.896317405 | K21: A | L21: CEC Survey | M21: 2017 | N21: 15 | O21: I | P21: 6.969863776 | Q21: TON | R21: 8 | S21: 1.42 | T21: =VLOOKUP(A21,cordwood_density!A:D,4,FALSE) -> 1.2411 | U21: 1.15
A22: 01003 | B22: 01 | C22: AL | D22: 003 | E22: Baldwin | G22: 2104008100 | H22: Fireplace: general | I22: Fireplace: general | J22: 5541.727008 | K22: A | L22: CEC Survey | M22: 2017 | N22: 15 | O22: I | P22: 1311.279355 | Q22: TON | R22: 8 | S22: 0.24 | T22: =VLOOKUP(A22,cordwood_density!A:D,4,FALSE) -> 1.2411 | U22: 0.19
A23: 01003 | B23: 01 | C23: AL | D23: 003 | E23: Baldwin | G23: 2104008210 | H23: Woodstove: fireplace inserts; non-EPA certified | I23: Woodstove or Fireplace Insert | J23: 1726.218035 | K23: A | L23: CEC Survey | M23: 2017 | N23: 15 | O23: I | P23: 757.6234189 | Q23: TON | R23: 8 | S23: 0.44 | T23: =VLOOKUP(A23,cordwood_density!A:D,4,FALSE) -> 1.2411 | U23: 0.35
A24: 01003 | B24: 01 | C24: AL | D24: 003 | E24: Baldwin | G24: 2104008220 | H24: Woodstove: fireplace inserts; EPA certified; non-catalytic | I24: Woodstove or Fireplace Insert | J24: 2283.062563 | K24: A | L24: CEC Survey | M24: 2017 | N24: 15 | O24: I | P24: 1002.01807 | Q24: TON | R24: 8 | S24: 0.44 | T24: =VLOOKUP(A24,cordwood_density!A:D,4,FALSE) -> 1.2411 | U24: 0.35
A25: 01003 | B25: 01 | C25: AL | D25: 003 | E25: Baldwin | G25: 2104008230 | H25: Woodstove: fireplace inserts; EPA certified; catalytic | I25: Woodstove or Fireplace Insert | J25: 1559.164677 | K25: A | L25: CEC Survey | M25: 2017 | N25: 15 | O25: I | P25: 684.3050235 | Q25: TON | R25: 8 | S25: 0.44 | T25: =VLOOKUP(A25,cordwood_density!A:D,4,FALSE) -> 1.2411 | U25: 0.35
A26: 01003 | B26: 01 | C26: AL | D26: 003 | E26: Baldwin | G26: 2104008700 | H26: Outdoor wood burning device, NEC (fire-pits, chimeas, etc) | J26: 9443.132749 | K26: A | L26: CEC Survey | M26: 2017 | N26: 15 | O26: I | P26: 1730.732446 | Q26: TON | R26: 8 | S26: 0.18 | T26: =VLOOKUP(A26,cordwood_density!A:D,4,FALSE) -> 1.2411 | U26: 0.15
A27: 01003 | B27: 01 | C27: AL | D27: 003 | E27: Baldwin | G27: 2104008400 | H27: Woodstove: pellet-fired, general | I27: Pellet Woodstove | J27: 2091.270807 | K27: A | L27: CEC Survey | M27: 2017 | N27: 15 | O27: I | P27: 307.0282086 | Q27: TON | R27: 8 | S27: 0.15 | T27: =VLOOKUP(A27,cordwood_density!A:D,4,FALSE) -> 1.2411 | U27: 0.12
A28: 01003 | B28: 01 | C28: AL | D28: 003 | E28: Baldwin | G28: 2104009000 | H28: Wax Log; Total: All Combustor Types | J28: 1093.496161 | K28: A | L28: CEC Survey | M28: 2017 | N28: 15 | O28: I | P28: 256.0227712 | Q28: TON | R28: 8 | S28: 0.23 | T28: =VLOOKUP(A28,cordwood_density!A:D,4,FALSE) -> 1.2411 | U28: 0.19
A29: 01003 | B29: 01 | C29: AL | D29: 003 | E29: Baldwin | G29: 2104008310 | H29: Woodstove: freestanding; non-EPA certified | I29: Woodstove or Fireplace Insert | J29: 1943.378546 | K29: A | L29: CEC Survey | M29: 2017 | N29: 15 | O29: I | P29: 1478.360435 | Q29: TON | R29: 8 | S29: 0.76 | T29: =VLOOKUP(A29,cordwood_density!A:D,4,FALSE) -> 1.2411 | U29: 0.61
A30: 01003 | B30: 01 | C30: AL | D30: 003 | E30: Baldwin | G30: 2104008320 | H30: Woodstove: freestanding; EPA certified; non-catalytic | I30: Woodstove or Fireplace Insert | J30: 2570.274851 | K30: A | L30: CEC Survey | M30: 2017 | N30: 15 | O30: I | P30: 1955.250898 | Q30: TON | R30: 8 | S30: 0.76 | T30: =VLOOKUP(A30,cordwood_density!A:D,4,FALSE) -> 1.2411 | U30: 0.61
A31: 01003 | B31: 01 | C31: AL | D31: 003 | E31: Baldwin | G31: 2104008330 | H31: Woodstove: freestanding; EPA certified; catalytic | I31: Woodstove or Fireplace Insert | J31: 1755.309655 | K31: A | L31: CEC Survey | M31: 2017 | N31: 15 | O31: I | P31: 1335.293296 | Q31: TON | R31: 8 | S31: 0.76 | T31: =VLOOKUP(A31,cordwood_density!A:D,4,FALSE) -> 1.2411 | U31: 0.61
A32: 01005 | B32: 01 | C32: AL | D32: 005 | E32: Barbour | G32: 2104008510 | H32: Furnace: Indoor, cordwood-fired, non-EPA certified | I32: Furnace | J32: 35.66582736 | K32: A | L32: CEC Survey | M32: 2017 | N32: 15 | O32: I | P32: 55.38768587 | Q32: TON | R32: 8 | S32: 1.55 | T32: =VLOOKUP(A32,cordwood_density!A:D,4,FALSE) -> 1.2923 | U32: 1.20
A33: 01005 | B33: 01 | C33: AL | D33: 005 | E33: Barbour | G33: 2104008530 | H33: Furnace: Indoor, pellet-fired, general | I33: Furnace-Pellet | J33: 2.89182384 | K33: A | L33: CEC Survey | M33: 2017 | N33: 15 | O33: I | P33: 4.490893449 | Q33: TON | R33: 8 | S33: 1.55 | T33: =VLOOKUP(A33,cordwood_density!A:D,4,FALSE) -> 1.2923 | U33: 1.20
A34: 01005 | B34: 01 | C34: AL | D34: 005 | E34: Barbour | G34: 2104008610 | H34: Hydronic heater: outdoor | I34: Hydronic heater | J34: 34.70188608 | K34: A | L34: CEC Survey | M34: 2017 | N34: 15 | O34: I | P34: 53.89072139 | Q34: TON | R34: 8 | S34: 1.55 | T34: =VLOOKUP(A34,cordwood_density!A:D,4,FALSE) -> 1.2923 | U34: 1.20
A35: 01005 | B35: 01 | C35: AL | D35: 005 | E35: Barbour | G35: 2104008620 | H35: Hydronic heater: indoor | I35: Hydronic heater | J35: 22.17064944 | K35: A | L35: CEC Survey | M35: 2017 | N35: 15 | O35: I | P35: 34.43018311 | Q35: TON | R35: 8 | S35: 1.55 | T35: =VLOOKUP(A35,cordwood_density!A:D,4,FALSE) -> 1.2923 | U35: 1.20
A36: 01005 | B36: 01 | C36: AL | D36: 005 | E36: Barbour | G36: 2104008630 | H36: Hydronic heater: pellet-fired | I36: Pellet Hydronic Heater | J36: 0.9639412801 | K36: A | L36: CEC Survey | M36: 2017 | N36: 15 | O36: I | P36: 1.496964483 | Q36: TON | R36: 8 | S36: 1.55 | T36: =VLOOKUP(A36,cordwood_density!A:D,4,FALSE) -> 1.2923 | U36: 1.20
A37: 01005 | B37: 01 | C37: AL | D37: 005 | E37: Barbour | G37: 2104008100 | H37: Fireplace: general | I37: Fireplace: general | J37: 779.1342407 | K37: A | L37: CEC Survey | M37: 2017 | N37: 15 | O37: I | P37: 204.0971169 | Q37: TON | R37: 8 | S37: 0.26 | T37: =VLOOKUP(A37,cordwood_density!A:D,4,FALSE) -> 1.2923 | U37: 0.20
A38: 01005 | B38: 01 | C38: AL | D38: 005 | E38: Barbour | G38: 2104008210 | H38: Woodstove: fireplace inserts; non-EPA certified | I38: Woodstove or Fireplace Insert | J38: 270.9576572 | K38: A | L38: CEC Survey | M38: 2017 | N38: 15 | O38: I | P38: 150.2900222 | Q38: TON | R38: 8 | S38: 0.55 | T38: =VLOOKUP(A38,cordwood_density!A:D,4,FALSE) -> 1.2923 | U38: 0.43
A39: 01005 | B39: 01 | C39: AL | D39: 005 | E39: Barbour | G39: 2104008220 | H39: Woodstove: fireplace inserts; EPA certified; non-catalytic | I39: Woodstove or Fireplace Insert | J39: 358.363353 | K39: A | L39: CEC Survey | M39: 2017 | N39: 15 | O39: I | P39: 198.7706745 | Q39: TON | R39: 8 | S39: 0.55 | T39: =VLOOKUP(A39,cordwood_density!A:D,4,FALSE) -> 1.2923 | U39: 0.43
A40: 01005 | B40: 01 | C40: AL | D40: 005 | E40: Barbour | G40: 2104008230 | H40: Woodstove: fireplace inserts; EPA certified; catalytic | I40: Woodstove or Fireplace Insert | J40: 244.7359484 | K40: A | L40: CEC Survey | M40: 2017 | N40: 15 | O40: I | P40: 135.7458265 | Q40: TON | R40: 8 | S40: 0.55 | T40: =VLOOKUP(A40,cordwood_density!A:D,4,FALSE) -> 1.2923 | U40: 0.43
A41: 01005 | B41: 01 | C41: AL | D41: 005 | E41: Barbour | G41: 2104008700 | H41: Outdoor wood burning device, NEC (fire-pits, chimeas, etc) | J41: 1209.011695 | K41: A | L41: CEC Survey | M41: 2017 | N41: 15 | O41: I | P41: 226.9526326 | Q41: TON | R41: 8 | S41: 0.19 | T41: =VLOOKUP(A41,cordwood_density!A:D,4,FALSE) -> 1.2923 | U41: 0.15
A42: 01005 | B42: 01 | C42: AL | D42: 005 | E42: Barbour | G42: 2104008400 | H42: Woodstove: pellet-fired, general | I42: Pellet Woodstove | J42: 266.6479501 | K42: A | L42: CEC Survey | M42: 2017 | N42: 15 | O42: I | P42: 62.07317283 | Q42: TON | R42: 8 | S42: 0.23 | T42: =VLOOKUP(A42,cordwood_density!A:D,4,FALSE) -> 1.2923 | U42: 0.18
A43: 01005 | B43: 01 | C43: AL | D43: 005 | E43: Barbour | G43: 2104009000 | H43: Wax Log; Total: All Combustor Types | J43: 132.0100773 | K43: A | L43: CEC Survey | M43: 2017 | N43: 15 | O43: I | P43: 30.90782302 | Q43: TON | R43: 8 | S43: 0.23 | T43: =VLOOKUP(A43,cordwood_density!A:D,4,FALSE) -> 1.2923 | U43: 0.18
A44: 01005 | B44: 01 | C44: AL | D44: 005 | E44: Barbour | G44: 2104008310 | H44: Woodstove: freestanding; non-EPA certified | I44: Woodstove or Fireplace Insert | J44: 317.9406115 | K44: A | L44: CEC Survey | M44: 2017 | N44: 15 | O44: I | P44: 300.7306695 | Q44: TON | R44: 8 | S44: 0.95 | T44: =VLOOKUP(A44,cordwood_density!A:D,4,FALSE) -> 1.2923 | U44: 0.73
A45: 01005 | B45: 01 | C45: AL | D45: 005 | E45: Barbour | G45: 2104008320 | H45: Woodstove: freestanding; EPA certified; non-catalytic | I45: Woodstove or Fireplace Insert | J45: 420.5020991 | K45: A | L45: CEC Survey | M45: 2017 | N45: 15 | O45: I | P45: 397.7405628 | Q45: TON | R45: 8 | S45: 0.95 | T45: =VLOOKUP(A45,cordwood_density!A:D,4,FALSE) -> 1.2923 | U45: 0.73
A46: 01005 | B46: 01 | C46: AL | D46: 005 | E46: Barbour | G46: 2104008330 | H46: Woodstove: freestanding; EPA certified; catalytic | I46: Woodstove or Fireplace Insert | J46: 287.1721652 | K46: A | L46: CEC Survey | M46: 2017 | N46: 15 | O46: I | P46: 271.6277014 | Q46: TON | R46: 8 | S46: 0.95 | T46: =VLOOKUP(A46,cordwood_density!A:D,4,FALSE) -> 1.2923 | U46: 0.73
A47: 01007 | B47: 01 | C47: AL | D47: 007 | E47: Bibb | G47: 2104008510 | H47: Furnace: Indoor, cordwood-fired, non-EPA certified | I47: Furnace | J47: 42.77624954 | K47: A | L47: CEC Survey | M47: 2017 | N47: 15 | O47: I | P47: 72.44048823 | Q47: TON | R47: 8 | S47: 1.69 | T47: =VLOOKUP(A47,cordwood_density!A:D,4,FALSE) -> 1.3513 | U47: 1.25
A48: 01007 | B48: 01 | C48: AL | D48: 007 | E48: Bibb | G48: 2104008530 | H48: Furnace: Indoor, pellet-fired, general | I48: Furnace-Pellet | J48: 3.468344558 | K48: A | L48: CEC Survey | M48: 2017 | N48: 15 | O48: I | P48: 5.8735531 | Q48: TON | R48: 8 | S48: 1.69 | T48: =VLOOKUP(A48,cordwood_density!A:D,4,FALSE) -> 1.3513 | U48: 1.25
A49: 01007 | B49: 01 | C49: AL | D49: 007 | E49: Bibb | G49: 2104008610 | H49: Hydronic heater: outdoor | I49: Hydronic heater | J49: 41.62013469 | K49: A | L49: CEC Survey | M49: 2017 | N49: 15 | O49: I | P49: 70.4826372 | Q49: TON | R49: 8 | S49: 1.69 | T49: =VLOOKUP(A49,cordwood_density!A:D,4,FALSE) -> 1.3513 | U49: 1.25
A50: 01007 | B50: 01 | C50: AL | D50: 007 | E50: Bibb | G50: 2104008620 | H50: Hydronic heater: indoor | I50: Hydronic heater | J50: 26.59064161 | K50: A | L50: CEC Survey | M50: 2017 | N50: 15 | O50: I | P50: 45.03057376 | Q50: TON | R50: 8 | S50: 1.69 | T50: =VLOOKUP(A50,cordwood_density!A:D,4,FALSE) -> 1.3513 | U50: 1.25
A51: 01007 | B51: 01 | C51: AL | D51: 007 | E51: Bibb | G51: 2104008630 | H51: Hydronic heater: pellet-fired | I51: Pellet Hydronic Heater | J51: 1.156114853 | K51: A | L51: CEC Survey | M51: 2017 | N51: 15 | O51: I | P51: 1.957851033 | Q51: TON | R51: 8 | S51: 1.69 | T51: =VLOOKUP(A51,cordwood_density!A:D,4,FALSE) -> 1.3513 | U51: 1.25
A52: 01007 | B52: 01 | C52: AL | D52: 007 | E52: Bibb | G52: 2104008100 | H52: Fireplace: general | I52: Fireplace: general | J52: 838.465465 | K52: A | L52: CEC Survey | M52: 2017 | N52: 15 | O52: I | P52: 226.5443676 | Q52: TON | R52: 8 | S52: 0.27 | T52: =VLOOKUP(A52,cordwood_density!A:D,4,FALSE) -> 1.3513 | U52: 0.20
A53: 01007 | B53: 01 | C53: AL | D53: 007 | E53: Bibb | G53: 2104008210 | H53: Woodstove: fireplace inserts; non-EPA certified | I53: Woodstove or Fireplace Insert | J53: 217.8267648 | K53: A | L53: CEC Survey | M53: 2017 | N53: 15 | O53: I | P53: 144.7435656 | Q53: TON | R53: 8 | S53: 0.66 | T53: =VLOOKUP(A53,cordwood_density!A:D,4,FALSE) -> 1.3513 | U53: 0.49
A54: 01007 | B54: 01 | C54: AL | D54: 007 | E54: Bibb | G54: 2104008220 | H54: Woodstove: fireplace inserts; EPA certified; non-catalytic | I54: Woodstove or Fireplace Insert | J54: 288.0934632 | K54: A | L54: CEC Survey | M54: 2017 | N54: 15 | O54: I | P54: 191.4350384 | Q54: TON | R54: 8 | S54: 0.66 | T54: =VLOOKUP(A54,cordwood_density!A:D,4,FALSE) -> 1.3513 | U54: 0.49
A55: 01007 | B55: 01 | C55: AL | D55: 007 | E55: Bibb | G55: 2104008230 | H55: Woodstove: fireplace inserts; EPA certified; catalytic | I55: Woodstove or Fireplace Insert | J55: 196.7467553 | K55: A | L55: CEC Survey | M55: 2017 | N55: 15 | O55: I | P55: 130.7361238 | Q55: TON | R55: 8 | S55: 0.66 | T55: =VLOOKUP(A55,cordwood_density!A:D,4,FALSE) -> 1.3513 | U55: 0.49
A56: 01007 | B56: 01 | C56: AL | D56: 007 | E56: Bibb | G56: 2104008700 | H56: Outdoor wood burning device, NEC (fire-pits, chimeas, etc) | J56: 1052.465628 | K56: A | L56: CEC Survey | M56: 2017 | N56: 15 | O56: I | P56: 209.9464456 | Q56: TON | R56: 8 | S56: 0.20 | T56: =VLOOKUP(A56,cordwood_density!A:D,4,FALSE) -> 1.3513 | U56: 0.15
A57: 01007 | B57: 01 | C57: AL | D57: 007 | E57: Bibb | G57: 2104008400 | H57: Woodstove: pellet-fired, general | I57: Pellet Woodstove | J57: 246.6692443 | K57: A | L57: CEC Survey | M57: 2017 | N57: 15 | O57: I | P57: 76.77505414 | Q57: TON | R57: 8 | S57: 0.31 | T57: =VLOOKUP(A57,cordwood_density!A:D,4,FALSE) -> 1.3513 | U57: 0.23
A58: 01007 | B58: 01 | C58: AL | D58: 007 | E58: Bibb | G58: 2104009000 | H58: Wax Log; Total: All Combustor Types | J58: 57.95794733 | K58: A | L58: CEC Survey | M58: 2017 | N58: 15 | O58: I | P58: 19.9044254 | Q58: TON | R58: 8 | S58: 0.34 | T58: =VLOOKUP(A58,cordwood_density!A:D,4,FALSE) -> 1.3513 | U58: 0.25
A59: 01007 | B59: 01 | C59: AL | D59: 007 | E59: Bibb | G59: 2104008310 | H59: Woodstove: freestanding; non-EPA certified | I59: Woodstove or Fireplace Insert | J59: 288.0418257 | K59: A | L59: CEC Survey | M59: 2017 | N59: 15 | O59: I | P59: 301.4864097 | Q59: TON | R59: 8 | S59: 1.05 | T59: =VLOOKUP(A59,cordwood_density!A:D,4,FALSE) -> 1.3513 | U59: 0.77
A60: 01007 | B60: 01 | C60: AL | D60: 007 | E60: Bibb | G60: 2104008320 | H60: Woodstove: freestanding; EPA certified; non-catalytic | I60: Woodstove or Fireplace Insert | J60: 380.9585437 | K60: A | L60: CEC Survey | M60: 2017 | N60: 15 | O60: I | P60: 398.7400902 | Q60: TON | R60: 8 | S60: 1.05 | T60: =VLOOKUP(A60,cordwood_density!A:D,4,FALSE) -> 1.3513 | U60: 0.77
A61: 01007 | B61: 01 | C61: AL | D61: 007 | E61: Bibb | G61: 2104008330 | H61: Woodstove: freestanding; EPA certified; catalytic | I61: Woodstove or Fireplace Insert | J61: 260.1668103 | K61: A | L61: CEC Survey | M61: 2017 | N61: 15 | O61: I | P61: 272.3103055 | Q61: TON | R61: 8 | S61: 1.05 | T61: =VLOOKUP(A61,cordwood_density!A:D,4,FALSE) -> 1.3513 | U61: 0.77
A62: 01009 | B62: 01 | C62: AL | D62: 009 | E62: Blount | G62: 2104008510 | H62: Furnace: Indoor, cordwood-fired, non-EPA certified | I62: Furnace | J62: 145.6403514 | K62: A | L62: CEC Survey | M62: 2017 | N62: 15 | O62: I | P62: 251.0608551 | Q62: TON | R62: 8 | S62: 1.72 | T62: =VLOOKUP(A62,cordwood_density!A:D,4,FALSE) -> 1.3483 | U62: 1.28
A63: 01009 | B63: 01 | C63: AL | D63: 009 | E63: Blount | G63: 2104008530 | H63: Furnace: Indoor, pellet-fired, general | I63: Furnace-Pellet | J63: 11.80867714 | K63: A | L63: CEC Survey | M63: 2017 | N63: 15 | O63: I | P63: 20.35628555 | Q63: TON | R63: 8 | S63: 1.72 | T63: =VLOOKUP(A63,cordwood_density!A:D,4,FALSE) -> 1.3483 | U63: 1.28
A64: 01009 | B64: 01 | C64: AL | D64: 009 | E64: Blount | G64: 2104008610 | H64: Hydronic heater: outdoor | I64: Hydronic heater | J64: 141.7041257 | K64: A | L64: CEC Survey | M64: 2017 | N64: 15 | O64: I | P64: 244.2754265 | Q64: TON | R64: 8 | S64: 1.72 | T64: =VLOOKUP(A64,cordwood_density!A:D,4,FALSE) -> 1.3483 | U64: 1.28
A65: 01009 | B65: 01 | C65: AL | D65: 009 | E65: Blount | G65: 2104008620 | H65: Hydronic heater: indoor | I65: Hydronic heater | J65: 90.53319142 | K65: A | L65: CEC Survey | M65: 2017 | N65: 15 | O65: I | P65: 156.0648558 | Q65: TON | R65: 8 | S65: 1.72 | T65: =VLOOKUP(A65,cordwood_density!A:D,4,FALSE) -> 1.3483 | U65: 1.28
A66: 01009 | B66: 01 | C66: AL | D66: 009 | E66: Blount | G66: 2104008630 | H66: Hydronic heater: pellet-fired | I66: Pellet Hydronic Heater | J66: 3.936225714 | K66: A | L66: CEC Survey | M66: 2017 | N66: 15 | O66: I | P66: 6.785428515 | Q66: TON | R66: 8 | S66: 1.72 | T66: =VLOOKUP(A66,cordwood_density!A:D,4,FALSE) -> 1.3483 | U66: 1.28
A67: 01009 | B67: 01 | C67: AL | D67: 009 | E67: Blount | G67: 2104008100 | H67: Fireplace: general | I67: Fireplace: general | J67: 1778.238154 | K67: A | L67: CEC Survey | M67: 2017 | N67: 15 | O67: I | P67: 516.3992611 | Q67: TON | R67: 8 | S67: =P67/J67 -> 0.29 | T67: =VLOOKUP(A67,cordwood_density!A:D,4,FALSE) -> 1.3483 | U67: =S67/T67 -> 0.22
A68: 01009 | B68: 01 | C68: AL | D68: 009 | E68: Blount | G68: 2104008210 | H68: Woodstove: fireplace inserts; non-EPA certified | I68: Woodstove or Fireplace Insert | J68: 614.7058093 | K68: A | L68: CEC Survey | M68: 2017 | N68: 15 | O68: I | P68: 317.3186694 | Q68: TON | R68: 8 | S68: 0.52 | T68: =VLOOKUP(A68,cordwood_density!A:D,4,FALSE) -> 1.3483 | U68: 0.38
A69: 01009 | B69: 01 | C69: AL | D69: 009 | E69: Blount | G69: 2104008220 | H69: Woodstove: fireplace inserts; EPA certified; non-catalytic | I69: Woodstove or Fireplace Insert | J69: 812.9980058 | K69: A | L69: CEC Survey | M69: 2017 | N69: 15 | O69: I | P69: 419.6795305 | Q69: TON | R69: 8 | S69: 0.52 | T69: =VLOOKUP(A69,cordwood_density!A:D,4,FALSE) -> 1.3483 | U69: 0.38
A70: 01009 | B70: 01 | C70: AL | D70: 009 | E70: Blount | G70: 2104008230 | H70: Woodstove: fireplace inserts; EPA certified; catalytic | I70: Woodstove or Fireplace Insert | J70: 555.2181503 | K70: A | L70: CEC Survey | M70: 2017 | N70: 15 | O70: I | P70: 286.610411 | Q70: TON | R70: 8 | S70: 0.52 | T70: =VLOOKUP(A70,cordwood_density!A:D,4,FALSE) -> 1.3483 | U70: 0.38
A71: 01009 | B71: 01 | C71: AL | D71: 009 | E71: Blount | G71: 2104008700 | H71: Outdoor wood burning device, NEC (fire-pits, chimeas, etc) | J71: 3257.025097 | K71: A | L71: CEC Survey | M71: 2017 | N71: 15 | O71: I | P71: 648.3719247 | Q71: TON | R71: 8 | S71: 0.20 | T71: =VLOOKUP(A71,cordwood_density!A:D,4,FALSE) -> 1.3483 | U71: 0.15
A72: 01009 | B72: 01 | C72: AL | D72: 009 | E72: Blount | G72: 2104008400 | H72: Woodstove: pellet-fired, general | I72: Pellet Woodstove | J72: 838.8185939 | K72: A | L72: CEC Survey | M72: 2017 | N72: 15 | O72: I | P72: 251.7076063 | Q72: TON | R72: 8 | S72: 0.30 | T72: =VLOOKUP(A72,cordwood_density!A:D,4,FALSE) -> 1.3483 | U72: 0.22
A73: 01009 | B73: 01 | C73: AL | D73: 009 | E73: Blount | G73: 2104009000 | H73: Wax Log; Total: All Combustor Types | J73: 173.3877863 | K73: A | L73: CEC Survey | M73: 2017 | N73: 15 | O73: I | P73: 59.54635071 | Q73: TON | R73: 8 | S73: 0.34 | T73: =VLOOKUP(A73,cordwood_density!A:D,4,FALSE) -> 1.3483 | U73: 0.25
A74: 01009 | B74: 01 | C74: AL | D74: 009 | E74: Blount | G74: 2104008310 | H74: Woodstove: freestanding; non-EPA certified | I74: Woodstove or Fireplace Insert | J74: 977.6182856 | K74: A | L74: CEC Survey | M74: 2017 | N74: 15 | O74: I | P74: 1005.061268 | Q74: TON | R74: 8 | S74: 1.03 | T74: =VLOOKUP(A74,cordwood_density!A:D,4,FALSE) -> 1.3483 | U74: 0.76
A75: 01009 | B75: 01 | C75: AL | D75: 009 | E75: Blount | G75: 2104008320 | H75: Woodstove: freestanding; EPA certified; non-catalytic | I75: Woodstove or Fireplace Insert | J75: 1292.979023 | K75: A | L75: CEC Survey | M75: 2017 | N75: 15 | O75: I | P75: 1329.27458 | Q75: TON | R75: 8 | S75: 1.03 | T75: =VLOOKUP(A75,cordwood_density!A:D,4,FALSE) -> 1.3483 | U75: 0.76
A76: 01009 | B76: 01 | C76: AL | D76: 009 | E76: Blount | G76: 2104008330 | H76: Woodstove: freestanding; EPA certified; catalytic | I76: Woodstove or Fireplace Insert | J76: 883.0100645 | K76: A | L76: CEC Survey | M76: 2017 | N76: 15 | O76: I | P76: 907.7972745 | Q76: TON | R76: 8 | S76: 1.03 | T76: =VLOOKUP(A76,cordwood_density!A:D,4,FALSE) -> 1.3483 | U76: 0.76
A77: 01011 | B77: 01 | C77: AL | D77: 011 | E77: Bullock | G77: 2104008510 | H77: Furnace: Indoor, cordwood-fired, non-EPA certified | I77: Furnace | J77: 15.11129665 | K77: A | L77: CEC Survey | M77: 2017 | N77: 15 | O77: I | P77: 22.93979981 | Q77: TON | R77: 8 | S77: 1.52 | T77: =VLOOKUP(A77,cordwood_density!A:D,4,FALSE) -> 1.2441 | U77: 1.22
A78: 01011 | B78: 01 | C78: AL | D78: 011 | E78: Bullock | G78: 2104008530 | H78: Furnace: Indoor, pellet-fired, general | I78: Furnace-Pellet | J78: 1.225240269 | K78: A | L78: CEC Survey | M78: 2017 | N78: 15 | O78: I | P78: 1.859983768 | Q78: TON | R78: 8 | S78: 1.52 | T78: =VLOOKUP(A78,cordwood_density!A:D,4,FALSE) -> 1.2441 | U78: 1.22
A79: 01011 | B79: 01 | C79: AL | D79: 011 | E79: Bullock | G79: 2104008610 | H79: Hydronic heater: outdoor | I79: Hydronic heater | J79: 14.70288323 | K79: A | L79: CEC Survey | M79: 2017 | N79: 15 | O79: I | P79: 22.31980522 | Q79: TON | R79: 8 | S79: 1.52 | T79: =VLOOKUP(A79,cordwood_density!A:D,4,FALSE) -> 1.2441 | U79: 1.22
A80: 01011 | B80: 01 | C80: AL | D80: 011 | E80: Bullock | G80: 2104008620 | H80: Hydronic heater: indoor | I80: Hydronic heater | J80: 9.393508728 | K80: A | L80: CEC Survey | M80: 2017 | N80: 15 | O80: I | P80: 14.25987556 | Q80: TON | R80: 8 | S80: 1.52 | T80: =VLOOKUP(A80,cordwood_density!A:D,4,FALSE) -> 1.2441 | U80: 1.22
A81: 01011 | B81: 01 | C81: AL | D81: 011 | E81: Bullock | G81: 2104008630 | H81: Hydronic heater: pellet-fired | I81: Pellet Hydronic Heater | J81: 0.408413423 | K81: A | L81: CEC Survey | M81: 2017 | N81: 15 | O81: I | P81: 0.6199945895 | Q81: TON | R81: 8 | S81: 1.52 | T81: =VLOOKUP(A81,cordwood_density!A:D,4,FALSE) -> 1.2441 | U81: 1.22
A82: 01011 | B82: 01 | C82: AL | D82: 011 | E82: Bullock | G82: 2104008100 | H82: Fireplace: general | I82: Fireplace: general | J82: 329.5606161 | K82: A | L82: CEC Survey | M82: 2017 | N82: 15 | O82: I | P82: 81.11772314 | Q82: TON | R82: 8 | S82: 0.25 | T82: =VLOOKUP(A82,cordwood_density!A:D,4,FALSE) -> 1.2441 | U82: 0.20
A83: 01011 | B83: 01 | C83: AL | D83: 011 | E83: Bullock | G83: 2104008210 | H83: Woodstove: fireplace inserts; non-EPA certified | I83: Woodstove or Fireplace Insert | J83: 105.7405412 | K83: A | L83: CEC Survey | M83: 2017 | N83: 15 | O83: I | P83: 55.08354889 | Q83: TON | R83: 8 | S83: 0.52 | T83: =VLOOKUP(A83,cordwood_density!A:D,4,FALSE) -> 1.2441 | U83: 0.42
A84: 01011 | B84: 01 | C84: AL | D84: 011 | E84: Bullock | G84: 2104008220 | H84: Woodstove: fireplace inserts; EPA certified; non-catalytic | I84: Woodstove or Fireplace Insert | J84: 139.8503932 | K84: A | L84: CEC Survey | M84: 2017 | N84: 15 | O84: I | P84: 72.85243563 | Q84: TON | R84: 8 | S84: 0.52 | T84: =VLOOKUP(A84,cordwood_density!A:D,4,FALSE) -> 1.2441 | U84: 0.42
A85: 01011 | B85: 01 | C85: AL | D85: 011 | E85: Bullock | G85: 2104008230 | H85: Woodstove: fireplace inserts; EPA certified; catalytic | I85: Woodstove or Fireplace Insert | J85: 95.50758558 | K85: A | L85: CEC Survey | M85: 2017 | N85: 15 | O85: I | P85: 49.75288287 | Q85: TON | R85: 8 | S85: 0.52 | T85: =VLOOKUP(A85,cordwood_density!A:D,4,FALSE) -> 1.2441 | U85: 0.42
A86: 01011 | B86: 01 | C86: AL | D86: 011 | E86: Bullock | G86: 2104008700 | H86: Outdoor wood burning device, NEC (fire-pits, chimeas, etc) | J86: 485.97475 | K86: A | L86: CEC Survey | M86: 2017 | N86: 15 | O86: I | P86: 88.00344275 | Q86: TON | R86: 8 | S86: 0.18 | T86: =VLOOKUP(A86,cordwood_density!A:D,4,FALSE) -> 1.2441 | U86: 0.15
A87: 01011 | B87: 01 | C87: AL | D87: 011 | E87: Bullock | G87: 2104008400 | H87: Woodstove: pellet-fired, general | I87: Pellet Woodstove | J87: 106.6911866 | K87: A | L87: CEC Survey | M87: 2017 | N87: 15 | O87: I | P87: 25.62083349 | Q87: TON | R87: 8 | S87: 0.24 | T87: =VLOOKUP(A87,cordwood_density!A:D,4,FALSE) -> 1.2441 | U87: 0.19
A88: 01011 | B88: 01 | C88: AL | D88: 011 | E88: Bullock | G88: 2104009000 | H88: Wax Log; Total: All Combustor Types | J88: 52.71210789 | K88: A | L88: CEC Survey | M88: 2017 | N88: 15 | O88: I | P88: 12.34160706 | Q88: TON | R88: 8 | S88: 0.23 | T88: =VLOOKUP(A88,cordwood_density!A:D,4,FALSE) -> 1.2441 | U88: 0.19
A89: 01011 | B89: 01 | C89: AL | D89: 011 | E89: Bullock | G89: 2104008310 | H89: Woodstove: freestanding; non-EPA certified | I89: Woodstove or Fireplace Insert | J89: 127.8587102 | K89: A | L89: CEC Survey | M89: 2017 | N89: 15 | O89: I | P89: 118.3067146 | Q89: TON | R89: 8 | S89: 0.93 | T89: =VLOOKUP(A89,cordwood_density!A:D,4,FALSE) -> 1.2441 | U89: 0.74
A90: 01011 | B90: 01 | C90: AL | D90: 011 | E90: Bullock | G90: 2104008320 | H90: Woodstove: freestanding; EPA certified; non-catalytic | I90: Woodstove or Fireplace Insert | J90: 169.1034555 | K90: A | L90: CEC Survey | M90: 2017 | N90: 15 | O90: I | P90: 156.4701709 | Q90: TON | R90: 8 | S90: 0.93 | T90: =VLOOKUP(A90,cordwood_density!A:D,4,FALSE) -> 1.2441 | U90: 0.74
A91: 01011 | B91: 01 | C91: AL | D91: 011 | E91: Bullock | G91: 2104008330 | H91: Woodstove: freestanding; EPA certified; catalytic | I91: Woodstove or Fireplace Insert | J91: 115.4852867 | K91: A | L91: CEC Survey | M91: 2017 | N91: 15 | O91: I | P91: 106.8576777 | Q91: TON | R91: 8 | S91: 0.93 | T91: =VLOOKUP(A91,cordwood_density!A:D,4,FALSE) -> 1.2441 | U91: 0.74
A92: 01013 | B92: 01 | C92: AL | D92: 013 | E92: Butler | G92: 2104008510 | H92: Furnace: Indoor, cordwood-fired, non-EPA certified | I92: Furnace | J92: 31.98976136 | K92: A | L92: CEC Survey | M92: 2017 | N92: 15 | O92: I | P92: 47.869437 | Q92: TON | R92: 8 | S92: 1.50 | T92: =VLOOKUP(A92,cordwood_density!A:D,4,FALSE) -> 1.2679 | U92: 1.18
A93: 01013 | B93: 01 | C93: AL | D93: 013 | E93: Butler | G93: 2104008530 | H93: Furnace: Indoor, pellet-fired, general | I93: Furnace-Pellet | J93: 2.593764435 | K93: A | L93: CEC Survey | M93: 2017 | N93: 15 | O93: I | P93: 3.881305703 | Q93: TON | R93: 8 | S93: 1.50 | T93: =VLOOKUP(A93,cordwood_density!A:D,4,FALSE) -> 1.2679 | U93: 1.18
A94: 01013 | B94: 01 | C94: AL | D94: 013 | E94: Butler | G94: 2104008610 | H94: Hydronic heater: outdoor | I94: Hydronic heater | J94: 31.12517322 | K94: A | L94: CEC Survey | M94: 2017 | N94: 15 | O94: I | P94: 46.57566844 | Q94: TON | R94: 8 | S94: 1.50 | T94: =VLOOKUP(A94,cordwood_density!A:D,4,FALSE) -> 1.2679 | U94: 1.18
A95: 01013 | B95: 01 | C95: AL | D95: 013 | E95: Butler | G95: 2104008620 | H95: Hydronic heater: indoor | I95: Hydronic heater | J95: 19.88552733 | K95: A | L95: CEC Survey | M95: 2017 | N95: 15 | O95: I | P95: 29.75667706 | Q95: TON | R95: 8 | S95: 1.50 | T95: =VLOOKUP(A95,cordwood_density!A:D,4,FALSE) -> 1.2679 | U95: 1.18
A96: 01013 | B96: 01 | C96: AL | D96: 013 | E96: Butler | G96: 2104008630 | H96: Hydronic heater: pellet-fired | I96: Pellet Hydronic Heater | J96: 0.864588145 | K96: A | L96: CEC Survey | M96: 2017 | N96: 15 | O96: I | P96: 1.293768568 | Q96: TON | R96: 8 | S96: 1.50 | T96: =VLOOKUP(A96,cordwood_density!A:D,4,FALSE) -> 1.2679 | U96: 1.18
A97: 01013 | B97: 01 | C97: AL | D97: 013 | E97: Butler | G97: 2104008100 | H97: Fireplace: general | I97: Fireplace: general | J97: 786.3350463 | K97: A | L97: CEC Survey | M97: 2017 | N97: 15 | O97: I | P97: 203.7686806 | Q97: TON | R97: 8 | S97: 0.26 | T97: =VLOOKUP(A97,cordwood_density!A:D,4,FALSE) -> 1.2679 | U97: 0.20
A98: 01013 | B98: 01 | C98: AL | D98: 013 | E98: Butler | G98: 2104008210 | H98: Woodstove: fireplace inserts; non-EPA certified | I98: Woodstove or Fireplace Insert | J98: 208.1821694 | K98: A | L98: CEC Survey | M98: 2017 | N98: 15 | O98: I | P98: 127.832017 | Q98: TON | R98: 8 | S98: 0.61 | T98: =VLOOKUP(A98,cordwood_density!A:D,4,FALSE) -> 1.2679 | U98: 0.48
A99: 01013 | B99: 01 | C99: AL | D99: 013 | E99: Butler | G99: 2104008220 | H99: Woodstove: fireplace inserts; EPA certified; non-catalytic | I99: Woodstove or Fireplace Insert | J99: 275.3377079 | K99: A | L99: CEC Survey | M99: 2017 | N99: 15 | O99: I | P99: 169.0681515 | Q99: TON | R99: 8 | S99: 0.61 | T99: =VLOOKUP(A99,cordwood_density!A:D,4,FALSE) -> 1.2679 | U99: 0.48
A100: 01013 | B100: 01 | C100: AL | D100: 013 | E100: Butler | G100: 2104008230 | H100: Woodstove: fireplace inserts; EPA certified; catalytic | I100: Woodstove or Fireplace Insert | J100: 188.0355078 | K100: A | L100: CEC Survey | M100: 2017 | N100: 15 | O100: I | P100: 115.4611767 | Q100: TON | R100: 8 | S100: 0.61 | T100: =VLOOKUP(A100,cordwood_density!A:D,4,FALSE) -> 1.2679 | U100: 0.48
A101: 01013 | B101: 01 | C101: AL | D101: 013 | E101: Butler | G101: 2104008700 | H101: Outdoor wood burning device, NEC (fire-pits, chimeas, etc) | J101: 1004.231941 | K101: A | L101: CEC Survey | M101: 2017 | N101: 15 | O101: I | P101: 186.3312298 | Q101: TON | R101: 8 | S101: 0.19 | T101: =VLOOKUP(A101,cordwood_density!A:D,4,FALSE) -> 1.2679 | U101: 0.15
A102: 01013 | B102: 01 | C102: AL | D102: 013 | E102: Butler | G102: 2104008400 | H102: Woodstove: pellet-fired, general | I102: Pellet Woodstove | J102: 229.4537909 | K102: A | L102: CEC Survey | M102: 2017 | N102: 15 | O102: I | P102: 55.82706758 | Q102: TON | R102: 8 | S102: 0.24 | T102: =VLOOKUP(A102,cordwood_density!A:D,4,FALSE) -> 1.2679 | U102: 0.19
A103: 01013 | B103: 01 | C103: AL | D103: 013 | E103: Butler | G103: 2104009000 | H103: Wax Log; Total: All Combustor Types | J103: 101.2589538 | K103: A | L103: CEC Survey | M103: 2017 | N103: 15 | O103: I | P103: 23.70799176 | Q103: TON | R103: 8 | S103: 0.23 | T103: =VLOOKUP(A103,cordwood_density!A:D,4,FALSE) -> 1.2679 | U103: 0.18
A104: 01013 | B104: 01 | C104: AL | D104: 013 | E104: Butler | G104: 2104008310 | H104: Woodstove: freestanding; non-EPA certified | I104: Woodstove or Fireplace Insert | J104: 249.3413478 | K104: A | L104: CEC Survey | M104: 2017 | N104: 15 | O104: I | P104: 235.9832087 | Q104: TON | R104: 8 | S104: 0.95 | T104: =VLOOKUP(A104,cordwood_density!A:D,4,FALSE) -> 1.2679 | U104: 0.75
A105: 01013 | B105: 01 | C105: AL | D105: 013 | E105: Butler | G105: 2104008320 | H105: Woodstove: freestanding; EPA certified; non-catalytic | I105: Woodstove or Fireplace Insert | J105: 329.7740406 | K105: A | L105: CEC Survey | M105: 2017 | N105: 15 | O105: I | P105: 312.1068245 | Q105: TON | R105: 8 | S105: 0.95 | T105: =VLOOKUP(A105,cordwood_density!A:D,4,FALSE) -> 1.2679 | U105: 0.75
A106: 01013 | B106: 01 | C106: AL | D106: 013 | E106: Butler | G106: 2104008330 | H106: Woodstove: freestanding; EPA certified; catalytic | I106: Woodstove or Fireplace Insert | J106: 225.2115399 | K106: A | L106: CEC Survey | M106: 2017 | N106: 15 | O106: I | P106: 213.146124 | Q106: TON | R106: 8 | S106: 0.95 | T106: =VLOOKUP(A106,cordwood_density!A:D,4,FALSE) -> 1.2679 | U106: 0.75
A107: 01015 | B107: 01 | C107: AL | D107: 015 | E107: Calhoun | G107: 2104008510 | H107: Furnace: Indoor, cordwood-fired, non-EPA certified | I107: Furnace | J107: 172.2439723 | K107: A | L107: CEC Survey | M107: 2017 | N107: 15 | O107: I | P107: 272.1556517 | Q107: TON | R107: 8 | S107: 1.58 | T107: =VLOOKUP(A107,cordwood_density!A:D,4,FALSE) -> 1.338 | U107: 1.18
A108: 01015 | B108: 01 | C108: AL | D108: 015 | E108: Calhoun | G108: 2104008530 | H108: Furnace: Indoor, pellet-fired, general | I108: Furnace-Pellet | J108: 13.96572749 | K108: A | L108: CEC Survey | M108: 2017 | N108: 15 | O108: I | P108: 22.06667446 | Q108: TON | R108: 8 | S108: 1.58 | T108: =VLOOKUP(A108,cordwood_density!A:D,4,FALSE) -> 1.338 | U108: 1.18
A109: 01015 | B109: 01 | C109: AL | D109: 015 | E109: Calhoun | G109: 2104008610 | H109: Hydronic heater: outdoor | I109: Hydronic heater | J109: 167.5887298 | K109: A | L109: CEC Survey | M109: 2017 | N109: 15 | O109: I | P109: 264.8000935 | Q109: TON | R109: 8 | S109: 1.58 | T109: =VLOOKUP(A109,cordwood_density!A:D,4,FALSE) -> 1.338 | U109: 1.18
A110: 01015 | B110: 01 | C110: AL | D110: 015 | E110: Calhoun | G110: 2104008620 | H110: Hydronic heater: indoor | I110: Hydronic heater | J110: 107.0705774 | K110: A | L110: CEC Survey | M110: 2017 | N110: 15 | O110: I | P110: 169.1778375 | Q110: TON | R110: 8 | S110: 1.58 | T110: =VLOOKUP(A110,cordwood_density!A:D,4,FALSE) -> 1.338 | U110: 1.18
A111: 01015 | B111: 01 | C111: AL | D111: 015 | E111: Calhoun | G111: 2104008630 | H111: Hydronic heater: pellet-fired | I111: Pellet Hydronic Heater | J111: 4.655242496 | K111: A | L111: CEC Survey | M111: 2017 | N111: 15 | O111: I | P111: 7.355558153 | Q111: TON | R111: 8 | S111: 1.58 | T111: =VLOOKUP(A111,cordwood_density!A:D,4,FALSE) -> 1.338 | U111: 1.18
A112: 01015 | B112: 01 | C112: AL | D112: 015 | E112: Calhoun | G112: 2104008100 | H112: Fireplace: general | I112: Fireplace: general | J112: 6263.687633 | K112: A | L112: CEC Survey | M112: 2017 | N112: 15 | O112: I | P112: 1481.327917 | Q112: TON | R112: 8 | S112: 0.24 | T112: =VLOOKUP(A112,cordwood_density!A:D,4,FALSE) -> 1.338 | U112: 0.18
A113: 01015 | B113: 01 | C113: AL | D113: 015 | E113: Calhoun | G113: 2104008210 | H113: Woodstove: fireplace inserts; non-EPA certified | I113: Woodstove or Fireplace Insert | J113: 1098.270103 | K113: A | L113: CEC Survey | M113: 2017 | N113: 15 | O113: I | P113: 652.5367662 | Q113: TON | R113: 8 | S113: 0.59 | T113: =VLOOKUP(A113,cordwood_density!A:D,4,FALSE) -> 1.338 | U113: 0.44
A114: 01015 | B114: 01 | C114: AL | D114: 015 | E114: Calhoun | G114: 2104008220 | H114: Woodstove: fireplace inserts; EPA certified; non-catalytic | I114: Woodstove or Fireplace Insert | J114: 1452.550782 | K114: A | L114: CEC Survey | M114: 2017 | N114: 15 | O114: I | P114: 863.0324972 | Q114: TON | R114: 8 | S114: 0.59 | T114: =VLOOKUP(A114,cordwood_density!A:D,4,FALSE) -> 1.338 | U114: 0.44
A115: 01015 | B115: 01 | C115: AL | D115: 015 | E115: Calhoun | G115: 2104008230 | H115: Woodstove: fireplace inserts; EPA certified; catalytic | I115: Woodstove or Fireplace Insert | J115: 991.9858999 | K115: A | L115: CEC Survey | M115: 2017 | N115: 15 | O115: I | P115: 589.3880469 | Q115: TON | R115: 8 | S115: 0.59 | T115: =VLOOKUP(A115,cordwood_density!A:D,4,FALSE) -> 1.338 | U115: 0.44
A116: 01015 | B116: 01 | C116: AL | D116: 015 | E116: Calhoun | G116: 2104008700 | H116: Outdoor wood burning device, NEC (fire-pits, chimeas, etc) | J116: 6521.407582 | K116: A | L116: CEC Survey | M116: 2017 | N116: 15 | O116: I | P116: 1290.298934 | Q116: TON | R116: 8 | S116: 0.20 | T116: =VLOOKUP(A116,cordwood_density!A:D,4,FALSE) -> 1.338 | U116: 0.15
A117: 01015 | B117: 01 | C117: AL | D117: 015 | E117: Calhoun | G117: 2104008400 | H117: Woodstove: pellet-fired, general | I117: Pellet Woodstove | J117: 1347.757458 | K117: A | L117: CEC Survey | M117: 2017 | N117: 15 | O117: I | P117: 300.6653363 | Q117: TON | R117: 8 | S117: 0.22 | T117: =VLOOKUP(A117,cordwood_density!A:D,4,FALSE) -> 1.338 | U117: 0.17
A118: 01015 | B118: 01 | C118: AL | D118: 015 | E118: Calhoun | G118: 2104009000 | H118: Wax Log; Total: All Combustor Types | J118: 647.7556822 | K118: A | L118: CEC Survey | M118: 2017 | N118: 15 | O118: I | P118: 222.4579242 | Q118: TON | R118: 8 | S118: 0.34 | T118: =VLOOKUP(A118,cordwood_density!A:D,4,FALSE) -> 1.338 | U118: 0.26
A119: 01015 | B119: 01 | C119: AL | D119: 015 | E119: Calhoun | G119: 2104008310 | H119: Woodstove: freestanding; non-EPA certified | I119: Woodstove or Fireplace Insert | J119: 1278.517282 | K119: A | L119: CEC Survey | M119: 2017 | N119: 15 | O119: I | P119: 1110.802678 | Q119: TON | R119: 8 | S119: 0.87 | T119: =VLOOKUP(A119,cordwood_density!A:D,4,FALSE) -> 1.338 | U119: 0.65
A120: 01015 | B120: 01 | C120: AL | D120: 015 | E120: Calhoun | G120: 2104008320 | H120: Woodstove: freestanding; EPA certified; non-catalytic | I120: Woodstove or Fireplace Insert | J120: 1690.942211 | K120: A | L120: CEC Survey | M120: 2017 | N120: 15 | O120: I | P120: 1469.126123 | Q120: TON | R120: 8 | S120: 0.87 | T120: =VLOOKUP(A120,cordwood_density!A:D,4,FALSE) -> 1.338 | U120: 0.65
A121: 01015 | B121: 01 | C121: AL | D121: 015 | E121: Calhoun | G121: 2104008330 | H121: Woodstove: freestanding; EPA certified; catalytic | I121: Woodstove or Fireplace Insert | J121: 1154.789803 | K121: A | L121: CEC Survey | M121: 2017 | N121: 15 | O121: I | P121: 1003.305645 | Q121: TON | R121: 8 | S121: 0.87 | T121: =VLOOKUP(A121,cordwood_density!A:D,4,FALSE) -> 1.338 | U121: 0.65
A122: 01017 | B122: 01 | C122: AL | D122: 017 | E122: Chambers | G122: 2104008510 | H122: Furnace: Indoor, cordwood-fired, non-EPA certified | I122: Furnace | J122: 65.43709027 | K122: A | L122: CEC Survey | M122: 2017 | N122: 15 | O122: I | P122: 95.684235 | Q122: TON | R122: 8 | S122: 1.46 | T122: =VLOOKUP(A122,cordwood_density!A:D,4,FALSE) -> 1.2087 | U122: 1.21
A123: 01017 | B123: 01 | C123: AL | D123: 017 | E123: Chambers | G123: 2104008530 | H123: Furnace: Indoor, pellet-fired, general | I123: Furnace-Pellet | J123: 5.305710022 | K123: A | L123: CEC Survey | M123: 2017 | N123: 15 | O123: I | P123: 7.758181216 | Q123: TON | R123: 8 | S123: 1.46 | T123: =VLOOKUP(A123,cordwood_density!A:D,4,FALSE) -> 1.2087 | U123: 1.21
A124: 01017 | B124: 01 | C124: AL | D124: 017 | E124: Chambers | G124: 2104008610 | H124: Hydronic heater: outdoor | I124: Hydronic heater | J124: 63.66852027 | K124: A | L124: CEC Survey | M124: 2017 | N124: 15 | O124: I | P124: 93.0981746 | Q124: TON | R124: 8 | S124: 1.46 | T124: =VLOOKUP(A124,cordwood_density!A:D,4,FALSE) -> 1.2087 | U124: 1.21
A125: 01017 | B125: 01 | C125: AL | D125: 017 | E125: Chambers | G125: 2104008620 | H125: Hydronic heater: indoor | I125: Hydronic heater | J125: 40.67711017 | K125: A | L125: CEC Survey | M125: 2017 | N125: 15 | O125: I | P125: 59.47938933 | Q125: TON | R125: 8 | S125: 1.46 | T125: =VLOOKUP(A125,cordwood_density!A:D,4,FALSE) -> 1.2087 | U125: 1.21
A126: 01017 | B126: 01 | C126: AL | D126: 017 | E126: Chambers | G126: 2104008630 | H126: Hydronic heater: pellet-fired | I126: Pellet Hydronic Heater | J126: 1.768570007 | K126: A | L126: CEC Survey | M126: 2017 | N126: 15 | O126: I | P126: 2.586060405 | Q126: TON | R126: 8 | S126: 1.46 | T126: =VLOOKUP(A126,cordwood_density!A:D,4,FALSE) -> 1.2087 | U126: 1.21
A127: 01017 | B127: 01 | C127: AL | D127: 017 | E127: Chambers | G127: 2104008100 | H127: Fireplace: general | I127: Fireplace: general | J127: 1636.185919 | K127: A | L127: CEC Survey | M127: 2017 | N127: 15 | O127: I | P127: 374.7182316 | Q127: TON | R127: 8 | S127: 0.23 | T127: =VLOOKUP(A127,cordwood_density!A:D,4,FALSE) -> 1.2087 | U127: 0.19
A128: 01017 | B128: 01 | C128: AL | D128: 017 | E128: Chambers | G128: 2104008210 | H128: Woodstove: fireplace inserts; non-EPA certified | I128: Woodstove or Fireplace Insert | J128: 398.2365537 | K128: A | L128: CEC Survey | M128: 2017 | N128: 15 | O128: I | P128: 224.8373259 | Q128: TON | R128: 8 | S128: 0.56 | T128: =VLOOKUP(A128,cordwood_density!A:D,4,FALSE) -> 1.2087 | U128: 0.47
A129: 01017 | B129: 01 | C129: AL | D129: 017 | E129: Chambers | G129: 2104008220 | H129: Woodstove: fireplace inserts; EPA certified; non-catalytic | I129: Woodstove or Fireplace Insert | J129: 526.6999581 | K129: A | L129: CEC Survey | M129: 2017 | N129: 15 | O129: I | P129: 297.3654955 | Q129: TON | R129: 8 | S129: 0.56 | T129: =VLOOKUP(A129,cordwood_density!A:D,4,FALSE) -> 1.2087 | U129: 0.47
A130: 01017 | B130: 01 | C130: AL | D130: 017 | E130: Chambers | G130: 2104008230 | H130: Woodstove: fireplace inserts; EPA certified; catalytic | I130: Woodstove or Fireplace Insert | J130: 359.6975324 | K130: A | L130: CEC Survey | M130: 2017 | N130: 15 | O130: I | P130: 203.078875 | Q130: TON | R130: 8 | S130: 0.56 | T130: =VLOOKUP(A130,cordwood_density!A:D,4,FALSE) -> 1.2087 | U130: 0.47
A131: 01017 | B131: 01 | C131: AL | D131: 017 | E131: Chambers | G131: 2104008700 | H131: Outdoor wood burning device, NEC (fire-pits, chimeas, etc) | J131: 2071.440548 | K131: A | L131: CEC Survey | M131: 2017 | N131: 15 | O131: I | P131: 368.0149611 | Q131: TON | R131: 8 | S131: =P131/J131 -> 0.18 | T131: =VLOOKUP(A131,cordwood_density!A:D,4,FALSE) -> 1.2087 | U131: =S131/T131 -> 0.15
A132: 01017 | B132: 01 | C132: AL | D132: 017 | E132: Chambers | G132: 2104008400 | H132: Woodstove: pellet-fired, general | I132: Pellet Woodstove | J132: 456.3971787 | K132: A | L132: CEC Survey | M132: 2017 | N132: 15 | O132: I | P132: 114.9663361 | Q132: TON | R132: 8 | S132: 0.25 | T132: =VLOOKUP(A132,cordwood_density!A:D,4,FALSE) -> 1.2087 | U132: 0.21
A133: 01017 | B133: 01 | C133: AL | D133: 017 | E133: Chambers | G133: 2104009000 | H133: Wax Log; Total: All Combustor Types | J133: 196.686541 | K133: A | L133: CEC Survey | M133: 2017 | N133: 15 | O133: I | P133: 67.54781291 | Q133: TON | R133: 8 | S133: 0.34 | T133: =VLOOKUP(A133,cordwood_density!A:D,4,FALSE) -> 1.2087 | U133: 0.28
A134: 01017 | B134: 01 | C134: AL | D134: 017 | E134: Chambers | G134: 2104008310 | H134: Woodstove: freestanding; non-EPA certified | I134: Woodstove or Fireplace Insert | J134: 485.9135994 | K134: A | L134: CEC Survey | M134: 2017 | N134: 15 | O134: I | P134: 410.8381027 | Q134: TON | R134: 8 | S134: 0.85 | T134: =VLOOKUP(A134,cordwood_density!A:D,4,FALSE) -> 1.2087 | U134: 0.70
A135: 01017 | B135: 01 | C135: AL | D135: 017 | E135: Chambers | G135: 2104008320 | H135: Woodstove: freestanding; EPA certified; non-catalytic | I135: Woodstove or Fireplace Insert | J135: 642.6599217 | K135: A | L135: CEC Survey | M135: 2017 | N135: 15 | O135: I | P135: 543.366523 | Q135: TON | R135: 8 | S135: 0.85 | T135: =VLOOKUP(A135,cordwood_density!A:D,4,FALSE) -> 1.2087 | U135: 0.70
A136: 01017 | B136: 01 | C136: AL | D136: 017 | E136: Chambers | G136: 2104008330 | H136: Woodstove: freestanding; EPA certified; catalytic | I136: Woodstove or Fireplace Insert | J136: 438.8897027 | K136: A | L136: CEC Survey | M136: 2017 | N136: 15 | O136: I | P136: 371.0795767 | Q136: TON | R136: 8 | S136: 0.85 | T136: =VLOOKUP(A136,cordwood_density!A:D,4,FALSE) -> 1.2087 | U136: 0.70
A137: 01019 | B137: 01 | C137: AL | D137: 019 | E137: Cherokee | G137: 2104008510 | H137: Furnace: Indoor, cordwood-fired, non-EPA certified | I137: Furnace | J137: 62.30122855 | K137: A | L137: CEC Survey | M137: 2017 | N137: 15 | O137: I | P137: 106.3692799 | Q137: TON | R137: 8 | S137: 1.71 | T137: =VLOOKUP(A137,cordwood_density!A:D,4,FALSE) -> 1.3571 | U137: 1.26
A138: 01019 | B138: 01 | C138: AL | D138: 019 | E138: Cherokee | G138: 2104008530 | H138: Furnace: Indoor, pellet-fired, general | I138: Furnace-Pellet | J138: 5.051450963 | K138: A | L138: CEC Survey | M138: 2017 | N138: 15 | O138: I | P138: 8.624536208 | Q138: TON | R138: 8 | S138: 1.71 | T138: =VLOOKUP(A138,cordwood_density!A:D,4,FALSE) -> 1.3571 | U138: 1.26
A139: 01019 | B139: 01 | C139: AL | D139: 019 | E139: Cherokee | G139: 2104008610 | H139: Hydronic heater: outdoor | I139: Hydronic heater | J139: 60.61741156 | K139: A | L139: CEC Survey | M139: 2017 | N139: 15 | O139: I | P139: 103.4944345 | Q139: TON | R139: 8 | S139: 1.71 | T139: =VLOOKUP(A139,cordwood_density!A:D,4,FALSE) -> 1.3571 | U139: 1.26
A140: 01019 | B140: 01 | C140: AL | D140: 019 | E140: Cherokee | G140: 2104008620 | H140: Hydronic heater: indoor | I140: Hydronic heater | J140: 38.72779072 | K140: A | L140: CEC Survey | M140: 2017 | N140: 15 | O140: I | P140: 66.12144426 | Q140: TON | R140: 8 | S140: 1.71 | T140: =VLOOKUP(A140,cordwood_density!A:D,4,FALSE) -> 1.3571 | U140: 1.26
A141: 01019 | B141: 01 | C141: AL | D141: 019 | E141: Cherokee | G141: 2104008630 | H141: Hydronic heater: pellet-fired | I141: Pellet Hydronic Heater | J141: 1.683816988 | K141: A | L141: CEC Survey | M141: 2017 | N141: 15 | O141: I | P141: 2.874845403 | Q141: TON | R141: 8 | S141: 1.71 | T141: =VLOOKUP(A141,cordwood_density!A:D,4,FALSE) -> 1.3571 | U141: 1.26
A142: 01019 | B142: 01 | C142: AL | D142: 019 | E142: Cherokee | G142: 2104008100 | H142: Fireplace: general | I142: Fireplace: general | J142: 839.4964706 | K142: A | L142: CEC Survey | M142: 2017 | N142: 15 | O142: I | P142: 248.358211 | Q142: TON | R142: 8 | S142: 0.30 | T142: =VLOOKUP(A142,cordwood_density!A:D,4,FALSE) -> 1.3571 | U142: 0.22
A143: 01019 | B143: 01 | C143: AL | D143: 019 | E143: Cherokee | G143: 2104008210 | H143: Woodstove: fireplace inserts; non-EPA certified | I143: Woodstove or Fireplace Insert | J143: 305.2761265 | K143: A | L143: CEC Survey | M143: 2017 | N143: 15 | O143: I | P143: 146.5799604 | Q143: TON | R143: 8 | S143: 0.48 | T143: =VLOOKUP(A143,cordwood_density!A:D,4,FALSE) -> 1.3571 | U143: 0.35
A144: 01019 | B144: 01 | C144: AL | D144: 019 | E144: Cherokee | G144: 2104008220 | H144: Woodstove: fireplace inserts; EPA certified; non-catalytic | I144: Woodstove or Fireplace Insert | J144: 403.7522963 | K144: A | L144: CEC Survey | M144: 2017 | N144: 15 | O144: I | P144: 193.8638186 | Q144: TON | R144: 8 | S144: 0.48 | T144: =VLOOKUP(A144,cordwood_density!A:D,4,FALSE) -> 1.3571 | U144: 0.35
A145: 01019 | B145: 01 | C145: AL | D145: 019 | E145: Cherokee | G145: 2104008230 | H145: Woodstove: fireplace inserts; EPA certified; catalytic | I145: Woodstove or Fireplace Insert | J145: 275.7332755 | K145: A | L145: CEC Survey | M145: 2017 | N145: 15 | O145: I | P145: 132.394803 | Q145: TON | R145: 8 | S145: 0.48 | T145: =VLOOKUP(A145,cordwood_density!A:D,4,FALSE) -> 1.3571 | U145: 0.35
A146: 01019 | B146: 01 | C146: AL | D146: 019 | E146: Cherokee | G146: 2104008700 | H146: Outdoor wood burning device, NEC (fire-pits, chimeas, etc) | J146: 1618.021713 | K146: A | L146: CEC Survey | M146: 2017 | N146: 15 | O146: I | P146: 323.9400611 | Q146: TON | R146: 8 | S146: 0.20 | T146: =VLOOKUP(A146,cordwood_density!A:D,4,FALSE) -> 1.3571 | U146: 0.15
A147: 01019 | B147: 01 | C147: AL | D147: 019 | E147: Cherokee | G147: 2104008400 | H147: Woodstove: pellet-fired, general | I147: Pellet Woodstove | J147: 411.4316378 | K147: A | L147: CEC Survey | M147: 2017 | N147: 15 | O147: I | P147: 102.7072205 | Q147: TON | R147: 8 | S147: 0.25 | T147: =VLOOKUP(A147,cordwood_density!A:D,4,FALSE) -> 1.3571 | U147: 0.18
A148: 01019 | B148: 01 | C148: AL | D148: 019 | E148: Cherokee | G148: 2104009000 | H148: Wax Log; Total: All Combustor Types | J148: 155.0482846 | K148: A | L148: CEC Survey | M148: 2017 | N148: 15 | O148: I | P148: 53.24803859 | Q148: TON | R148: 8 | S148: 0.34 | T148: =VLOOKUP(A148,cordwood_density!A:D,4,FALSE) -> 1.3571 | U148: 0.25
A149: 01019 | B149: 01 | C149: AL | D149: 019 | E149: Cherokee | G149: 2104008310 | H149: Woodstove: freestanding; non-EPA certified | I149: Woodstove or Fireplace Insert | J149: 465.8422811 | K149: A | L149: CEC Survey | M149: 2017 | N149: 15 | O149: I | P149: 474.5435537 | Q149: TON | R149: 8 | S149: 1.02 | T149: =VLOOKUP(A149,cordwood_density!A:D,4,FALSE) -> 1.3571 | U149: 0.75
A150: 01019 | B150: 01 | C150: AL | D150: 019 | E150: Cherokee | G150: 2104008320 | H150: Woodstove: freestanding; EPA certified; non-catalytic | I150: Woodstove or Fireplace Insert | J150: 616.1139847 | K150: A | L150: CEC Survey | M150: 2017 | N150: 15 | O150: I | P150: 627.6221194 | Q150: TON | R150: 8 | S150: 1.02 | T150: =VLOOKUP(A150,cordwood_density!A:D,4,FALSE) -> 1.3571 | U150: 0.75
A151: 01019 | B151: 01 | C151: AL | D151: 019 | E151: Cherokee | G151: 2104008330 | H151: Woodstove: freestanding; EPA certified; catalytic | I151: Woodstove or Fireplace Insert | J151: 420.76077 | K151: A | L151: CEC Survey | M151: 2017 | N151: 15 | O151: I | P151: 428.619984 | Q151: TON | R151: 8 | S151: 1.02 | T151: =VLOOKUP(A151,cordwood_density!A:D,4,FALSE) -> 1.3571 | U151: 0.75
A152: 01021 | B152: 01 | C152: AL | D152: 021 | E152: Chilton | G152: 2104008510 | H152: Furnace: Indoor, cordwood-fired, non-EPA certified | I152: Furnace | J152: 99.65606834 | K152: A | L152: CEC Survey | M152: 2017 | N152: 15 | O152: I | P152: 162.1522901 | Q152: TON | R152: 8 | S152: 1.63 | T152: =VLOOKUP(A152,cordwood_density!A:D,4,FALSE) -> 1.2829 | U152: 1.27
A153: 01021 | B153: 01 | C153: AL | D153: 021 | E153: Chilton | G153: 2104008530 | H153: Furnace: Indoor, pellet-fired, general | I153: Furnace-Pellet | J153: 8.080221757 | K153: A | L153: CEC Survey | M153: 2017 | N153: 15 | O153: I | P153: 13.14748298 | Q153: TON | R153: 8 | S153: 1.63 | T153: =VLOOKUP(A153,cordwood_density!A:D,4,FALSE) -> 1.2829 | U153: 1.27
A154: 01021 | B154: 01 | C154: AL | D154: 021 | E154: Chilton | G154: 2104008610 | H154: Hydronic heater: outdoor | I154: Hydronic heater | J154: 96.96266109 | K154: A | L154: CEC Survey | M154: 2017 | N154: 15 | O154: I | P154: 157.7697958 | Q154: TON | R154: 8 | S154: 1.63 | T154: =VLOOKUP(A154,cordwood_density!A:D,4,FALSE) -> 1.2829 | U154: 1.27
A155: 01021 | B155: 01 | C155: AL | D155: 021 | E155: Chilton | G155: 2104008620 | H155: Hydronic heater: indoor | I155: Hydronic heater | J155: 61.94836681 | K155: A | L155: CEC Survey | M155: 2017 | N155: 15 | O155: I | P155: 100.7973696 | Q155: TON | R155: 8 | S155: 1.63 | T155: =VLOOKUP(A155,cordwood_density!A:D,4,FALSE) -> 1.2829 | U155: 1.27
A156: 01021 | B156: 01 | C156: AL | D156: 021 | E156: Chilton | G156: 2104008630 | H156: Hydronic heater: pellet-fired | I156: Pellet Hydronic Heater | J156: 2.693407252 | K156: A | L156: CEC Survey | M156: 2017 | N156: 15 | O156: I | P156: 4.382494328 | Q156: TON | R156: 8 | S156: 1.63 | T156: =VLOOKUP(A156,cordwood_density!A:D,4,FALSE) -> 1.2829 | U156: 1.27
A157: 01021 | B157: 01 | C157: AL | D157: 021 | E157: Chilton | G157: 2104008100 | H157: Fireplace: general | I157: Fireplace: general | J157: 1470.098684 | K157: A | L157: CEC Survey | M157: 2017 | N157: 15 | O157: I | P157: 398.4846305 | Q157: TON | R157: 8 | S157: 0.27 | T157: =VLOOKUP(A157,cordwood_density!A:D,4,FALSE) -> 1.2829 | U157: 0.21
A158: 01021 | B158: 01 | C158: AL | D158: 021 | E158: Chilton | G158: 2104008210 | H158: Woodstove: fireplace inserts; non-EPA certified | I158: Woodstove or Fireplace Insert | J158: 505.8681581 | K158: A | L158: CEC Survey | M158: 2017 | N158: 15 | O158: I | P158: 264.6900231 | Q158: TON | R158: 8 | S158: 0.52 | T158: =VLOOKUP(A158,cordwood_density!A:D,4,FALSE) -> 1.2829 | U158: 0.41
A159: 01021 | B159: 01 | C159: AL | D159: 021 | E159: Chilton | G159: 2104008220 | H159: Woodstove: fireplace inserts; EPA certified; non-catalytic | I159: Woodstove or Fireplace Insert | J159: 669.0514349 | K159: A | L159: CEC Survey | M159: 2017 | N159: 15 | O159: I | P159: 350.0739016 | Q159: TON | R159: 8 | S159: 0.52 | T159: =VLOOKUP(A159,cordwood_density!A:D,4,FALSE) -> 1.2829 | U159: 0.41
A160: 01021 | B160: 01 | C160: AL | D160: 021 | E160: Chilton | G160: 2104008230 | H160: Woodstove: fireplace inserts; EPA certified; catalytic | I160: Woodstove or Fireplace Insert | J160: 456.9131751 | K160: A | L160: CEC Survey | M160: 2017 | N160: 15 | O160: I | P160: 239.0748596 | Q160: TON | R160: 8 | S160: 0.52 | T160: =VLOOKUP(A160,cordwood_density!A:D,4,FALSE) -> 1.2829 | U160: 0.41
A161: 01021 | B161: 01 | C161: AL | D161: 021 | E161: Chilton | G161: 2104008700 | H161: Outdoor wood burning device, NEC (fire-pits, chimeas, etc) | J161: 2444.667554 | K161: A | L161: CEC Survey | M161: 2017 | N161: 15 | O161: I | P161: 460.7715934 | Q161: TON | R161: 8 | S161: 0.19 | T161: =VLOOKUP(A161,cordwood_density!A:D,4,FALSE) -> 1.2829 | U161: 0.15
A162: 01021 | B162: 01 | C162: AL | D162: 021 | E162: Chilton | G162: 2104008400 | H162: Woodstove: pellet-fired, general | I162: Pellet Woodstove | J162: 595.4310931 | K162: A | L162: CEC Survey | M162: 2017 | N162: 15 | O162: I | P162: 173.9604795 | Q162: TON | R162: 8 | S162: 0.29 | T162: =VLOOKUP(A162,cordwood_density!A:D,4,FALSE) -> 1.2829 | U162: 0.23
A163: 01021 | B163: 01 | C163: AL | D163: 021 | E163: Chilton | G163: 2104009000 | H163: Wax Log; Total: All Combustor Types | J163: 140.5203674 | K163: A | L163: CEC Survey | M163: 2017 | N163: 15 | O163: I | P163: 48.25873411 | Q163: TON | R163: 8 | S163: 0.34 | T163: =VLOOKUP(A163,cordwood_density!A:D,4,FALSE) -> 1.2829 | U163: 0.27
A164: 01021 | B164: 01 | C164: AL | D164: 021 | E164: Chilton | G164: 2104008310 | H164: Woodstove: freestanding; non-EPA certified | I164: Woodstove or Fireplace Insert | J164: 727.584505 | K164: A | L164: CEC Survey | M164: 2017 | N164: 15 | O164: I | P164: 722.6866101 | Q164: TON | R164: 8 | S164: 0.99 | T164: =VLOOKUP(A164,cordwood_density!A:D,4,FALSE) -> 1.2829 | U164: 0.77
A165: 01021 | B165: 01 | C165: AL | D165: 021 | E165: Chilton | G165: 2104008320 | H165: Woodstove: freestanding; EPA certified; non-catalytic | I165: Woodstove or Fireplace Insert | J165: 962.289184 | K165: A | L165: CEC Survey | M165: 2017 | N165: 15 | O165: I | P165: 955.811323 | Q165: TON | R165: 8 | S165: 0.99 | T165: =VLOOKUP(A165,cordwood_density!A:D,4,FALSE) -> 1.2829 | U165: 0.77
A166: 01021 | B166: 01 | C166: AL | D166: 021 | E166: Chilton | G166: 2104008330 | H166: Woodstove: freestanding; EPA certified; catalytic | I166: Woodstove or Fireplace Insert | J166: 657.1731013 | K166: A | L166: CEC Survey | M166: 2017 | N166: 15 | O166: I | P166: 652.7491962 | Q166: TON | R166: 8 | S166: 0.99 | T166: =VLOOKUP(A166,cordwood_density!A:D,4,FALSE) -> 1.2829 | U166: 0.77
A167: 01023 | B167: 01 | C167: AL | D167: 023 | E167: Choctaw | G167: 2104008510 | H167: Furnace: Indoor, cordwood-fired, non-EPA certified | I167: Furnace | J167: 33.92729973 | K167: A | L167: CEC Survey | M167: 2017 | N167: 15 | O167: I | P167: 54.05385089 | Q167: TON | R167: 8 | S167: 1.59 | T167: =VLOOKUP(A167,cordwood_density!A:D,4,FALSE) -> 1.2819 | U167: 1.24
A168: 01023 | B168: 01 | C168: AL | D168: 023 | E168: Choctaw | G168: 2104008530 | H168: Furnace: Indoor, pellet-fired, general | I168: Furnace-Pellet | J168: 2.75086214 | K168: A | L168: CEC Survey | M168: 2017 | N168: 15 | O168: I | P168: 4.382744667 | Q168: TON | R168: 8 | S168: 1.59 | T168: =VLOOKUP(A168,cordwood_density!A:D,4,FALSE) -> 1.2819 | U168: 1.24
A169: 01023 | B169: 01 | C169: AL | D169: 023 | E169: Choctaw | G169: 2104008610 | H169: Hydronic heater: outdoor | I169: Hydronic heater | J169: 33.01034568 | K169: A | L169: CEC Survey | M169: 2017 | N169: 15 | O169: I | P169: 52.592936 | Q169: TON | R169: 8 | S169: 1.59 | T169: =VLOOKUP(A169,cordwood_density!A:D,4,FALSE) -> 1.2819 | U169: 1.24
A170: 01023 | B170: 01 | C170: AL | D170: 023 | E170: Choctaw | G170: 2104008620 | H170: Hydronic heater: indoor | I170: Hydronic heater | J170: 21.08994307 | K170: A | L170: CEC Survey | M170: 2017 | N170: 15 | O170: I | P170: 33.60104244 | Q170: TON | R170: 8 | S170: 1.59 | T170: =VLOOKUP(A170,cordwood_density!A:D,4,FALSE) -> 1.2819 | U170: 1.24
A171: 01023 | B171: 01 | C171: AL | D171: 023 | E171: Choctaw | G171: 2104008630 | H171: Hydronic heater: pellet-fired | I171: Pellet Hydronic Heater | J171: 0.9169540467 | K171: A | L171: CEC Survey | M171: 2017 | N171: 15 | O171: I | P171: 1.460914889 | Q171: TON | R171: 8 | S171: 1.59 | T171: =VLOOKUP(A171,cordwood_density!A:D,4,FALSE) -> 1.2819 | U171: 1.24
A172: 01023 | B172: 01 | C172: AL | D172: 023 | E172: Choctaw | G172: 2104008100 | H172: Fireplace: general | I172: Fireplace: general | J172: 576.4212939 | K172: A | L172: CEC Survey | M172: 2017 | N172: 15 | O172: I | P172: 159.9409787 | Q172: TON | R172: 8 | S172: 0.28 | T172: =VLOOKUP(A172,cordwood_density!A:D,4,FALSE) -> 1.2819 | U172: 0.22
A173: 01023 | B173: 01 | C173: AL | D173: 023 | E173: Choctaw | G173: 2104008210 | H173: Woodstove: fireplace inserts; non-EPA certified | I173: Woodstove or Fireplace Insert | J173: 197.4862625 | K173: A | L173: CEC Survey | M173: 2017 | N173: 15 | O173: I | P173: 128.5199712 | Q173: TON | R173: 8 | S173: 0.65 | T173: =VLOOKUP(A173,cordwood_density!A:D,4,FALSE) -> 1.2819 | U173: 0.51
A174: 01023 | B174: 01 | C174: AL | D174: 023 | E174: Choctaw | G174: 2104008220 | H174: Woodstove: fireplace inserts; EPA certified; non-catalytic | I174: Woodstove or Fireplace Insert | J174: 261.1915084 | K174: A | L174: CEC Survey | M174: 2017 | N174: 15 | O174: I | P174: 169.9780264 | Q174: TON | R174: 8 | S174: 0.65 | T174: =VLOOKUP(A174,cordwood_density!A:D,4,FALSE) -> 1.2819 | U174: 0.51
A175: 01023 | B175: 01 | C175: AL | D175: 023 | E175: Choctaw | G175: 2104008230 | H175: Woodstove: fireplace inserts; EPA certified; catalytic | I175: Woodstove or Fireplace Insert | J175: 178.3746887 | K175: A | L175: CEC Survey | M175: 2017 | N175: 15 | O175: I | P175: 116.0825546 | Q175: TON | R175: 8 | S175: 0.65 | T175: =VLOOKUP(A175,cordwood_density!A:D,4,FALSE) -> 1.2819 | U175: 0.51
A176: 01023 | B176: 01 | C176: AL | D176: 023 | E176: Choctaw | G176: 2104008700 | H176: Outdoor wood burning device, NEC (fire-pits, chimeas, etc) | J176: 852.3838976 | K176: A | L176: CEC Survey | M176: 2017 | N176: 15 | O176: I | P176: 161.7250567 | Q176: TON | R176: 8 | S176: 0.19 | T176: =VLOOKUP(A176,cordwood_density!A:D,4,FALSE) -> 1.2819 | U176: 0.15
A177: 01023 | B177: 01 | C177: AL | D177: 023 | E177: Choctaw | G177: 2104008400 | H177: Woodstove: pellet-fired, general | I177: Pellet Woodstove | J177: 211.4130303 | K177: A | L177: CEC Survey | M177: 2017 | N177: 15 | O177: I | P177: 63.65124957 | Q177: TON | R177: 8 | S177: 0.30 | T177: =VLOOKUP(A177,cordwood_density!A:D,4,FALSE) -> 1.2819 | U177: 0.23
A178: 01023 | B178: 01 | C178: AL | D178: 023 | E178: Choctaw | G178: 2104009000 | H178: Wax Log; Total: All Combustor Types | J178: 78.464917 | K178: A | L178: CEC Survey | M178: 2017 | N178: 15 | O178: I | P178: 18.37117149 | Q178: TON | R178: 8 | S178: 0.23 | T178: =VLOOKUP(A178,cordwood_density!A:D,4,FALSE) -> 1.2819 | U178: 0.18
A179: 01023 | B179: 01 | C179: AL | D179: 023 | E179: Choctaw | G179: 2104008310 | H179: Woodstove: freestanding; non-EPA certified | I179: Woodstove or Fireplace Insert | J179: 257.7727974 | K179: A | L179: CEC Survey | M179: 2017 | N179: 15 | O179: I | P179: 263.8407364 | Q179: TON | R179: 8 | S179: 1.02 | T179: =VLOOKUP(A179,cordwood_density!A:D,4,FALSE) -> 1.2819 | U179: 0.80
A180: 01023 | B180: 01 | C180: AL | D180: 023 | E180: Choctaw | G180: 2104008320 | H180: Woodstove: freestanding; EPA certified; non-catalytic | I180: Woodstove or Fireplace Insert | J180: 340.9253127 | K180: A | L180: CEC Survey | M180: 2017 | N180: 15 | O180: I | P180: 348.9506514 | Q180: TON | R180: 8 | S180: 1.02 | T180: =VLOOKUP(A180,cordwood_density!A:D,4,FALSE) -> 1.2819 | U180: 0.80
A181: 01023 | B181: 01 | C181: AL | D181: 023 | E181: Choctaw | G181: 2104008330 | H181: Woodstove: freestanding; EPA certified; catalytic | I181: Woodstove or Fireplace Insert | J181: 232.8270428 | K181: A | L181: CEC Survey | M181: 2017 | N181: 15 | O181: I | P181: 238.307762 | Q181: TON | R181: 8 | S181: 1.02 | T181: =VLOOKUP(A181,cordwood_density!A:D,4,FALSE) -> 1.2819 | U181: 0.80
A182: 01025 | B182: 01 | C182: AL | D182: 025 | E182: Clarke | G182: 2104008510 | H182: Furnace: Indoor, cordwood-fired, non-EPA certified | I182: Furnace | J182: 46.87726036 | K182: A | L182: CEC Survey | M182: 2017 | N182: 15 | O182: I | P182: 71.04416016 | Q182: TON | R182: 8 | S182: 1.52 | T182: =VLOOKUP(A182,cordwood_density!A:D,4,FALSE) -> 1.2798 | U182: 1.18
A183: 01025 | B183: 01 | C183: AL | D183: 025 | E183: Clarke | G183: 2104008530 | H183: Furnace: Indoor, pellet-fired, general | I183: Furnace-Pellet | J183: 3.800858948 | K183: A | L183: CEC Survey | M183: 2017 | N183: 15 | O183: I | P183: 5.760337311 | Q183: TON | R183: 8 | S183: 1.52 | T183: =VLOOKUP(A183,cordwood_density!A:D,4,FALSE) -> 1.2798 | U183: 1.18
A184: 01025 | B184: 01 | C184: AL | D184: 025 | E184: Clarke | G184: 2104008610 | H184: Hydronic heater: outdoor | I184: Hydronic heater | J184: 45.61030738 | K184: A | L184: CEC Survey | M184: 2017 | N184: 15 | O184: I | P184: 69.12404773 | Q184: TON | R184: 8 | S184: 1.52 | T184: =VLOOKUP(A184,cordwood_density!A:D,4,FALSE) -> 1.2798 | U184: 1.18
A185: 01025 | B185: 01 | C185: AL | D185: 025 | E185: Clarke | G185: 2104008620 | H185: Hydronic heater: indoor | I185: Hydronic heater | J185: 29.1399186 | K185: A | L185: CEC Survey | M185: 2017 | N185: 15 | O185: I | P185: 44.16258605 | Q185: TON | R185: 8 | S185: 1.52 | T185: =VLOOKUP(A185,cordwood_density!A:D,4,FALSE) -> 1.2798 | U185: 1.18
A186: 01025 | B186: 01 | C186: AL | D186: 025 | E186: Clarke | G186: 2104008630 | H186: Hydronic heater: pellet-fired | I186: Pellet Hydronic Heater | J186: 1.266952983 | K186: A | L186: CEC Survey | M186: 2017 | N186: 15 | O186: I | P186: 1.920112437 | Q186: TON | R186: 8 | S186: 1.52 | T186: =VLOOKUP(A186,cordwood_density!A:D,4,FALSE) -> 1.2798 | U186: 1.18
A187: 01025 | B187: 01 | C187: AL | D187: 025 | E187: Clarke | G187: 2104008100 | H187: Fireplace: general | I187: Fireplace: general | J187: 1252.41757 | K187: A | L187: CEC Survey | M187: 2017 | N187: 15 | O187: I | P187: 327.1870788 | Q187: TON | R187: 8 | S187: 0.26 | T187: =VLOOKUP(A187,cordwood_density!A:D,4,FALSE) -> 1.2798 | U187: 0.20
A188: 01025 | B188: 01 | C188: AL | D188: 025 | E188: Clarke | G188: 2104008210 | H188: Woodstove: fireplace inserts; non-EPA certified | I188: Woodstove or Fireplace Insert | J188: 289.171885 | K188: A | L188: CEC Survey | M188: 2017 | N188: 15 | O188: I | P188: 186.9828468 | Q188: TON | R188: 8 | S188: 0.65 | T188: =VLOOKUP(A188,cordwood_density!A:D,4,FALSE) -> 1.2798 | U188: 0.51
A189: 01025 | B189: 01 | C189: AL | D189: 025 | E189: Clarke | G189: 2104008220 | H189: Woodstove: fireplace inserts; EPA certified; non-catalytic | I189: Woodstove or Fireplace Insert | J189: 382.4531383 | K189: A | L189: CEC Survey | M189: 2017 | N189: 15 | O189: I | P189: 247.2998941 | Q189: TON | R189: 8 | S189: 0.65 | T189: =VLOOKUP(A189,cordwood_density!A:D,4,FALSE) -> 1.2798 | U189: 0.51
A190: 01025 | B190: 01 | C190: AL | D190: 025 | E190: Clarke | G190: 2104008230 | H190: Woodstove: fireplace inserts; EPA certified; catalytic | I190: Woodstove or Fireplace Insert | J190: 261.1875091 | K190: A | L190: CEC Survey | M190: 2017 | N190: 15 | O190: I | P190: 168.8877326 | Q190: TON | R190: 8 | S190: 0.65 | T190: =VLOOKUP(A190,cordwood_density!A:D,4,FALSE) -> 1.2798 | U190: 0.51
A191: 01025 | B191: 01 | C191: AL | D191: 025 | E191: Clarke | G191: 2104008700 | H191: Outdoor wood burning device, NEC (fire-pits, chimeas, etc) | J191: 1438.854073 | K191: A | L191: CEC Survey | M191: 2017 | N191: 15 | O191: I | P191: 271.9451031 | Q191: TON | R191: 8 | S191: 0.19 | T191: =VLOOKUP(A191,cordwood_density!A:D,4,FALSE) -> 1.2798 | U191: 0.15
A192: 01025 | B192: 01 | C192: AL | D192: 025 | E192: Clarke | G192: 2104008400 | H192: Woodstove: pellet-fired, general | I192: Pellet Woodstove | J192: 333.3138612 | K192: A | L192: CEC Survey | M192: 2017 | N192: 15 | O192: I | P192: 81.50700603 | Q192: TON | R192: 8 | S192: 0.24 | T192: =VLOOKUP(A192,cordwood_density!A:D,4,FALSE) -> 1.2798 | U192: 0.19
A193: 01025 | B193: 01 | C193: AL | D193: 025 | E193: Clarke | G193: 2104009000 | H193: Wax Log; Total: All Combustor Types | J193: 137.9132589 | K193: A | L193: CEC Survey | M193: 2017 | N193: 15 | O193: I | P193: 32.2899485 | Q193: TON | R193: 8 | S193: 0.23 | T193: =VLOOKUP(A193,cordwood_density!A:D,4,FALSE) -> 1.2798 | U193: 0.18
A194: 01025 | B194: 01 | C194: AL | D194: 025 | E194: Clarke | G194: 2104008310 | H194: Woodstove: freestanding; non-EPA certified | I194: Woodstove or Fireplace Insert | J194: 347.5595514 | K194: A | L194: CEC Survey | M194: 2017 | N194: 15 | O194: I | P194: 336.1093617 | Q194: TON | R194: 8 | S194: 0.97 | T194: =VLOOKUP(A194,cordwood_density!A:D,4,FALSE) -> 1.2798 | U194: 0.76
A195: 01025 | B195: 01 | C195: AL | D195: 025 | E195: Clarke | G195: 2104008320 | H195: Woodstove: freestanding; EPA certified; non-catalytic | I195: Woodstove or Fireplace Insert | J195: 459.6755357 | K195: A | L195: CEC Survey | M195: 2017 | N195: 15 | O195: I | P195: 444.5317365 | Q195: TON | R195: 8 | S195: =P195/J195 -> 0.97 | T195: =VLOOKUP(A195,cordwood_density!A:D,4,FALSE) -> 1.2798 | U195: =S195/T195 -> 0.76
A196: 01025 | B196: 01 | C196: AL | D196: 025 | E196: Clarke | G196: 2104008330 | H196: Woodstove: freestanding; EPA certified; catalytic | I196: Woodstove or Fireplace Insert | J196: 313.9247561 | K196: A | L196: CEC Survey | M196: 2017 | N196: 15 | O196: I | P196: 303.5826493 | Q196: TON | R196: 8 | S196: 0.97 | T196: =VLOOKUP(A196,cordwood_density!A:D,4,FALSE) -> 1.2798 | U196: 0.76
A197: 01027 | B197: 01 | C197: AL | D197: 027 | E197: Clay | G197: 2104008510 | H197: Furnace: Indoor, cordwood-fired, non-EPA certified | I197: Furnace | J197: 40.72583003 | K197: A | L197: CEC Survey | M197: 2017 | N197: 15 | O197: I | P197: 63.23021589 | Q197: TON | R197: 8 | S197: 1.55 | T197: =VLOOKUP(A197,cordwood_density!A:D,4,FALSE) -> 1.2878 | U197: 1.21
A198: 01027 | B198: 01 | C198: AL | D198: 027 | E198: Clay | G198: 2104008530 | H198: Furnace: Indoor, pellet-fired, general | I198: Furnace-Pellet | J198: 3.302094327 | K198: A | L198: CEC Survey | M198: 2017 | N198: 15 | O198: I | P198: 5.126774262 | Q198: TON | R198: 8 | S198: 1.55 | T198: =VLOOKUP(A198,cordwood_density!A:D,4,FALSE) -> 1.2878 | U198: 1.21
A199: 01027 | B199: 01 | C199: AL | D199: 027 | E199: Clay | G199: 2104008610 | H199: Hydronic heater: outdoor | I199: Hydronic heater | J199: 39.62513192 | K199: A | L199: CEC Survey | M199: 2017 | N199: 15 | O199: I | P199: 61.52129114 | Q199: TON | R199: 8 | S199: 1.55 | T199: =VLOOKUP(A199,cordwood_density!A:D,4,FALSE) -> 1.2878 | U199: 1.21
A200: 01027 | B200: 01 | C200: AL | D200: 027 | E200: Clay | G200: 2104008620 | H200: Hydronic heater: indoor | I200: Hydronic heater | J200: 25.31605651 | K200: A | L200: CEC Survey | M200: 2017 | N200: 15 | O200: I | P200: 39.30526934 | Q200: TON | R200: 8 | S200: 1.55 | T200: =VLOOKUP(A200,cordwood_density!A:D,4,FALSE) -> 1.2878 | U200: 1.21
... 4300 more rows
